Body Name,Body,Date,Department,Beneficiary,Summary of Purpose (SeRCOP),Amount,Merchant Code,Transaction Number
Sandwell Metropolitan Borough Council,https://www.sandwell.gov.uk/performance-spending/government-procurement-cards,04-Jan-2024,Total Borough Economy,PODBEAN.COM,Dead SeRCOP,31.85,"CONSULTING, MANAGEMENT, AND PUBLIC RELATIONS SVCS",2023-24Q3_PC0001
Sandwell Metropolitan Borough Council,https://www.sandwell.gov.uk/performance-spending/government-procurement-cards,04-Jan-2024,Total Borough Economy,SAINSBURYS S/MKTS,Total Adult Social Care,16.45,"GROCERY STORES, SUPERMARKETS",2023-24Q3_PC0002
Sandwell Metropolitan Borough Council,https://www.sandwell.gov.uk/performance-spending/government-procurement-cards,04-Jan-2024,Law & Governance,AMZNMktplace,Assistant Chief Executive (Excl SIU),25.23,MISCELLANEOUS AND SPECIALTY RETAIL STORES,2023-24Q3_PC0003
Sandwell Metropolitan Borough Council,https://www.sandwell.gov.uk/performance-spending/government-procurement-cards,04-Jan-2024,Total ASCHWB,AMZNMKTPLACE,Total Adult Social Care,34.99,MISCELLANEOUS AND SPECIALTY RETAIL STORES,2023-24Q3_PC0004
Sandwell Metropolitan Borough Council,https://www.sandwell.gov.uk/performance-spending/government-procurement-cards,04-Jan-2024,Regeneration & Growth,AMZNMktplace,Regeneration And The Economy,34.78,MISCELLANEOUS AND SPECIALTY RETAIL STORES,2023-24Q3_PC0005
Sandwell Metropolitan Borough Council,https://www.sandwell.gov.uk/performance-spending/government-procurement-cards,04-Jan-2024,Total Borough Economy,Amazon.co.uk JB6EA33A5,Total Adult Social Care,24.15,DIRECT MARKETING-OTHER DIRECT MARKETERS/NOT ELSEW.,2023-24Q3_PC0006
Sandwell Metropolitan Borough Council,https://www.sandwell.gov.uk/performance-spending/government-procurement-cards,04-Jan-2024,Total Borough Economy,FACEBK  VG67VXXJY2,Total Adult Social Care,6,ADVERTISING SERVICES,2023-24Q3_PC0007
Sandwell Metropolitan Borough Council,https://www.sandwell.gov.uk/performance-spending/government-procurement-cards,04-Jan-2024,Childrens Services,WM MORRISONS STORE,Childrens Services,20,"GROCERY STORES, SUPERMARKETS",2023-24Q3_PC0008
Sandwell Metropolitan Borough Council,https://www.sandwell.gov.uk/performance-spending/government-procurement-cards,04-Jan-2024,Housing & Assets Total,ASDA STORES,Corporate Management,10.7,"GROCERY STORES, SUPERMARKETS",2023-24Q3_PC0009
Sandwell Metropolitan Borough Council,https://www.sandwell.gov.uk/performance-spending/government-procurement-cards,04-Jan-2024,Law & Governance,CHARTERED INSTITUTE OF,Assistant Chief Executive (Excl SIU),367,"SCHOOLS, BUSINESS AND SECRETARIAL",2023-24Q3_PC0010
Sandwell Metropolitan Borough Council,https://www.sandwell.gov.uk/performance-spending/government-procurement-cards,04-Jan-2024,Law & Governance,WWW.OFFICETEAMCONNECT.,Assistant Chief Executive (Excl SIU),341.45,STATIONERY/OFFICE SUPPLIES/PRINTING & WRITING PAP.,2023-24Q3_PC0011
Sandwell Metropolitan Borough Council,https://www.sandwell.gov.uk/performance-spending/government-procurement-cards,04-Jan-2024,Law & Governance,WWW.OFFICETEAMCONNECT.,Assistant Chief Executive (Excl SIU),87.85,STATIONERY/OFFICE SUPPLIES/PRINTING & WRITING PAP.,2023-24Q3_PC0012
Sandwell Metropolitan Borough Council,https://www.sandwell.gov.uk/performance-spending/government-procurement-cards,04-Jan-2024,Childrens Services,TESCO STORES 2770,Childrens Services,107.5,"GROCERY STORES, SUPERMARKETS",2023-24Q3_PC0013
Sandwell Metropolitan Borough Council,https://www.sandwell.gov.uk/performance-spending/government-procurement-cards,04-Jan-2024,Childrens Services,THEATHENAPROGRAMME,Childrens Services,18,"CONSULTING, MANAGEMENT, AND PUBLIC RELATIONS SVCS",2023-24Q3_PC0014
Sandwell Metropolitan Borough Council,https://www.sandwell.gov.uk/performance-spending/government-procurement-cards,04-Jan-2024,Total Housing Revenue Account,AMZNMktplace,Total Housing Revenue Account,154.98,MISCELLANEOUS AND SPECIALTY RETAIL STORES,2023-24Q3_PC0015
Sandwell Metropolitan Borough Council,https://www.sandwell.gov.uk/performance-spending/government-procurement-cards,04-Jan-2024,Total Housing Revenue Account,HQN LIMITED,Total Housing Revenue Account,234,"CONSULTING, MANAGEMENT, AND PUBLIC RELATIONS SVCS",2023-24Q3_PC0016
Sandwell Metropolitan Borough Council,https://www.sandwell.gov.uk/performance-spending/government-procurement-cards,04-Jan-2024,Total Housing Revenue Account,HQN LIMITED,Total Housing Revenue Account,201,"CONSULTING, MANAGEMENT, AND PUBLIC RELATIONS SVCS",2023-24Q3_PC0017
Sandwell Metropolitan Borough Council,https://www.sandwell.gov.uk/performance-spending/government-procurement-cards,04-Jan-2024,Total Borough Economy,AMZNMktplace,Total Adult Social Care,17.92,MISCELLANEOUS AND SPECIALTY RETAIL STORES,2023-24Q3_PC0018
Sandwell Metropolitan Borough Council,https://www.sandwell.gov.uk/performance-spending/government-procurement-cards,04-Jan-2024,Childrens Services,HTTPS://5STAR.EU.EVOST,Childrens Services,31.2,STATIONERY/OFFICE SUPPLIES/PRINTING & WRITING PAP.,2023-24Q3_PC0019
Sandwell Metropolitan Borough Council,https://www.sandwell.gov.uk/performance-spending/government-procurement-cards,05-Jan-2024,Total ASCHWB,HAMPSHIRE GENERATORS,Total Adult Social Care,681,HARDWARE EQUIPMENT AND SUPPLIES,2023-24Q3_PC0020
Sandwell Metropolitan Borough Council,https://www.sandwell.gov.uk/performance-spending/government-procurement-cards,05-Jan-2024,FINANCE (Inc SIU),WWW.CANFORD.CO.UK,Assistant Chief Executive (Excl SIU),126,ELECTRICAL PARTS AND EQUIPMENT,2023-24Q3_PC0021
Sandwell Metropolitan Borough Council,https://www.sandwell.gov.uk/performance-spending/government-procurement-cards,05-Jan-2024,Total Borough Economy,AMZNMktplace,Total Adult Social Care,4.49,MISCELLANEOUS AND SPECIALTY RETAIL STORES,2023-24Q3_PC0022
Sandwell Metropolitan Borough Council,https://www.sandwell.gov.uk/performance-spending/government-procurement-cards,05-Jan-2024,Total Borough Economy,AMZNBusiness WA53953F5,Total Adult Social Care,18.81,MISCELLANEOUS AND SPECIALTY RETAIL STORES,2023-24Q3_PC0023
Sandwell Metropolitan Borough Council,https://www.sandwell.gov.uk/performance-spending/government-procurement-cards,05-Jan-2024,Corporate Management,AMZNMktplace,Corporate Management,103.96,MISCELLANEOUS AND SPECIALTY RETAIL STORES,2023-24Q3_PC0024
Sandwell Metropolitan Borough Council,https://www.sandwell.gov.uk/performance-spending/government-procurement-cards,05-Jan-2024,Corporate Management,AMZNMktplace,Corporate Management,46.57,MISCELLANEOUS AND SPECIALTY RETAIL STORES,2023-24Q3_PC0025
Sandwell Metropolitan Borough Council,https://www.sandwell.gov.uk/performance-spending/government-procurement-cards,05-Jan-2024,Regeneration & Growth,Trimble Solutions UK,Regeneration And The Economy,4422,"ARCHITECTURAL, ENGINEERING, AND SURVEYING SERVICES",2023-24Q3_PC0026
Sandwell Metropolitan Borough Council,https://www.sandwell.gov.uk/performance-spending/government-procurement-cards,05-Jan-2024,Regeneration & Growth,RYAL MEDIA,Regeneration And The Economy,117.84,MISCELLANEOUS PUBLISHING AND PRINTING,2023-24Q3_PC0027
Sandwell Metropolitan Borough Council,https://www.sandwell.gov.uk/performance-spending/government-procurement-cards,05-Jan-2024,Regeneration & Growth,RICS COM GBP CYBS,Regeneration And The Economy,420,"ORGANIZATIONS, MEMBERSHIP-NOT ELSEWHERE CLASSIFIED",2023-24Q3_PC0028
Sandwell Metropolitan Borough Council,https://www.sandwell.gov.uk/performance-spending/government-procurement-cards,05-Jan-2024,Total Borough Economy,AMZNMktplace,Total Adult Social Care,25.76,MISCELLANEOUS AND SPECIALTY RETAIL STORES,2023-24Q3_PC0029
Sandwell Metropolitan Borough Council,https://www.sandwell.gov.uk/performance-spending/government-procurement-cards,05-Jan-2024,Total ASCHWB,E.ON NEXT,Total Adult Social Care,59.24,"UTLTS-ELCTRC, GAS, HEATING OIL, SANITARY, WATER",2023-24Q3_PC0030
Sandwell Metropolitan Borough Council,https://www.sandwell.gov.uk/performance-spending/government-procurement-cards,05-Jan-2024,Total ASCHWB,E.ON NEXT,Total Adult Social Care,39.12,"UTLTS-ELCTRC, GAS, HEATING OIL, SANITARY, WATER",2023-24Q3_PC0031
Sandwell Metropolitan Borough Council,https://www.sandwell.gov.uk/performance-spending/government-procurement-cards,05-Jan-2024,Total ASCHWB,E.ON NEXT,Total Adult Social Care,39.43,"UTLTS-ELCTRC, GAS, HEATING OIL, SANITARY, WATER",2023-24Q3_PC0032
Sandwell Metropolitan Borough Council,https://www.sandwell.gov.uk/performance-spending/government-procurement-cards,05-Jan-2024,Total ASCHWB,E.ON NEXT,Total Adult Social Care,28.66,"UTLTS-ELCTRC, GAS, HEATING OIL, SANITARY, WATER",2023-24Q3_PC0033
Sandwell Metropolitan Borough Council,https://www.sandwell.gov.uk/performance-spending/government-procurement-cards,05-Jan-2024,Total Borough Economy,WWW.FTA.CO.UK,Total Adult Social Care,239.99,RAILROADS - FREIGHT,2023-24Q3_PC0034
Sandwell Metropolitan Borough Council,https://www.sandwell.gov.uk/performance-spending/government-procurement-cards,05-Jan-2024,Total Borough Economy,TIMPSON LTD,Total Adult Social Care,60,MISCELLANEOUS AND SPECIALTY RETAIL STORES,2023-24Q3_PC0035
Sandwell Metropolitan Borough Council,https://www.sandwell.gov.uk/performance-spending/government-procurement-cards,05-Jan-2024,Total Borough Economy,TIMPSON LTD,Total Adult Social Care,54,MISCELLANEOUS AND SPECIALTY RETAIL STORES,2023-24Q3_PC0036
Sandwell Metropolitan Borough Council,https://www.sandwell.gov.uk/performance-spending/government-procurement-cards,05-Jan-2024,FINANCE (Inc SIU),ROYAL MAIL GROUP LTD,Assistant Chief Executive (Excl SIU),6.29,POSTAL SERVICES-GOVERNMENT ONLY,2023-24Q3_PC0037
Sandwell Metropolitan Borough Council,https://www.sandwell.gov.uk/performance-spending/government-procurement-cards,05-Jan-2024,Childrens Services,ICELAND 1603,Childrens Services,48.96,"GROCERY STORES, SUPERMARKETS",2023-24Q3_PC0038
Sandwell Metropolitan Borough Council,https://www.sandwell.gov.uk/performance-spending/government-procurement-cards,05-Jan-2024,Total Borough Economy,TOOLSTATION UK,Total Adult Social Care,3.8,HARDWARE STORES,2023-24Q3_PC0039
Sandwell Metropolitan Borough Council,https://www.sandwell.gov.uk/performance-spending/government-procurement-cards,05-Jan-2024,Childrens Services,THEATHENAPROGRAMME,Childrens Services,18,"CONSULTING, MANAGEMENT, AND PUBLIC RELATIONS SVCS",2023-24Q3_PC0040
Sandwell Metropolitan Borough Council,https://www.sandwell.gov.uk/performance-spending/government-procurement-cards,05-Jan-2024,Childrens Services,Amazon Prime AX57B9LX5,Childrens Services,8.99,DIRECT MARKETING-CONTINUITY/SUBSCRIPTION MERCHANTS,2023-24Q3_PC0041
Sandwell Metropolitan Borough Council,https://www.sandwell.gov.uk/performance-spending/government-procurement-cards,05-Jan-2024,Childrens Services,Amazon.co.uk 631P03E35,Childrens Services,21.95,DIRECT MARKETING-OTHER DIRECT MARKETERS/NOT ELSEW.,2023-24Q3_PC0042
Sandwell Metropolitan Borough Council,https://www.sandwell.gov.uk/performance-spending/government-procurement-cards,05-Jan-2024,Total Borough Economy,VIKING,Total Adult Social Care,18.88,OFFICE AND COMMERCIAL FURNITURE,2023-24Q3_PC0043
Sandwell Metropolitan Borough Council,https://www.sandwell.gov.uk/performance-spending/government-procurement-cards,08-Jan-2024,Childrens Services,DPD WL,Childrens Services,74.99,"COURIER SVC-AIR & GROUND, FREIGHT FORWARDERS",2023-24Q3_PC0044
Sandwell Metropolitan Borough Council,https://www.sandwell.gov.uk/performance-spending/government-procurement-cards,08-Jan-2024,Childrens Services,AMZNMktplace,Childrens Services,24.94,MISCELLANEOUS AND SPECIALTY RETAIL STORES,2023-24Q3_PC0045
Sandwell Metropolitan Borough Council,https://www.sandwell.gov.uk/performance-spending/government-procurement-cards,08-Jan-2024,Total Borough Economy,First Rescue Train,Total Adult Social Care,150,MISCELLANEOUS GENERAL MERCHANDISE,2023-24Q3_PC0046
Sandwell Metropolitan Borough Council,https://www.sandwell.gov.uk/performance-spending/government-procurement-cards,08-Jan-2024,Total Borough Economy,AMZNMktplace,Total Adult Social Care,50.97,MISCELLANEOUS AND SPECIALTY RETAIL STORES,2023-24Q3_PC0047
Sandwell Metropolitan Borough Council,https://www.sandwell.gov.uk/performance-spending/government-procurement-cards,08-Jan-2024,Total Borough Economy,Amazon.co.uk 8Z7QM57U5,Total Adult Social Care,13.99,DIRECT MARKETING-OTHER DIRECT MARKETERS/NOT ELSEW.,2023-24Q3_PC0048
Sandwell Metropolitan Borough Council,https://www.sandwell.gov.uk/performance-spending/government-procurement-cards,08-Jan-2024,Total ASCHWB,AMZNMktplace,Total Adult Social Care,22.98,MISCELLANEOUS AND SPECIALTY RETAIL STORES,2023-24Q3_PC0049
Sandwell Metropolitan Borough Council,https://www.sandwell.gov.uk/performance-spending/government-procurement-cards,08-Jan-2024,Housing & Assets Total,Amazon Prime P98836285,Corporate Management,8.99,DIRECT MARKETING-CONTINUITY/SUBSCRIPTION MERCHANTS,2023-24Q3_PC0050
Sandwell Metropolitan Borough Council,https://www.sandwell.gov.uk/performance-spending/government-procurement-cards,08-Jan-2024,Total Housing Revenue Account,Amazon.co.uk SJ4XV9F25,Total Housing Revenue Account,50.92,DIRECT MARKETING-OTHER DIRECT MARKETERS/NOT ELSEW.,2023-24Q3_PC0051
Sandwell Metropolitan Borough Council,https://www.sandwell.gov.uk/performance-spending/government-procurement-cards,08-Jan-2024,Total Housing Revenue Account,MIDLAND JETTING SERVIC,Total Housing Revenue Account,66,CARPET AND UPHOLSTERY CLEANING,2023-24Q3_PC0052
Sandwell Metropolitan Borough Council,https://www.sandwell.gov.uk/performance-spending/government-procurement-cards,08-Jan-2024,Total Borough Economy,AMZNMktplace,Total Adult Social Care,7.04,MISCELLANEOUS AND SPECIALTY RETAIL STORES,2023-24Q3_PC0053
Sandwell Metropolitan Borough Council,https://www.sandwell.gov.uk/performance-spending/government-procurement-cards,08-Jan-2024,Total Borough Economy,AMZNMktplace,Total Adult Social Care,44.57,MISCELLANEOUS AND SPECIALTY RETAIL STORES,2023-24Q3_PC0054
Sandwell Metropolitan Borough Council,https://www.sandwell.gov.uk/performance-spending/government-procurement-cards,08-Jan-2024,Total Borough Economy,ASDA GROCERIES ONLINE,Total Adult Social Care,-9,"GROCERY STORES, SUPERMARKETS",2023-24Q3_PC0055
Sandwell Metropolitan Borough Council,https://www.sandwell.gov.uk/performance-spending/government-procurement-cards,08-Jan-2024,Total Borough Economy,ASDA GROCERIES ONLINE,Total Adult Social Care,48.65,"GROCERY STORES, SUPERMARKETS",2023-24Q3_PC0056
Sandwell Metropolitan Borough Council,https://www.sandwell.gov.uk/performance-spending/government-procurement-cards,08-Jan-2024,Total ASCHWB,AMZNMktplace,Total Adult Social Care,35.33,MISCELLANEOUS AND SPECIALTY RETAIL STORES,2023-24Q3_PC0057
Sandwell Metropolitan Borough Council,https://www.sandwell.gov.uk/performance-spending/government-procurement-cards,09-Jan-2024,Total ASCHWB,WORKWEAR EXPRESS,Total Adult Social Care,469.96,MEN'S/WOMEN'S/CHILDREN'S UNIFORMS/COMMERCIAL CLOTH,2023-24Q3_PC0058
Sandwell Metropolitan Borough Council,https://www.sandwell.gov.uk/performance-spending/government-procurement-cards,09-Jan-2024,Total Borough Economy,FARMFOODS 616,Dead SeRCOP,10.97,"GROCERY STORES, SUPERMARKETS",2023-24Q3_PC0059
Sandwell Metropolitan Borough Council,https://www.sandwell.gov.uk/performance-spending/government-procurement-cards,09-Jan-2024,Total Borough Economy,ENVIROMENT AGENCY,Total Adult Social Care,446,GOVERNMENT SERVICES-NOT ELSEWHERE CLASSIFIED,2023-24Q3_PC0060
Sandwell Metropolitan Borough Council,https://www.sandwell.gov.uk/performance-spending/government-procurement-cards,09-Jan-2024,Total Borough Economy,HAMPSHIREFL,Total Adult Social Care,201.4,"FABRIC, NEEDLEWORK, PIECE GOODS, AND SEWING STORES",2023-24Q3_PC0061
Sandwell Metropolitan Borough Council,https://www.sandwell.gov.uk/performance-spending/government-procurement-cards,09-Jan-2024,FINANCE (Inc SIU),Amazon Prime 3M7D35T95,Assistant Chief Executive (Excl SIU),8.99,DIRECT MARKETING-CONTINUITY/SUBSCRIPTION MERCHANTS,2023-24Q3_PC0062
Sandwell Metropolitan Borough Council,https://www.sandwell.gov.uk/performance-spending/government-procurement-cards,09-Jan-2024,Assistant Chief Executive,AMZNMKTPLACE,Assistant Chief Executive (Excl SIU),22.49,MISCELLANEOUS AND SPECIALTY RETAIL STORES,2023-24Q3_PC0063
Sandwell Metropolitan Borough Council,https://www.sandwell.gov.uk/performance-spending/government-procurement-cards,09-Jan-2024,Law & Governance,SAINSBURYS S/MKTS,Assistant Chief Executive (Excl SIU),4.85,"GROCERY STORES, SUPERMARKETS",2023-24Q3_PC0064
Sandwell Metropolitan Borough Council,https://www.sandwell.gov.uk/performance-spending/government-procurement-cards,09-Jan-2024,Total ASCHWB,Amazon.co.uk SM9LP05C5,Total Adult Social Care,233.82,DIRECT MARKETING-OTHER DIRECT MARKETERS/NOT ELSEW.,2023-24Q3_PC0065
Sandwell Metropolitan Borough Council,https://www.sandwell.gov.uk/performance-spending/government-procurement-cards,09-Jan-2024,Regeneration & Growth,TRAINLINE,Regeneration And The Economy,10.69,PASSENGER RAILWAYS,2023-24Q3_PC0066
Sandwell Metropolitan Borough Council,https://www.sandwell.gov.uk/performance-spending/government-procurement-cards,09-Jan-2024,Childrens Services,SCOTTISH POWER,Childrens Services,134.52,"FUEL DEALERS-COAL, FUEL OIL, LIQ PETROLEUM, WOOD",2023-24Q3_PC0067
Sandwell Metropolitan Borough Council,https://www.sandwell.gov.uk/performance-spending/government-procurement-cards,09-Jan-2024,Individual School Budgets With Inclusion,ASDA GROCERIES ONLINE,Individual School Budgets With Inclusion,-0.15,"GROCERY STORES, SUPERMARKETS",2023-24Q3_PC0068
Sandwell Metropolitan Borough Council,https://www.sandwell.gov.uk/performance-spending/government-procurement-cards,09-Jan-2024,Individual School Budgets With Inclusion,ASDA GROCERIES ONLINE,Individual School Budgets With Inclusion,35.82,"GROCERY STORES, SUPERMARKETS",2023-24Q3_PC0069
Sandwell Metropolitan Borough Council,https://www.sandwell.gov.uk/performance-spending/government-procurement-cards,09-Jan-2024,Individual School Budgets With Inclusion,UBER    EATS,Individual School Budgets With Inclusion,137.78,"EATING PLACES, RESTAURANTS",2023-24Q3_PC0070
Sandwell Metropolitan Borough Council,https://www.sandwell.gov.uk/performance-spending/government-procurement-cards,09-Jan-2024,Individual School Budgets With Inclusion,UBER    EATS,Individual School Budgets With Inclusion,33.43,"EATING PLACES, RESTAURANTS",2023-24Q3_PC0071
Sandwell Metropolitan Borough Council,https://www.sandwell.gov.uk/performance-spending/government-procurement-cards,09-Jan-2024,Regeneration & Growth,CENTRE FOR ASSESSMENT,Regeneration And The Economy,2828.68,SCHOOLS & EDUCATIONAL SVC-NOT ELSEWHERE CLASSIFIED,2023-24Q3_PC0072
Sandwell Metropolitan Borough Council,https://www.sandwell.gov.uk/performance-spending/government-procurement-cards,09-Jan-2024,Total ASCHWB,E.ON NEXT,Total Adult Social Care,5.37,"UTLTS-ELCTRC, GAS, HEATING OIL, SANITARY, WATER",2023-24Q3_PC0073
Sandwell Metropolitan Borough Council,https://www.sandwell.gov.uk/performance-spending/government-procurement-cards,09-Jan-2024,Total ASCHWB,E.ON NEXT,Total Adult Social Care,57.76,"UTLTS-ELCTRC, GAS, HEATING OIL, SANITARY, WATER",2023-24Q3_PC0074
Sandwell Metropolitan Borough Council,https://www.sandwell.gov.uk/performance-spending/government-procurement-cards,09-Jan-2024,Childrens Services,WM MORRISONS STORE,Childrens Services,204.97,"GROCERY STORES, SUPERMARKETS",2023-24Q3_PC0075
Sandwell Metropolitan Borough Council,https://www.sandwell.gov.uk/performance-spending/government-procurement-cards,09-Jan-2024,Total Borough Economy,POUNDLAND LTD - 2528,Total Adult Social Care,13.3,DISCOUNT STORES,2023-24Q3_PC0076
Sandwell Metropolitan Borough Council,https://www.sandwell.gov.uk/performance-spending/government-procurement-cards,09-Jan-2024,Childrens Services,D.I.Y. HIRE KIDDERMINS,Childrens Services,388.8,ELECTRICAL PARTS AND EQUIPMENT,2023-24Q3_PC0077
Sandwell Metropolitan Borough Council,https://www.sandwell.gov.uk/performance-spending/government-procurement-cards,09-Jan-2024,Childrens Services,NISA LOCAL,Childrens Services,5.98,"MISC FOOD STORE-CONVENIENCE,MRKT,SPLTY,VENDNG MACS",2023-24Q3_PC0078
Sandwell Metropolitan Borough Council,https://www.sandwell.gov.uk/performance-spending/government-procurement-cards,09-Jan-2024,Law & Governance,FIRST CHOICE DRY,Assistant Chief Executive (Excl SIU),12.99,"CLEANING, GARMENT, AND LAUNDRY SERVICES",2023-24Q3_PC0079
Sandwell Metropolitan Borough Council,https://www.sandwell.gov.uk/performance-spending/government-procurement-cards,09-Jan-2024,Total ASCHWB,AMZNMktplace,Total Adult Social Care,8.52,MISCELLANEOUS AND SPECIALTY RETAIL STORES,2023-24Q3_PC0080
Sandwell Metropolitan Borough Council,https://www.sandwell.gov.uk/performance-spending/government-procurement-cards,09-Jan-2024,Total ASCHWB,AMZNMKTPLACE,Total Adult Social Care,8.89,MISCELLANEOUS AND SPECIALTY RETAIL STORES,2023-24Q3_PC0081
Sandwell Metropolitan Borough Council,https://www.sandwell.gov.uk/performance-spending/government-procurement-cards,09-Jan-2024,Total Borough Economy,AMZNMktplace,Total Adult Social Care,9.78,MISCELLANEOUS AND SPECIALTY RETAIL STORES,2023-24Q3_PC0082
Sandwell Metropolitan Borough Council,https://www.sandwell.gov.uk/performance-spending/government-procurement-cards,09-Jan-2024,FINANCE (Inc SIU),AMZNMktplace,Assistant Chief Executive (Excl SIU),10,MISCELLANEOUS AND SPECIALTY RETAIL STORES,2023-24Q3_PC0083
Sandwell Metropolitan Borough Council,https://www.sandwell.gov.uk/performance-spending/government-procurement-cards,09-Jan-2024,Total Borough Economy,SAINSBURYS S/MKTS,Total Adult Social Care,1.2,"GROCERY STORES, SUPERMARKETS",2023-24Q3_PC0084
Sandwell Metropolitan Borough Council,https://www.sandwell.gov.uk/performance-spending/government-procurement-cards,09-Jan-2024,FINANCE (Inc SIU),Amazon.co.uk 4M9KV5A85,Assistant Chief Executive (Excl SIU),36.58,DIRECT MARKETING-OTHER DIRECT MARKETERS/NOT ELSEW.,2023-24Q3_PC0085
Sandwell Metropolitan Borough Council,https://www.sandwell.gov.uk/performance-spending/government-procurement-cards,09-Jan-2024,Total Borough Economy,Amazon Prime B41UX3DC5,Total Adult Social Care,8.99,DIRECT MARKETING-CONTINUITY/SUBSCRIPTION MERCHANTS,2023-24Q3_PC0086
Sandwell Metropolitan Borough Council,https://www.sandwell.gov.uk/performance-spending/government-procurement-cards,10-Jan-2024,Total ASCHWB,AMZNMktplace,Total Adult Social Care,79.65,MISCELLANEOUS AND SPECIALTY RETAIL STORES,2023-24Q3_PC0087
Sandwell Metropolitan Borough Council,https://www.sandwell.gov.uk/performance-spending/government-procurement-cards,10-Jan-2024,Total ASCHWB,AMZNMktplace,Total Adult Social Care,11.99,MISCELLANEOUS AND SPECIALTY RETAIL STORES,2023-24Q3_PC0088
Sandwell Metropolitan Borough Council,https://www.sandwell.gov.uk/performance-spending/government-procurement-cards,10-Jan-2024,Childrens Services,AMZNMktplace,Childrens Services,4.94,MISCELLANEOUS AND SPECIALTY RETAIL STORES,2023-24Q3_PC0089
Sandwell Metropolitan Borough Council,https://www.sandwell.gov.uk/performance-spending/government-procurement-cards,10-Jan-2024,Corporate Management,AMZNMktplace,Corporate Management,70.97,MISCELLANEOUS AND SPECIALTY RETAIL STORES,2023-24Q3_PC0090
Sandwell Metropolitan Borough Council,https://www.sandwell.gov.uk/performance-spending/government-procurement-cards,10-Jan-2024,Total ASCHWB,VIKING,Total Adult Social Care,156.97,OFFICE AND COMMERCIAL FURNITURE,2023-24Q3_PC0091
Sandwell Metropolitan Borough Council,https://www.sandwell.gov.uk/performance-spending/government-procurement-cards,10-Jan-2024,Total ASCHWB,AMZNMktplace,Total Adult Social Care,5.87,MISCELLANEOUS AND SPECIALTY RETAIL STORES,2023-24Q3_PC0092
Sandwell Metropolitan Borough Council,https://www.sandwell.gov.uk/performance-spending/government-procurement-cards,10-Jan-2024,Total ASCHWB,POUNDLAND.CO.UK,Total Adult Social Care,108.9,DEPARTMENT STORES,2023-24Q3_PC0093
Sandwell Metropolitan Borough Council,https://www.sandwell.gov.uk/performance-spending/government-procurement-cards,10-Jan-2024,Total ASCHWB,TESCO STORES 4838,Total Adult Social Care,-1,"GROCERY STORES, SUPERMARKETS",2023-24Q3_PC0094
Sandwell Metropolitan Borough Council,https://www.sandwell.gov.uk/performance-spending/government-procurement-cards,10-Jan-2024,Total ASCHWB,TESCO STORES 4838,Total Adult Social Care,247.14,"GROCERY STORES, SUPERMARKETS",2023-24Q3_PC0095
Sandwell Metropolitan Borough Council,https://www.sandwell.gov.uk/performance-spending/government-procurement-cards,10-Jan-2024,Total ASCHWB,POUNDLAND.CO.UK,Total Adult Social Care,21.2,DEPARTMENT STORES,2023-24Q3_PC0096
Sandwell Metropolitan Borough Council,https://www.sandwell.gov.uk/performance-spending/government-procurement-cards,10-Jan-2024,Childrens Services,B&M 022 - WEDNESBURY,Childrens Services,28.23,MISCELLANEOUS GENERAL MERCHANDISE,2023-24Q3_PC0097
Sandwell Metropolitan Borough Council,https://www.sandwell.gov.uk/performance-spending/government-procurement-cards,10-Jan-2024,Childrens Services,Amazon.co.uk JL5FU1XJ5,Childrens Services,14.48,DIRECT MARKETING-OTHER DIRECT MARKETERS/NOT ELSEW.,2023-24Q3_PC0098
Sandwell Metropolitan Borough Council,https://www.sandwell.gov.uk/performance-spending/government-procurement-cards,10-Jan-2024,Childrens Services,Amazon.co.uk TR68O5R65,Childrens Services,19.9,DIRECT MARKETING-OTHER DIRECT MARKETERS/NOT ELSEW.,2023-24Q3_PC0099
Sandwell Metropolitan Borough Council,https://www.sandwell.gov.uk/performance-spending/government-procurement-cards,10-Jan-2024,Total Borough Economy,SECURITY INDUSTRY AUTH,Total Adult Social Care,184,GOVERNMENT SERVICES-NOT ELSEWHERE CLASSIFIED,2023-24Q3_PC0100
Sandwell Metropolitan Borough Council,https://www.sandwell.gov.uk/performance-spending/government-procurement-cards,10-Jan-2024,Total Borough Economy,K2 ADVANCED TRAINING L,Total Adult Social Care,249,SCHOOLS & EDUCATIONAL SVC-NOT ELSEWHERE CLASSIFIED,2023-24Q3_PC0101
Sandwell Metropolitan Borough Council,https://www.sandwell.gov.uk/performance-spending/government-procurement-cards,10-Jan-2024,Housing & Assets Total,Amazon.co.uk BH0L79GU5,Corporate Management,26.38,DIRECT MARKETING-OTHER DIRECT MARKETERS/NOT ELSEW.,2023-24Q3_PC0102
Sandwell Metropolitan Borough Council,https://www.sandwell.gov.uk/performance-spending/government-procurement-cards,10-Jan-2024,FINANCE (Inc SIU),AMZNMktplace,Assistant Chief Executive (Excl SIU),12.99,MISCELLANEOUS AND SPECIALTY RETAIL STORES,2023-24Q3_PC0103
Sandwell Metropolitan Borough Council,https://www.sandwell.gov.uk/performance-spending/government-procurement-cards,10-Jan-2024,Law & Governance,SAINSBURYS S/MKTS,Assistant Chief Executive (Excl SIU),31.2,"GROCERY STORES, SUPERMARKETS",2023-24Q3_PC0104
Sandwell Metropolitan Borough Council,https://www.sandwell.gov.uk/performance-spending/government-procurement-cards,10-Jan-2024,Total Public Health,,Public Health,-30.56,,2023-24Q3_PC0105
Sandwell Metropolitan Borough Council,https://www.sandwell.gov.uk/performance-spending/government-procurement-cards,10-Jan-2024,Total Public Health,,Public Health,-4.5,,2023-24Q3_PC0106
Sandwell Metropolitan Borough Council,https://www.sandwell.gov.uk/performance-spending/government-procurement-cards,10-Jan-2024,Total Public Health,,Public Health,-2,,2023-24Q3_PC0107
Sandwell Metropolitan Borough Council,https://www.sandwell.gov.uk/performance-spending/government-procurement-cards,10-Jan-2024,Total Public Health,,Public Health,-26.7,,2023-24Q3_PC0108
Sandwell Metropolitan Borough Council,https://www.sandwell.gov.uk/performance-spending/government-procurement-cards,10-Jan-2024,Total Public Health,,Public Health,-5.75,,2023-24Q3_PC0109
Sandwell Metropolitan Borough Council,https://www.sandwell.gov.uk/performance-spending/government-procurement-cards,10-Jan-2024,Total Public Health,,Public Health,-2.39,,2023-24Q3_PC0110
Sandwell Metropolitan Borough Council,https://www.sandwell.gov.uk/performance-spending/government-procurement-cards,10-Jan-2024,Total Public Health,,Public Health,-4.25,,2023-24Q3_PC0111
Sandwell Metropolitan Borough Council,https://www.sandwell.gov.uk/performance-spending/government-procurement-cards,10-Jan-2024,Total Public Health,IHS028540292PA02 2024-,Public Health,624,GOVERNMENT SERVICES-NOT ELSEWHERE CLASSIFIED,2023-24Q3_PC0112
Sandwell Metropolitan Borough Council,https://www.sandwell.gov.uk/performance-spending/government-procurement-cards,10-Jan-2024,Childrens Services,RONTEC DUDLEY PORT,Childrens Services,3.1,SERVICE STATIONS WITH OR WITHOUT ANCILLARY SERVICE,2023-24Q3_PC0113
Sandwell Metropolitan Borough Council,https://www.sandwell.gov.uk/performance-spending/government-procurement-cards,10-Jan-2024,Total Housing Revenue Account,MOJ OSPT ECOM,Total Housing Revenue Account,40,GOVERNMENT SERVICES-NOT ELSEWHERE CLASSIFIED,2023-24Q3_PC0114
Sandwell Metropolitan Borough Council,https://www.sandwell.gov.uk/performance-spending/government-procurement-cards,10-Jan-2024,Total Housing Revenue Account,MOJ OSPT ECOM,Total Housing Revenue Account,40,GOVERNMENT SERVICES-NOT ELSEWHERE CLASSIFIED,2023-24Q3_PC0115
Sandwell Metropolitan Borough Council,https://www.sandwell.gov.uk/performance-spending/government-procurement-cards,10-Jan-2024,Total Housing Revenue Account,MOJ OSPT ECOM,Total Housing Revenue Account,40,GOVERNMENT SERVICES-NOT ELSEWHERE CLASSIFIED,2023-24Q3_PC0116
Sandwell Metropolitan Borough Council,https://www.sandwell.gov.uk/performance-spending/government-procurement-cards,10-Jan-2024,Total Housing Revenue Account,MOJ OSPT ECOM,Total Housing Revenue Account,40,GOVERNMENT SERVICES-NOT ELSEWHERE CLASSIFIED,2023-24Q3_PC0117
Sandwell Metropolitan Borough Council,https://www.sandwell.gov.uk/performance-spending/government-procurement-cards,10-Jan-2024,Total Housing Revenue Account,MOJ OSPT ECOM,Total Housing Revenue Account,40,GOVERNMENT SERVICES-NOT ELSEWHERE CLASSIFIED,2023-24Q3_PC0118
Sandwell Metropolitan Borough Council,https://www.sandwell.gov.uk/performance-spending/government-procurement-cards,10-Jan-2024,Total Housing Revenue Account,AMZNMktplace,Total Housing Revenue Account,-154.98,MISCELLANEOUS AND SPECIALTY RETAIL STORES,2023-24Q3_PC0119
Sandwell Metropolitan Borough Council,https://www.sandwell.gov.uk/performance-spending/government-procurement-cards,10-Jan-2024,Total Housing Revenue Account,AMZNMktplace,Total Housing Revenue Account,25.48,MISCELLANEOUS AND SPECIALTY RETAIL STORES,2023-24Q3_PC0120
Sandwell Metropolitan Borough Council,https://www.sandwell.gov.uk/performance-spending/government-procurement-cards,10-Jan-2024,Total Housing Revenue Account,AMZNMktplace,Total Housing Revenue Account,17.49,MISCELLANEOUS AND SPECIALTY RETAIL STORES,2023-24Q3_PC0121
Sandwell Metropolitan Borough Council,https://www.sandwell.gov.uk/performance-spending/government-procurement-cards,10-Jan-2024,Total Housing Revenue Account,AMZNMktplace,Total Housing Revenue Account,12.98,MISCELLANEOUS AND SPECIALTY RETAIL STORES,2023-24Q3_PC0122
Sandwell Metropolitan Borough Council,https://www.sandwell.gov.uk/performance-spending/government-procurement-cards,10-Jan-2024,Total Housing Revenue Account,AMZNMktplace,Total Housing Revenue Account,12.98,MISCELLANEOUS AND SPECIALTY RETAIL STORES,2023-24Q3_PC0123
Sandwell Metropolitan Borough Council,https://www.sandwell.gov.uk/performance-spending/government-procurement-cards,10-Jan-2024,Total Housing Revenue Account,STAFFORDSHIRE BUILDER,Total Housing Revenue Account,21.24,"BUILDING MATERIALS, LUMBER STORES",2023-24Q3_PC0124
Sandwell Metropolitan Borough Council,https://www.sandwell.gov.uk/performance-spending/government-procurement-cards,10-Jan-2024,Assistant Chief Executive,Amazon.co.uk PM46X9X25,Assistant Chief Executive (Excl SIU),17.57,DIRECT MARKETING-OTHER DIRECT MARKETERS/NOT ELSEW.,2023-24Q3_PC0125
Sandwell Metropolitan Borough Council,https://www.sandwell.gov.uk/performance-spending/government-procurement-cards,10-Jan-2024,Assistant Chief Executive,POST OFFICE COUNTER,Assistant Chief Executive (Excl SIU),50,POSTAL SERVICES-GOVERNMENT ONLY,2023-24Q3_PC0126
Sandwell Metropolitan Borough Council,https://www.sandwell.gov.uk/performance-spending/government-procurement-cards,10-Jan-2024,Total Borough Economy,TRAVELODGE,Total Adult Social Care,37.72,TRAVELODGE,2023-24Q3_PC0127
Sandwell Metropolitan Borough Council,https://www.sandwell.gov.uk/performance-spending/government-procurement-cards,11-Jan-2024,Assistant Chief Executive,VIKING,Assistant Chief Executive (Excl SIU),197.25,OFFICE AND COMMERCIAL FURNITURE,2023-24Q3_PC0128
Sandwell Metropolitan Borough Council,https://www.sandwell.gov.uk/performance-spending/government-procurement-cards,11-Jan-2024,Total Borough Economy,FARMFOODS 616,Dead SeRCOP,6.77,"GROCERY STORES, SUPERMARKETS",2023-24Q3_PC0129
Sandwell Metropolitan Borough Council,https://www.sandwell.gov.uk/performance-spending/government-procurement-cards,11-Jan-2024,Total Borough Economy,BIRMINGHAM CASH REGIST,Total Adult Social Care,36,BUSINESS SERVICES-NOT ELSEWHERE CLASSIFIED,2023-24Q3_PC0130
Sandwell Metropolitan Borough Council,https://www.sandwell.gov.uk/performance-spending/government-procurement-cards,11-Jan-2024,FINANCE (Inc SIU),AMZNMktplace,Assistant Chief Executive (Excl SIU),16.99,MISCELLANEOUS AND SPECIALTY RETAIL STORES,2023-24Q3_PC0131
Sandwell Metropolitan Borough Council,https://www.sandwell.gov.uk/performance-spending/government-procurement-cards,11-Jan-2024,Individual School Budgets With Inclusion,ASDA SUPERSTORE,Individual School Budgets With Inclusion,32,"GROCERY STORES, SUPERMARKETS",2023-24Q3_PC0132
Sandwell Metropolitan Borough Council,https://www.sandwell.gov.uk/performance-spending/government-procurement-cards,11-Jan-2024,Individual School Budgets With Inclusion,TESCO STORES 2335,Individual School Budgets With Inclusion,32,"GROCERY STORES, SUPERMARKETS",2023-24Q3_PC0133
Sandwell Metropolitan Borough Council,https://www.sandwell.gov.uk/performance-spending/government-procurement-cards,11-Jan-2024,Individual School Budgets With Inclusion,ASDA GEORGE COM LEEDS,Individual School Budgets With Inclusion,147,"GROCERY STORES, SUPERMARKETS",2023-24Q3_PC0134
Sandwell Metropolitan Borough Council,https://www.sandwell.gov.uk/performance-spending/government-procurement-cards,11-Jan-2024,Individual School Budgets With Inclusion,WWW.ARGOS.CO.UK,Individual School Budgets With Inclusion,70.95,DEPARTMENT STORES,2023-24Q3_PC0135
Sandwell Metropolitan Borough Council,https://www.sandwell.gov.uk/performance-spending/government-procurement-cards,11-Jan-2024,Regeneration & Growth,MONTA APP,Regeneration And The Economy,128.76,BUSINESS SERVICES-NOT ELSEWHERE CLASSIFIED,2023-24Q3_PC0136
Sandwell Metropolitan Borough Council,https://www.sandwell.gov.uk/performance-spending/government-procurement-cards,11-Jan-2024,Total ASCHWB,AMZNMKTPLACE,Total Adult Social Care,125,MISCELLANEOUS AND SPECIALTY RETAIL STORES,2023-24Q3_PC0137
Sandwell Metropolitan Borough Council,https://www.sandwell.gov.uk/performance-spending/government-procurement-cards,11-Jan-2024,Total ASCHWB,AMZNMktplace,Total Adult Social Care,30.56,MISCELLANEOUS AND SPECIALTY RETAIL STORES,2023-24Q3_PC0138
Sandwell Metropolitan Borough Council,https://www.sandwell.gov.uk/performance-spending/government-procurement-cards,11-Jan-2024,Total ASCHWB,POUNDLAND.CO.UK,Total Adult Social Care,-1,DEPARTMENT STORES,2023-24Q3_PC0139
Sandwell Metropolitan Borough Council,https://www.sandwell.gov.uk/performance-spending/government-procurement-cards,11-Jan-2024,Total ASCHWB,POUNDLAND.CO.UK,Total Adult Social Care,-4.25,DEPARTMENT STORES,2023-24Q3_PC0140
Sandwell Metropolitan Borough Council,https://www.sandwell.gov.uk/performance-spending/government-procurement-cards,11-Jan-2024,Childrens Services,PAPERSTONE,Childrens Services,42.98,STATIONERY/OFFICE SUPPLIES/PRINTING & WRITING PAP.,2023-24Q3_PC0141
Sandwell Metropolitan Borough Council,https://www.sandwell.gov.uk/performance-spending/government-procurement-cards,11-Jan-2024,Total ASCHWB,AMZNMKTPLACE,Total Adult Social Care,243.25,MISCELLANEOUS AND SPECIALTY RETAIL STORES,2023-24Q3_PC0142
Sandwell Metropolitan Borough Council,https://www.sandwell.gov.uk/performance-spending/government-procurement-cards,11-Jan-2024,Total ASCHWB,Amazon.co.uk 433TJ1IW5,Total Adult Social Care,69.99,DIRECT MARKETING-OTHER DIRECT MARKETERS/NOT ELSEW.,2023-24Q3_PC0143
Sandwell Metropolitan Borough Council,https://www.sandwell.gov.uk/performance-spending/government-procurement-cards,11-Jan-2024,Childrens Services,AMZNMktplace,Childrens Services,10.58,MISCELLANEOUS AND SPECIALTY RETAIL STORES,2023-24Q3_PC0144
Sandwell Metropolitan Borough Council,https://www.sandwell.gov.uk/performance-spending/government-procurement-cards,11-Jan-2024,Childrens Services,SAFETY BUYER  PRODUCTS,Childrens Services,63.52,CONSTRUCTION MATERIALS NOT ELSEWHERE CLASSIFIED,2023-24Q3_PC0145
Sandwell Metropolitan Borough Council,https://www.sandwell.gov.uk/performance-spending/government-procurement-cards,11-Jan-2024,FINANCE (Inc SIU),Amazon.co.uk 7E4HC8KW5,Assistant Chief Executive (Excl SIU),13.14,DIRECT MARKETING-OTHER DIRECT MARKETERS/NOT ELSEW.,2023-24Q3_PC0146
Sandwell Metropolitan Borough Council,https://www.sandwell.gov.uk/performance-spending/government-procurement-cards,11-Jan-2024,Childrens Services,TESCO STORES 2770,Childrens Services,61.13,"GROCERY STORES, SUPERMARKETS",2023-24Q3_PC0147
Sandwell Metropolitan Borough Council,https://www.sandwell.gov.uk/performance-spending/government-procurement-cards,11-Jan-2024,Total Public Health,SAINSBURYS,Public Health,75,"GROCERY STORES, SUPERMARKETS",2023-24Q3_PC0148
Sandwell Metropolitan Borough Council,https://www.sandwell.gov.uk/performance-spending/government-procurement-cards,11-Jan-2024,FINANCE (Inc SIU),AMAZON PRIME MEMBER FE,Assistant Chief Executive (Excl SIU),-114,DIRECT MARKETING-CONTINUITY/SUBSCRIPTION MERCHANTS,2023-24Q3_PC0149
Sandwell Metropolitan Borough Council,https://www.sandwell.gov.uk/performance-spending/government-procurement-cards,11-Jan-2024,Childrens Services,CARTRIDGEPEOPLE.COM,Childrens Services,404.8,STATIONERY/OFFICE SUPPLIES/PRINTING & WRITING PAP.,2023-24Q3_PC0150
Sandwell Metropolitan Borough Council,https://www.sandwell.gov.uk/performance-spending/government-procurement-cards,11-Jan-2024,Total Housing Revenue Account,CURRYS MERRYHILL,Total Housing Revenue Account,28.99,ELECTRONIC SALES,2023-24Q3_PC0151
Sandwell Metropolitan Borough Council,https://www.sandwell.gov.uk/performance-spending/government-procurement-cards,11-Jan-2024,Childrens Services,TIMPSON LTD,Childrens Services,28,MISCELLANEOUS AND SPECIALTY RETAIL STORES,2023-24Q3_PC0152
Sandwell Metropolitan Borough Council,https://www.sandwell.gov.uk/performance-spending/government-procurement-cards,11-Jan-2024,Total Borough Economy,Wm Morrisons Store Pic,Total Adult Social Care,307.07,"GROCERY STORES, SUPERMARKETS",2023-24Q3_PC0153
Sandwell Metropolitan Borough Council,https://www.sandwell.gov.uk/performance-spending/government-procurement-cards,11-Jan-2024,Total Borough Economy,VIKING,Total Adult Social Care,20.93,OFFICE AND COMMERCIAL FURNITURE,2023-24Q3_PC0154
Sandwell Metropolitan Borough Council,https://www.sandwell.gov.uk/performance-spending/government-procurement-cards,12-Jan-2024,Total ASCHWB,WORKWEAR EXPRESS,Total Adult Social Care,145.68,MEN'S/WOMEN'S/CHILDREN'S UNIFORMS/COMMERCIAL CLOTH,2023-24Q3_PC0155
Sandwell Metropolitan Borough Council,https://www.sandwell.gov.uk/performance-spending/government-procurement-cards,12-Jan-2024,Total Borough Economy,SP LIGHTS4FUN,Total Adult Social Care,43.97,MISCELLANEOUS HOUSE FURNISHING SPECIALTY SHOPS,2023-24Q3_PC0156
Sandwell Metropolitan Borough Council,https://www.sandwell.gov.uk/performance-spending/government-procurement-cards,12-Jan-2024,FINANCE (Inc SIU),WWW.OFFICETEAMCONNECT.,Total Adult Social Care,63.7,STATIONERY/OFFICE SUPPLIES/PRINTING & WRITING PAP.,2023-24Q3_PC0157
Sandwell Metropolitan Borough Council,https://www.sandwell.gov.uk/performance-spending/government-procurement-cards,12-Jan-2024,Total Borough Economy,WWW.ARGOS.CO.UK,Total Adult Social Care,39.96,DEPARTMENT STORES,2023-24Q3_PC0158
Sandwell Metropolitan Borough Council,https://www.sandwell.gov.uk/performance-spending/government-procurement-cards,12-Jan-2024,Individual School Budgets With Inclusion,AMZNMKTPLACE,Individual School Budgets With Inclusion,31.94,MISCELLANEOUS AND SPECIALTY RETAIL STORES,2023-24Q3_PC0159
Sandwell Metropolitan Borough Council,https://www.sandwell.gov.uk/performance-spending/government-procurement-cards,12-Jan-2024,Individual School Budgets With Inclusion,AMZNMKTPLACE,Individual School Budgets With Inclusion,14.98,MISCELLANEOUS AND SPECIALTY RETAIL STORES,2023-24Q3_PC0160
Sandwell Metropolitan Borough Council,https://www.sandwell.gov.uk/performance-spending/government-procurement-cards,12-Jan-2024,Individual School Budgets With Inclusion,AMZNMktplace,Individual School Budgets With Inclusion,31.63,MISCELLANEOUS AND SPECIALTY RETAIL STORES,2023-24Q3_PC0161
Sandwell Metropolitan Borough Council,https://www.sandwell.gov.uk/performance-spending/government-procurement-cards,12-Jan-2024,Individual School Budgets With Inclusion,ASDA GEORGE COM LEEDS,Individual School Budgets With Inclusion,-5,"GROCERY STORES, SUPERMARKETS",2023-24Q3_PC0162
Sandwell Metropolitan Borough Council,https://www.sandwell.gov.uk/performance-spending/government-procurement-cards,12-Jan-2024,Total ASCHWB,AMZNMKTPLACE,Total Adult Social Care,37.83,MISCELLANEOUS AND SPECIALTY RETAIL STORES,2023-24Q3_PC0163
Sandwell Metropolitan Borough Council,https://www.sandwell.gov.uk/performance-spending/government-procurement-cards,12-Jan-2024,Total ASCHWB,AMZNMktplace,Total Adult Social Care,41.01,MISCELLANEOUS AND SPECIALTY RETAIL STORES,2023-24Q3_PC0164
Sandwell Metropolitan Borough Council,https://www.sandwell.gov.uk/performance-spending/government-procurement-cards,12-Jan-2024,Total ASCHWB,AMZNMktplace,Total Adult Social Care,7.99,MISCELLANEOUS AND SPECIALTY RETAIL STORES,2023-24Q3_PC0165
Sandwell Metropolitan Borough Council,https://www.sandwell.gov.uk/performance-spending/government-procurement-cards,12-Jan-2024,Total ASCHWB,AMZNMktplace,Total Adult Social Care,89.7,MISCELLANEOUS AND SPECIALTY RETAIL STORES,2023-24Q3_PC0166
Sandwell Metropolitan Borough Council,https://www.sandwell.gov.uk/performance-spending/government-procurement-cards,12-Jan-2024,Total ASCHWB,AMZNMktplace,Total Adult Social Care,27.96,MISCELLANEOUS AND SPECIALTY RETAIL STORES,2023-24Q3_PC0167
Sandwell Metropolitan Borough Council,https://www.sandwell.gov.uk/performance-spending/government-procurement-cards,12-Jan-2024,Total ASCHWB,AMZNMktplace,Total Adult Social Care,5.98,MISCELLANEOUS AND SPECIALTY RETAIL STORES,2023-24Q3_PC0168
Sandwell Metropolitan Borough Council,https://www.sandwell.gov.uk/performance-spending/government-procurement-cards,12-Jan-2024,Total Borough Economy,AMZNMktplace,Total Adult Social Care,62.99,MISCELLANEOUS AND SPECIALTY RETAIL STORES,2023-24Q3_PC0169
Sandwell Metropolitan Borough Council,https://www.sandwell.gov.uk/performance-spending/government-procurement-cards,12-Jan-2024,Total Borough Economy,PAYPAL  awrp205,Total Adult Social Care,420,POI FUNDING TRANSACTIONS,2023-24Q3_PC0170
Sandwell Metropolitan Borough Council,https://www.sandwell.gov.uk/performance-spending/government-procurement-cards,12-Jan-2024,Total Borough Economy,PAYPAL  piano.matt.goo,Total Adult Social Care,240,POI FUNDING TRANSACTIONS,2023-24Q3_PC0171
Sandwell Metropolitan Borough Council,https://www.sandwell.gov.uk/performance-spending/government-procurement-cards,12-Jan-2024,Housing & Assets Total,AMZNMktplace,Corporate Management,8.49,MISCELLANEOUS AND SPECIALTY RETAIL STORES,2023-24Q3_PC0172
Sandwell Metropolitan Borough Council,https://www.sandwell.gov.uk/performance-spending/government-procurement-cards,12-Jan-2024,Childrens Services,AMZNMKTPLACE,Childrens Services,208.9,MISCELLANEOUS AND SPECIALTY RETAIL STORES,2023-24Q3_PC0173
Sandwell Metropolitan Borough Council,https://www.sandwell.gov.uk/performance-spending/government-procurement-cards,12-Jan-2024,Childrens Services,WWW.WMCA.ORG.UK,Childrens Services,10,"TRANSPRTN-SUBRBN & LOCAL COMTR PSNGR, INCL FERRIES",2023-24Q3_PC0174
Sandwell Metropolitan Borough Council,https://www.sandwell.gov.uk/performance-spending/government-procurement-cards,12-Jan-2024,Total Borough Economy,POST OFFICE COUNTER,Total Adult Social Care,20,POSTAL SERVICES-GOVERNMENT ONLY,2023-24Q3_PC0175
Sandwell Metropolitan Borough Council,https://www.sandwell.gov.uk/performance-spending/government-procurement-cards,12-Jan-2024,Individual School Budgets With Inclusion,BUDGENS,Individual School Budgets With Inclusion,3.49,"GROCERY STORES, SUPERMARKETS",2023-24Q3_PC0176
Sandwell Metropolitan Borough Council,https://www.sandwell.gov.uk/performance-spending/government-procurement-cards,12-Jan-2024,Housing & Assets Total,AMZNMKTPLACE,Corporate Management,318.86,MISCELLANEOUS AND SPECIALTY RETAIL STORES,2023-24Q3_PC0177
Sandwell Metropolitan Borough Council,https://www.sandwell.gov.uk/performance-spending/government-procurement-cards,12-Jan-2024,Law & Governance,DARLASTON BUILDERS MER,Assistant Chief Executive (Excl SIU),64.84,"BUILDING MATERIALS, LUMBER STORES",2023-24Q3_PC0178
Sandwell Metropolitan Borough Council,https://www.sandwell.gov.uk/performance-spending/government-procurement-cards,12-Jan-2024,Total Borough Economy,ASDA STORES,Total Adult Social Care,23.53,"GROCERY STORES, SUPERMARKETS",2023-24Q3_PC0179
Sandwell Metropolitan Borough Council,https://www.sandwell.gov.uk/performance-spending/government-procurement-cards,12-Jan-2024,Total Borough Economy,ASDA STORES,Total Adult Social Care,19.75,"GROCERY STORES, SUPERMARKETS",2023-24Q3_PC0180
Sandwell Metropolitan Borough Council,https://www.sandwell.gov.uk/performance-spending/government-procurement-cards,12-Jan-2024,Total Borough Economy,ARGOS OLDBURY,Total Adult Social Care,26.66,DISCOUNT STORES,2023-24Q3_PC0181
Sandwell Metropolitan Borough Council,https://www.sandwell.gov.uk/performance-spending/government-procurement-cards,12-Jan-2024,Total Borough Economy,AMZNMktplace,Dead SeRCOP,27.5,MISCELLANEOUS AND SPECIALTY RETAIL STORES,2023-24Q3_PC0182
Sandwell Metropolitan Borough Council,https://www.sandwell.gov.uk/performance-spending/government-procurement-cards,12-Jan-2024,Childrens Services,POUNDLAND LTD - 1792,Childrens Services,47,DISCOUNT STORES,2023-24Q3_PC0183
Sandwell Metropolitan Borough Council,https://www.sandwell.gov.uk/performance-spending/government-procurement-cards,12-Jan-2024,Childrens Services,ONEBELOW,Childrens Services,51,"GROCERY STORES, SUPERMARKETS",2023-24Q3_PC0184
Sandwell Metropolitan Borough Council,https://www.sandwell.gov.uk/performance-spending/government-procurement-cards,12-Jan-2024,Childrens Services,BOOKTEQ,Childrens Services,204,COMPUTER SOFTWARE STORES,2023-24Q3_PC0185
Sandwell Metropolitan Borough Council,https://www.sandwell.gov.uk/performance-spending/government-procurement-cards,12-Jan-2024,Childrens Services,Amazon.co.uk 2V26J6UG5,Childrens Services,200,DIRECT MARKETING-OTHER DIRECT MARKETERS/NOT ELSEW.,2023-24Q3_PC0186
Sandwell Metropolitan Borough Council,https://www.sandwell.gov.uk/performance-spending/government-procurement-cards,12-Jan-2024,Total Public Health,Domino s Pizza,Public Health,81.15,"EATING PLACES, RESTAURANTS",2023-24Q3_PC0187
Sandwell Metropolitan Borough Council,https://www.sandwell.gov.uk/performance-spending/government-procurement-cards,12-Jan-2024,Total Public Health,SumUp   The Fish & Chi,Public Health,13,"GROCERY STORES, SUPERMARKETS",2023-24Q3_PC0188
Sandwell Metropolitan Borough Council,https://www.sandwell.gov.uk/performance-spending/government-procurement-cards,12-Jan-2024,Total Public Health,QR-CODE-GENERATOR.COM,Public Health,63.89,COMPUTER SOFTWARE STORES,2023-24Q3_PC0189
Sandwell Metropolitan Borough Council,https://www.sandwell.gov.uk/performance-spending/government-procurement-cards,12-Jan-2024,Childrens Services,AMZNMKTPLACE,Childrens Services,183.07,MISCELLANEOUS AND SPECIALTY RETAIL STORES,2023-24Q3_PC0190
Sandwell Metropolitan Borough Council,https://www.sandwell.gov.uk/performance-spending/government-procurement-cards,12-Jan-2024,Total ASCHWB,WWW.OFFICETEAMCONNECT.,Total Adult Social Care,24.62,STATIONERY/OFFICE SUPPLIES/PRINTING & WRITING PAP.,2023-24Q3_PC0191
Sandwell Metropolitan Borough Council,https://www.sandwell.gov.uk/performance-spending/government-procurement-cards,12-Jan-2024,Total Housing Revenue Account,AMZNMKTPLACE,Total Housing Revenue Account,8.49,MISCELLANEOUS AND SPECIALTY RETAIL STORES,2023-24Q3_PC0192
Sandwell Metropolitan Borough Council,https://www.sandwell.gov.uk/performance-spending/government-procurement-cards,12-Jan-2024,Total Borough Economy,Amazon.co.uk NV6KB4825,Total Adult Social Care,12.99,DIRECT MARKETING-OTHER DIRECT MARKETERS/NOT ELSEW.,2023-24Q3_PC0193
Sandwell Metropolitan Borough Council,https://www.sandwell.gov.uk/performance-spending/government-procurement-cards,15-Jan-2024,Total Borough Economy,AMZNBusiness GL17O7YV5,Total Adult Social Care,21.98,MISCELLANEOUS AND SPECIALTY RETAIL STORES,2023-24Q3_PC0194
Sandwell Metropolitan Borough Council,https://www.sandwell.gov.uk/performance-spending/government-procurement-cards,15-Jan-2024,Total Borough Economy,WILLOWBROOK GARDEN CEN,Total Adult Social Care,17.25,LANDSCAPING AND HORTICULTURAL SERVICES,2023-24Q3_PC0195
Sandwell Metropolitan Borough Council,https://www.sandwell.gov.uk/performance-spending/government-procurement-cards,15-Jan-2024,Total Borough Economy,ASDA SUPERSTORE,Total Adult Social Care,13.5,"GROCERY STORES, SUPERMARKETS",2023-24Q3_PC0196
Sandwell Metropolitan Borough Council,https://www.sandwell.gov.uk/performance-spending/government-procurement-cards,15-Jan-2024,Childrens Services,AMZNMktplace,Childrens Services,54.99,MISCELLANEOUS AND SPECIALTY RETAIL STORES,2023-24Q3_PC0197
Sandwell Metropolitan Borough Council,https://www.sandwell.gov.uk/performance-spending/government-procurement-cards,15-Jan-2024,Law & Governance,Amazon Prime QC4GK5095,Assistant Chief Executive (Excl SIU),8.99,DIRECT MARKETING-CONTINUITY/SUBSCRIPTION MERCHANTS,2023-24Q3_PC0198
Sandwell Metropolitan Borough Council,https://www.sandwell.gov.uk/performance-spending/government-procurement-cards,15-Jan-2024,Individual School Budgets With Inclusion,NX Bus Contactless,Individual School Budgets With Inclusion,6.8,BUS LINES,2023-24Q3_PC0199
Sandwell Metropolitan Borough Council,https://www.sandwell.gov.uk/performance-spending/government-procurement-cards,15-Jan-2024,Total ASCHWB,AMZNMKTPLACE,Total Adult Social Care,28.99,MISCELLANEOUS AND SPECIALTY RETAIL STORES,2023-24Q3_PC0200
Sandwell Metropolitan Borough Council,https://www.sandwell.gov.uk/performance-spending/government-procurement-cards,15-Jan-2024,Individual School Budgets With Inclusion,AMZNMktplace,Individual School Budgets With Inclusion,12.98,MISCELLANEOUS AND SPECIALTY RETAIL STORES,2023-24Q3_PC0201
Sandwell Metropolitan Borough Council,https://www.sandwell.gov.uk/performance-spending/government-procurement-cards,15-Jan-2024,Regeneration & Growth,AMZNMktplace,Regeneration And The Economy,56.5,MISCELLANEOUS AND SPECIALTY RETAIL STORES,2023-24Q3_PC0202
Sandwell Metropolitan Borough Council,https://www.sandwell.gov.uk/performance-spending/government-procurement-cards,15-Jan-2024,Total ASCHWB,ICELAND FOODS,Total Adult Social Care,81.25,"GROCERY STORES, SUPERMARKETS",2023-24Q3_PC0203
Sandwell Metropolitan Borough Council,https://www.sandwell.gov.uk/performance-spending/government-procurement-cards,15-Jan-2024,Total Borough Economy,AMZNMktplace,Total Adult Social Care,26.95,MISCELLANEOUS AND SPECIALTY RETAIL STORES,2023-24Q3_PC0204
Sandwell Metropolitan Borough Council,https://www.sandwell.gov.uk/performance-spending/government-procurement-cards,15-Jan-2024,Individual School Budgets With Inclusion,ASDA STORE 4759,Individual School Budgets With Inclusion,2.27,"GROCERY STORES, SUPERMARKETS",2023-24Q3_PC0205
Sandwell Metropolitan Borough Council,https://www.sandwell.gov.uk/performance-spending/government-procurement-cards,15-Jan-2024,Law & Governance,FUTURE GARMENTS,Assistant Chief Executive (Excl SIU),41.11,MEN'S/WOMEN'S/CHILDREN'S UNIFORMS/COMMERCIAL CLOTH,2023-24Q3_PC0206
Sandwell Metropolitan Borough Council,https://www.sandwell.gov.uk/performance-spending/government-procurement-cards,15-Jan-2024,Law & Governance,B&M 744 OLDBURY,Assistant Chief Executive (Excl SIU),21.46,MISCELLANEOUS GENERAL MERCHANDISE,2023-24Q3_PC0207
Sandwell Metropolitan Borough Council,https://www.sandwell.gov.uk/performance-spending/government-procurement-cards,15-Jan-2024,Law & Governance,PAYPAL  ABSOLUTEINT,Assistant Chief Executive (Excl SIU),228,"CONSULTING, MANAGEMENT, AND PUBLIC RELATIONS SVCS",2023-24Q3_PC0208
Sandwell Metropolitan Borough Council,https://www.sandwell.gov.uk/performance-spending/government-procurement-cards,15-Jan-2024,Law & Governance,SumUp   John Somervill,Assistant Chief Executive (Excl SIU),14,MISCELLANEOUS GENERAL MERCHANDISE,2023-24Q3_PC0209
Sandwell Metropolitan Borough Council,https://www.sandwell.gov.uk/performance-spending/government-procurement-cards,15-Jan-2024,Regeneration & Growth,AMZNMktplace,Regeneration And The Economy,12.27,MISCELLANEOUS AND SPECIALTY RETAIL STORES,2023-24Q3_PC0210
Sandwell Metropolitan Borough Council,https://www.sandwell.gov.uk/performance-spending/government-procurement-cards,15-Jan-2024,Regeneration & Growth,AMZNMktplace,Regeneration And The Economy,28.25,MISCELLANEOUS AND SPECIALTY RETAIL STORES,2023-24Q3_PC0211
Sandwell Metropolitan Borough Council,https://www.sandwell.gov.uk/performance-spending/government-procurement-cards,15-Jan-2024,Total ASCHWB,AMZNMKTPLACE,Total Adult Social Care,22.98,MISCELLANEOUS AND SPECIALTY RETAIL STORES,2023-24Q3_PC0212
Sandwell Metropolitan Borough Council,https://www.sandwell.gov.uk/performance-spending/government-procurement-cards,15-Jan-2024,Total Borough Economy,WWW.OFFICETEAMCONNECT.,Total Adult Social Care,34.98,STATIONERY/OFFICE SUPPLIES/PRINTING & WRITING PAP.,2023-24Q3_PC0213
Sandwell Metropolitan Borough Council,https://www.sandwell.gov.uk/performance-spending/government-procurement-cards,15-Jan-2024,Total Borough Economy,EB  INTRODUCTION TO PR,Total Adult Social Care,180,BUSINESS SERVICES-NOT ELSEWHERE CLASSIFIED,2023-24Q3_PC0214
Sandwell Metropolitan Borough Council,https://www.sandwell.gov.uk/performance-spending/government-procurement-cards,15-Jan-2024,Total Borough Economy,TIMPSON LTD,Total Adult Social Care,20,MISCELLANEOUS AND SPECIALTY RETAIL STORES,2023-24Q3_PC0215
Sandwell Metropolitan Borough Council,https://www.sandwell.gov.uk/performance-spending/government-procurement-cards,15-Jan-2024,Childrens Services,AMZNMktplace,Childrens Services,28.44,MISCELLANEOUS AND SPECIALTY RETAIL STORES,2023-24Q3_PC0216
Sandwell Metropolitan Borough Council,https://www.sandwell.gov.uk/performance-spending/government-procurement-cards,15-Jan-2024,Childrens Services,AMZNMktplace,Childrens Services,49.56,MISCELLANEOUS AND SPECIALTY RETAIL STORES,2023-24Q3_PC0217
Sandwell Metropolitan Borough Council,https://www.sandwell.gov.uk/performance-spending/government-procurement-cards,15-Jan-2024,Childrens Services,HOME BARGAINS,Childrens Services,17.94,MISCELLANEOUS GENERAL MERCHANDISE,2023-24Q3_PC0218
Sandwell Metropolitan Borough Council,https://www.sandwell.gov.uk/performance-spending/government-procurement-cards,15-Jan-2024,Total Public Health,onlineprinters.co.uk,Public Health,226.36,MISCELLANEOUS PUBLISHING AND PRINTING,2023-24Q3_PC0219
Sandwell Metropolitan Borough Council,https://www.sandwell.gov.uk/performance-spending/government-procurement-cards,15-Jan-2024,FINANCE (Inc SIU),SHUTTERSTOCK IRELAND L,Assistant Chief Executive (Excl SIU),110.39,"COMMERCIAL ART, GRAPHICS, PHOTOGRAPHY",2023-24Q3_PC0220
Sandwell Metropolitan Borough Council,https://www.sandwell.gov.uk/performance-spending/government-procurement-cards,15-Jan-2024,Total Housing Revenue Account,MOJ OSPT ECOM,Total Housing Revenue Account,-40,GOVERNMENT SERVICES-NOT ELSEWHERE CLASSIFIED,2023-24Q3_PC0221
Sandwell Metropolitan Borough Council,https://www.sandwell.gov.uk/performance-spending/government-procurement-cards,15-Jan-2024,Individual School Budgets With Inclusion,APPLE.COM/BILL,Individual School Budgets With Inclusion,35.99,DIGITAL GOODS MULTI CATEGORY,2023-24Q3_PC0222
Sandwell Metropolitan Borough Council,https://www.sandwell.gov.uk/performance-spending/government-procurement-cards,15-Jan-2024,Total Housing Revenue Account,AMAZON  026-5034761-94,Total Housing Revenue Account,124.63,MISCELLANEOUS GENERAL MERCHANDISE,2023-24Q3_PC0223
Sandwell Metropolitan Borough Council,https://www.sandwell.gov.uk/performance-spending/government-procurement-cards,15-Jan-2024,Regeneration & Growth,AMZNMKTPLACE,Regeneration And The Economy,45.63,MISCELLANEOUS AND SPECIALTY RETAIL STORES,2023-24Q3_PC0224
Sandwell Metropolitan Borough Council,https://www.sandwell.gov.uk/performance-spending/government-procurement-cards,15-Jan-2024,Regeneration & Growth,AMZNMKTPLACE,Regeneration And The Economy,10.52,MISCELLANEOUS AND SPECIALTY RETAIL STORES,2023-24Q3_PC0225
Sandwell Metropolitan Borough Council,https://www.sandwell.gov.uk/performance-spending/government-procurement-cards,15-Jan-2024,Assistant Chief Executive,AMZNMktplace,Neighbourhoods,28.97,MISCELLANEOUS AND SPECIALTY RETAIL STORES,2023-24Q3_PC0226
Sandwell Metropolitan Borough Council,https://www.sandwell.gov.uk/performance-spending/government-procurement-cards,15-Jan-2024,Assistant Chief Executive,AMZNMktplace,Neighbourhoods,22.97,MISCELLANEOUS AND SPECIALTY RETAIL STORES,2023-24Q3_PC0227
Sandwell Metropolitan Borough Council,https://www.sandwell.gov.uk/performance-spending/government-procurement-cards,16-Jan-2024,Regeneration & Growth,AMZNMktplace,Regeneration And The Economy,30.44,MISCELLANEOUS AND SPECIALTY RETAIL STORES,2023-24Q3_PC0228
Sandwell Metropolitan Borough Council,https://www.sandwell.gov.uk/performance-spending/government-procurement-cards,16-Jan-2024,Regeneration & Growth,Trainline,Regeneration And The Economy,9.57,PASSENGER RAILWAYS,2023-24Q3_PC0229
Sandwell Metropolitan Borough Council,https://www.sandwell.gov.uk/performance-spending/government-procurement-cards,16-Jan-2024,Childrens Services,www.cotswoldoutdoor.co,Childrens Services,168,MEN'S AND WOMEN'S CLOTHING STORES,2023-24Q3_PC0230
Sandwell Metropolitan Borough Council,https://www.sandwell.gov.uk/performance-spending/government-procurement-cards,16-Jan-2024,Individual School Budgets With Inclusion,ASDA GROCERIES ONLINE,Individual School Budgets With Inclusion,31.4,"GROCERY STORES, SUPERMARKETS",2023-24Q3_PC0231
Sandwell Metropolitan Borough Council,https://www.sandwell.gov.uk/performance-spending/government-procurement-cards,16-Jan-2024,Individual School Budgets With Inclusion,ASDA GROCERIES ONLINE,Individual School Budgets With Inclusion,-2.25,"GROCERY STORES, SUPERMARKETS",2023-24Q3_PC0232
Sandwell Metropolitan Borough Council,https://www.sandwell.gov.uk/performance-spending/government-procurement-cards,16-Jan-2024,Childrens Services,SPECIALIST CRAFTS LTD,Childrens Services,780.43,"ARTIST SUPPLY STORES, CRAFT SHOPS",2023-24Q3_PC0233
Sandwell Metropolitan Borough Council,https://www.sandwell.gov.uk/performance-spending/government-procurement-cards,16-Jan-2024,Childrens Services,Spotify Limited,Childrens Services,10.99,"CABLE, SATELLITE, OTHER PAY TELEVISION, RADIO SVCS",2023-24Q3_PC0234
Sandwell Metropolitan Borough Council,https://www.sandwell.gov.uk/performance-spending/government-procurement-cards,16-Jan-2024,Total ASCHWB,NHS SUPPLYCHAIN PORTAL,Total Adult Social Care,382.2,"HEALTH PRACTITIONERS, MEDICAL SRVCS-NOT ELSEWHERE",2023-24Q3_PC0235
Sandwell Metropolitan Borough Council,https://www.sandwell.gov.uk/performance-spending/government-procurement-cards,16-Jan-2024,Total ASCHWB,WWW.OFFICETEAMCONNECT.,Total Adult Social Care,93.8,STATIONERY/OFFICE SUPPLIES/PRINTING & WRITING PAP.,2023-24Q3_PC0236
Sandwell Metropolitan Borough Council,https://www.sandwell.gov.uk/performance-spending/government-procurement-cards,16-Jan-2024,Total Borough Economy,Amazon.co.uk DF3HH90R5,Total Adult Social Care,26.05,DIRECT MARKETING-OTHER DIRECT MARKETERS/NOT ELSEW.,2023-24Q3_PC0237
Sandwell Metropolitan Borough Council,https://www.sandwell.gov.uk/performance-spending/government-procurement-cards,16-Jan-2024,Total Housing Revenue Account,Amazon.co.uk 2V0YE74E5,Total Housing Revenue Account,12.49,DIRECT MARKETING-OTHER DIRECT MARKETERS/NOT ELSEW.,2023-24Q3_PC0238
Sandwell Metropolitan Borough Council,https://www.sandwell.gov.uk/performance-spending/government-procurement-cards,16-Jan-2024,Housing & Assets Total,WWW.MENZIESPRINT.CO.UK,Total Adult Social Care,130,MISCELLANEOUS PUBLISHING AND PRINTING,2023-24Q3_PC0239
Sandwell Metropolitan Borough Council,https://www.sandwell.gov.uk/performance-spending/government-procurement-cards,16-Jan-2024,Regeneration & Growth,AMZNMktplace,Regeneration And The Economy,29.98,MISCELLANEOUS AND SPECIALTY RETAIL STORES,2023-24Q3_PC0240
Sandwell Metropolitan Borough Council,https://www.sandwell.gov.uk/performance-spending/government-procurement-cards,16-Jan-2024,Childrens Services,INSTITUTE FOR OUTDOOR,Childrens Services,136.5,"ORGANIZATIONS, MEMBERSHIP-NOT ELSEWHERE CLASSIFIED",2023-24Q3_PC0241
Sandwell Metropolitan Borough Council,https://www.sandwell.gov.uk/performance-spending/government-procurement-cards,16-Jan-2024,Childrens Services,INSTITUTE FOR OUTDOOR,Childrens Services,136.5,"ORGANIZATIONS, MEMBERSHIP-NOT ELSEWHERE CLASSIFIED",2023-24Q3_PC0242
Sandwell Metropolitan Borough Council,https://www.sandwell.gov.uk/performance-spending/government-procurement-cards,16-Jan-2024,Childrens Services,LOMO WATERSPORT,Childrens Services,110.7,SPORTING GOODS STORES,2023-24Q3_PC0243
Sandwell Metropolitan Borough Council,https://www.sandwell.gov.uk/performance-spending/government-procurement-cards,16-Jan-2024,Individual School Budgets With Inclusion,ASDA GROCERIES ONLINE,Individual School Budgets With Inclusion,41.03,"GROCERY STORES, SUPERMARKETS",2023-24Q3_PC0244
Sandwell Metropolitan Borough Council,https://www.sandwell.gov.uk/performance-spending/government-procurement-cards,16-Jan-2024,Childrens Services,POUNDLAND LTD - 2528,Childrens Services,6,DISCOUNT STORES,2023-24Q3_PC0245
Sandwell Metropolitan Borough Council,https://www.sandwell.gov.uk/performance-spending/government-procurement-cards,16-Jan-2024,Total Borough Economy,WWW.ARGOS.CO.UK,Total Adult Social Care,79.2,DEPARTMENT STORES,2023-24Q3_PC0246
Sandwell Metropolitan Borough Council,https://www.sandwell.gov.uk/performance-spending/government-procurement-cards,16-Jan-2024,Childrens Services,LIDL GB BANGOR,Childrens Services,89.13,"GROCERY STORES, SUPERMARKETS",2023-24Q3_PC0247
Sandwell Metropolitan Borough Council,https://www.sandwell.gov.uk/performance-spending/government-procurement-cards,16-Jan-2024,Total Borough Economy,AMZNMKTPLACE,Total Adult Social Care,32.55,MISCELLANEOUS AND SPECIALTY RETAIL STORES,2023-24Q3_PC0248
Sandwell Metropolitan Borough Council,https://www.sandwell.gov.uk/performance-spending/government-procurement-cards,16-Jan-2024,Total Borough Economy,AMZNMktplace,Total Adult Social Care,-37.54,MISCELLANEOUS AND SPECIALTY RETAIL STORES,2023-24Q3_PC0249
Sandwell Metropolitan Borough Council,https://www.sandwell.gov.uk/performance-spending/government-procurement-cards,16-Jan-2024,Total Borough Economy,Amazon.co.uk 2O95Y31Q5,Total Adult Social Care,22.99,DIRECT MARKETING-OTHER DIRECT MARKETERS/NOT ELSEW.,2023-24Q3_PC0250
Sandwell Metropolitan Borough Council,https://www.sandwell.gov.uk/performance-spending/government-procurement-cards,16-Jan-2024,Childrens Services,TESCO STORES 2770,Childrens Services,112.96,"GROCERY STORES, SUPERMARKETS",2023-24Q3_PC0251
Sandwell Metropolitan Borough Council,https://www.sandwell.gov.uk/performance-spending/government-procurement-cards,16-Jan-2024,Total Borough Economy,AMZNMKTPLACE,Total Adult Social Care,14.97,MISCELLANEOUS AND SPECIALTY RETAIL STORES,2023-24Q3_PC0252
Sandwell Metropolitan Borough Council,https://www.sandwell.gov.uk/performance-spending/government-procurement-cards,16-Jan-2024,Childrens Services,AMZNMktplace,Childrens Services,27.79,MISCELLANEOUS AND SPECIALTY RETAIL STORES,2023-24Q3_PC0253
Sandwell Metropolitan Borough Council,https://www.sandwell.gov.uk/performance-spending/government-procurement-cards,16-Jan-2024,Childrens Services,AMZNMktplace,Childrens Services,23.98,MISCELLANEOUS AND SPECIALTY RETAIL STORES,2023-24Q3_PC0254
Sandwell Metropolitan Borough Council,https://www.sandwell.gov.uk/performance-spending/government-procurement-cards,16-Jan-2024,Total Housing Revenue Account,Amazon.co.uk GE3IO0ZP5,Total Housing Revenue Account,12.49,DIRECT MARKETING-OTHER DIRECT MARKETERS/NOT ELSEW.,2023-24Q3_PC0255
Sandwell Metropolitan Borough Council,https://www.sandwell.gov.uk/performance-spending/government-procurement-cards,16-Jan-2024,Childrens Services,IKEA LTD 142 BIRMINGHA,Childrens Services,125,"EQUIP, FURNITURE, HOME FURNSHNGS STRS (EXCPT APPL)",2023-24Q3_PC0256
Sandwell Metropolitan Borough Council,https://www.sandwell.gov.uk/performance-spending/government-procurement-cards,16-Jan-2024,Childrens Services,AMZNMktplace,Childrens Services,14.67,MISCELLANEOUS AND SPECIALTY RETAIL STORES,2023-24Q3_PC0257
Sandwell Metropolitan Borough Council,https://www.sandwell.gov.uk/performance-spending/government-procurement-cards,17-Jan-2024,Total Borough Economy,ADOBE SYSTEMS SOFTWARE,Dead SeRCOP,19.97,COMPUTER SOFTWARE STORES,2023-24Q3_PC0258
Sandwell Metropolitan Borough Council,https://www.sandwell.gov.uk/performance-spending/government-procurement-cards,17-Jan-2024,Total ASCHWB,WWW.OFFICETEAMCONNECT.,Total Adult Social Care,60.9,STATIONERY/OFFICE SUPPLIES/PRINTING & WRITING PAP.,2023-24Q3_PC0259
Sandwell Metropolitan Borough Council,https://www.sandwell.gov.uk/performance-spending/government-procurement-cards,17-Jan-2024,Total ASCHWB,BRITISH GAS,Total Adult Social Care,244.77,"UTLTS-ELCTRC, GAS, HEATING OIL, SANITARY, WATER",2023-24Q3_PC0260
Sandwell Metropolitan Borough Council,https://www.sandwell.gov.uk/performance-spending/government-procurement-cards,17-Jan-2024,Total ASCHWB,ICELAND FOODS,Total Adult Social Care,36.45,"GROCERY STORES, SUPERMARKETS",2023-24Q3_PC0261
Sandwell Metropolitan Borough Council,https://www.sandwell.gov.uk/performance-spending/government-procurement-cards,17-Jan-2024,Total ASCHWB,ICELAND FOODS,Total Adult Social Care,-1.5,"GROCERY STORES, SUPERMARKETS",2023-24Q3_PC0262
Sandwell Metropolitan Borough Council,https://www.sandwell.gov.uk/performance-spending/government-procurement-cards,17-Jan-2024,Law & Governance,AMZNMktplace,Assistant Chief Executive (Excl SIU),94.86,MISCELLANEOUS AND SPECIALTY RETAIL STORES,2023-24Q3_PC0263
Sandwell Metropolitan Borough Council,https://www.sandwell.gov.uk/performance-spending/government-procurement-cards,17-Jan-2024,Assistant Chief Executive,AMZNMktplace,Assistant Chief Executive (Excl SIU),24.98,MISCELLANEOUS AND SPECIALTY RETAIL STORES,2023-24Q3_PC0264
Sandwell Metropolitan Borough Council,https://www.sandwell.gov.uk/performance-spending/government-procurement-cards,17-Jan-2024,Assistant Chief Executive,AMZNMktplace,Assistant Chief Executive (Excl SIU),24.98,MISCELLANEOUS AND SPECIALTY RETAIL STORES,2023-24Q3_PC0265
Sandwell Metropolitan Borough Council,https://www.sandwell.gov.uk/performance-spending/government-procurement-cards,17-Jan-2024,Individual School Budgets With Inclusion,CLR cater4you.co.uk,Individual School Budgets With Inclusion,104.34,MISCELLANEOUS AND SPECIALTY RETAIL STORES,2023-24Q3_PC0266
Sandwell Metropolitan Borough Council,https://www.sandwell.gov.uk/performance-spending/government-procurement-cards,17-Jan-2024,Childrens Services,LOTC.ORG.UK,Childrens Services,480,SCHOOLS & EDUCATIONAL SVC-NOT ELSEWHERE CLASSIFIED,2023-24Q3_PC0267
Sandwell Metropolitan Borough Council,https://www.sandwell.gov.uk/performance-spending/government-procurement-cards,17-Jan-2024,Regeneration & Growth,AMZNMktplace,Regeneration And The Economy,29.77,MISCELLANEOUS AND SPECIALTY RETAIL STORES,2023-24Q3_PC0268
Sandwell Metropolitan Borough Council,https://www.sandwell.gov.uk/performance-spending/government-procurement-cards,17-Jan-2024,Total ASCHWB,Amazon.co.uk YQ6I23LZ5,Total Adult Social Care,56.96,DIRECT MARKETING-OTHER DIRECT MARKETERS/NOT ELSEW.,2023-24Q3_PC0269
Sandwell Metropolitan Borough Council,https://www.sandwell.gov.uk/performance-spending/government-procurement-cards,17-Jan-2024,Total ASCHWB,MYSYCOUS - UTILITIES,Total Adult Social Care,24.98,COMPUTER SOFTWARE STORES,2023-24Q3_PC0270
Sandwell Metropolitan Borough Council,https://www.sandwell.gov.uk/performance-spending/government-procurement-cards,17-Jan-2024,Total ASCHWB,MYSYCOUS - UTILITIES,Total Adult Social Care,35.75,COMPUTER SOFTWARE STORES,2023-24Q3_PC0271
Sandwell Metropolitan Borough Council,https://www.sandwell.gov.uk/performance-spending/government-procurement-cards,17-Jan-2024,Total ASCHWB,MYSYCOUS - UTILITIES,Total Adult Social Care,20.92,COMPUTER SOFTWARE STORES,2023-24Q3_PC0272
Sandwell Metropolitan Borough Council,https://www.sandwell.gov.uk/performance-spending/government-procurement-cards,17-Jan-2024,Regeneration & Growth,AMZNMKTPLACE,Regeneration And The Economy,18.93,MISCELLANEOUS AND SPECIALTY RETAIL STORES,2023-24Q3_PC0273
Sandwell Metropolitan Borough Council,https://www.sandwell.gov.uk/performance-spending/government-procurement-cards,17-Jan-2024,Regeneration & Growth,Amazon.co.uk 9P7SR7TO5,Regeneration And The Economy,73.37,DIRECT MARKETING-OTHER DIRECT MARKETERS/NOT ELSEW.,2023-24Q3_PC0274
Sandwell Metropolitan Borough Council,https://www.sandwell.gov.uk/performance-spending/government-procurement-cards,17-Jan-2024,Childrens Services,WWW.WMCA.ORG.UK,Childrens Services,10,"TRANSPRTN-SUBRBN & LOCAL COMTR PSNGR, INCL FERRIES",2023-24Q3_PC0275
Sandwell Metropolitan Borough Council,https://www.sandwell.gov.uk/performance-spending/government-procurement-cards,17-Jan-2024,Individual School Budgets With Inclusion,MORRISONS DAILY,Individual School Budgets With Inclusion,3.1,"GROCERY STORES, SUPERMARKETS",2023-24Q3_PC0276
Sandwell Metropolitan Borough Council,https://www.sandwell.gov.uk/performance-spending/government-procurement-cards,17-Jan-2024,Childrens Services,AMZNMKTPLACE,Childrens Services,9.49,MISCELLANEOUS AND SPECIALTY RETAIL STORES,2023-24Q3_PC0277
Sandwell Metropolitan Borough Council,https://www.sandwell.gov.uk/performance-spending/government-procurement-cards,17-Jan-2024,Law & Governance,CHARTERED INSTITUTE OF,Assistant Chief Executive (Excl SIU),367,"SCHOOLS, BUSINESS AND SECRETARIAL",2023-24Q3_PC0278
Sandwell Metropolitan Borough Council,https://www.sandwell.gov.uk/performance-spending/government-procurement-cards,17-Jan-2024,Childrens Services,APPLE SNAPS,Childrens Services,250,CHILDREN'S AND INFANT'S WEAR STORES,2023-24Q3_PC0279
Sandwell Metropolitan Borough Council,https://www.sandwell.gov.uk/performance-spending/government-procurement-cards,17-Jan-2024,Childrens Services,APPLE SNAPS,Childrens Services,250,CHILDREN'S AND INFANT'S WEAR STORES,2023-24Q3_PC0280
Sandwell Metropolitan Borough Council,https://www.sandwell.gov.uk/performance-spending/government-procurement-cards,17-Jan-2024,Childrens Services,ROYAL MAIL GROUP LTD,Childrens Services,4.7,POSTAL SERVICES-GOVERNMENT ONLY,2023-24Q3_PC0281
Sandwell Metropolitan Borough Council,https://www.sandwell.gov.uk/performance-spending/government-procurement-cards,17-Jan-2024,Childrens Services,AMZNMktplace,Childrens Services,16,MISCELLANEOUS AND SPECIALTY RETAIL STORES,2023-24Q3_PC0282
Sandwell Metropolitan Borough Council,https://www.sandwell.gov.uk/performance-spending/government-procurement-cards,17-Jan-2024,Childrens Services,AMZNMktplace,Childrens Services,20.8,MISCELLANEOUS AND SPECIALTY RETAIL STORES,2023-24Q3_PC0283
Sandwell Metropolitan Borough Council,https://www.sandwell.gov.uk/performance-spending/government-procurement-cards,17-Jan-2024,Childrens Services,AMZNMktplace,Childrens Services,8.25,MISCELLANEOUS AND SPECIALTY RETAIL STORES,2023-24Q3_PC0284
Sandwell Metropolitan Borough Council,https://www.sandwell.gov.uk/performance-spending/government-procurement-cards,17-Jan-2024,Childrens Services,RONTEC DUDLEY PORT,Childrens Services,1.55,SERVICE STATIONS WITH OR WITHOUT ANCILLARY SERVICE,2023-24Q3_PC0285
Sandwell Metropolitan Borough Council,https://www.sandwell.gov.uk/performance-spending/government-procurement-cards,17-Jan-2024,Total ASCHWB,Amazon.co.uk 456CA6M45,Total Adult Social Care,28.02,DIRECT MARKETING-OTHER DIRECT MARKETERS/NOT ELSEW.,2023-24Q3_PC0286
Sandwell Metropolitan Borough Council,https://www.sandwell.gov.uk/performance-spending/government-procurement-cards,17-Jan-2024,Total Public Health,SAINSBURYS S/MKTS,Public Health,2,"GROCERY STORES, SUPERMARKETS",2023-24Q3_PC0287
Sandwell Metropolitan Borough Council,https://www.sandwell.gov.uk/performance-spending/government-procurement-cards,17-Jan-2024,Total Public Health,SAINSBURYS S/MKTS,Public Health,1.5,"GROCERY STORES, SUPERMARKETS",2023-24Q3_PC0288
Sandwell Metropolitan Borough Council,https://www.sandwell.gov.uk/performance-spending/government-procurement-cards,17-Jan-2024,Total Public Health,SAINSBURYS S/MKTS,Public Health,1.5,"GROCERY STORES, SUPERMARKETS",2023-24Q3_PC0289
Sandwell Metropolitan Borough Council,https://www.sandwell.gov.uk/performance-spending/government-procurement-cards,17-Jan-2024,Total Public Health,SAINSBURYS S/MKTS,Public Health,0.3,"GROCERY STORES, SUPERMARKETS",2023-24Q3_PC0290
Sandwell Metropolitan Borough Council,https://www.sandwell.gov.uk/performance-spending/government-procurement-cards,17-Jan-2024,Total Public Health,SAINSBURYS S/MKTS,Public Health,2.5,"GROCERY STORES, SUPERMARKETS",2023-24Q3_PC0291
Sandwell Metropolitan Borough Council,https://www.sandwell.gov.uk/performance-spending/government-procurement-cards,17-Jan-2024,Total Housing Revenue Account,MOJ OSPT ECOM,Total Housing Revenue Account,40,GOVERNMENT SERVICES-NOT ELSEWHERE CLASSIFIED,2023-24Q3_PC0292
Sandwell Metropolitan Borough Council,https://www.sandwell.gov.uk/performance-spending/government-procurement-cards,17-Jan-2024,Total Housing Revenue Account,MOJ OSPT ECOM,Total Housing Revenue Account,40,GOVERNMENT SERVICES-NOT ELSEWHERE CLASSIFIED,2023-24Q3_PC0293
Sandwell Metropolitan Borough Council,https://www.sandwell.gov.uk/performance-spending/government-procurement-cards,17-Jan-2024,Total Housing Revenue Account,MOJ OSPT ECOM,Total Housing Revenue Account,40,GOVERNMENT SERVICES-NOT ELSEWHERE CLASSIFIED,2023-24Q3_PC0294
Sandwell Metropolitan Borough Council,https://www.sandwell.gov.uk/performance-spending/government-procurement-cards,17-Jan-2024,Total Housing Revenue Account,MOJ OSPT ECOM,Total Housing Revenue Account,40,GOVERNMENT SERVICES-NOT ELSEWHERE CLASSIFIED,2023-24Q3_PC0295
Sandwell Metropolitan Borough Council,https://www.sandwell.gov.uk/performance-spending/government-procurement-cards,17-Jan-2024,Total Housing Revenue Account,MOJ OSPT ECOM,Total Housing Revenue Account,40,GOVERNMENT SERVICES-NOT ELSEWHERE CLASSIFIED,2023-24Q3_PC0296
Sandwell Metropolitan Borough Council,https://www.sandwell.gov.uk/performance-spending/government-procurement-cards,17-Jan-2024,Total Housing Revenue Account,MOJ OSPT ECOM,Total Housing Revenue Account,40,GOVERNMENT SERVICES-NOT ELSEWHERE CLASSIFIED,2023-24Q3_PC0297
Sandwell Metropolitan Borough Council,https://www.sandwell.gov.uk/performance-spending/government-procurement-cards,17-Jan-2024,Total Housing Revenue Account,MOJ OSPT ECOM,Total Housing Revenue Account,40,GOVERNMENT SERVICES-NOT ELSEWHERE CLASSIFIED,2023-24Q3_PC0298
Sandwell Metropolitan Borough Council,https://www.sandwell.gov.uk/performance-spending/government-procurement-cards,17-Jan-2024,Total Housing Revenue Account,MOJ OSPT ECOM,Total Housing Revenue Account,40,GOVERNMENT SERVICES-NOT ELSEWHERE CLASSIFIED,2023-24Q3_PC0299
Sandwell Metropolitan Borough Council,https://www.sandwell.gov.uk/performance-spending/government-procurement-cards,17-Jan-2024,Total Housing Revenue Account,MOJ OSPT ECOM,Total Housing Revenue Account,40,GOVERNMENT SERVICES-NOT ELSEWHERE CLASSIFIED,2023-24Q3_PC0300
Sandwell Metropolitan Borough Council,https://www.sandwell.gov.uk/performance-spending/government-procurement-cards,17-Jan-2024,Total Housing Revenue Account,MOJ OSPT ECOM,Total Housing Revenue Account,40,GOVERNMENT SERVICES-NOT ELSEWHERE CLASSIFIED,2023-24Q3_PC0301
Sandwell Metropolitan Borough Council,https://www.sandwell.gov.uk/performance-spending/government-procurement-cards,17-Jan-2024,Total Housing Revenue Account,MOJ OSPT ECOM,Total Housing Revenue Account,40,GOVERNMENT SERVICES-NOT ELSEWHERE CLASSIFIED,2023-24Q3_PC0302
Sandwell Metropolitan Borough Council,https://www.sandwell.gov.uk/performance-spending/government-procurement-cards,17-Jan-2024,Total Housing Revenue Account,MOJ OSPT ECOM,Total Housing Revenue Account,40,GOVERNMENT SERVICES-NOT ELSEWHERE CLASSIFIED,2023-24Q3_PC0303
Sandwell Metropolitan Borough Council,https://www.sandwell.gov.uk/performance-spending/government-procurement-cards,17-Jan-2024,Childrens Services,AMZNMktplace,Childrens Services,195.97,MISCELLANEOUS AND SPECIALTY RETAIL STORES,2023-24Q3_PC0304
Sandwell Metropolitan Borough Council,https://www.sandwell.gov.uk/performance-spending/government-procurement-cards,17-Jan-2024,Childrens Services,B&Q MARKETPLACE,Childrens Services,308,"BUILDING MATERIALS, LUMBER STORES",2023-24Q3_PC0305
Sandwell Metropolitan Borough Council,https://www.sandwell.gov.uk/performance-spending/government-procurement-cards,17-Jan-2024,Childrens Services,B&Q MARKETPLACE,Childrens Services,308,"BUILDING MATERIALS, LUMBER STORES",2023-24Q3_PC0306
Sandwell Metropolitan Borough Council,https://www.sandwell.gov.uk/performance-spending/government-procurement-cards,17-Jan-2024,Total Housing Revenue Account,GEN REGISTER OFFICE,Total Housing Revenue Account,38,GOVERNMENT SERVICES-NOT ELSEWHERE CLASSIFIED,2023-24Q3_PC0307
Sandwell Metropolitan Borough Council,https://www.sandwell.gov.uk/performance-spending/government-procurement-cards,17-Jan-2024,Childrens Services,ASDA GROCERIES ONLINE,Childrens Services,96.03,"GROCERY STORES, SUPERMARKETS",2023-24Q3_PC0308
Sandwell Metropolitan Borough Council,https://www.sandwell.gov.uk/performance-spending/government-procurement-cards,17-Jan-2024,Total Borough Economy,Amazon.co.uk Q976039M5,Total Adult Social Care,10.99,DIRECT MARKETING-OTHER DIRECT MARKETERS/NOT ELSEW.,2023-24Q3_PC0309
Sandwell Metropolitan Borough Council,https://www.sandwell.gov.uk/performance-spending/government-procurement-cards,17-Jan-2024,Childrens Services,AMZNMktplace,Childrens Services,24.35,MISCELLANEOUS AND SPECIALTY RETAIL STORES,2023-24Q3_PC0310
Sandwell Metropolitan Borough Council,https://www.sandwell.gov.uk/performance-spending/government-procurement-cards,18-Jan-2024,Total ASCHWB,DVSA,Total Adult Social Care,26,GOVERNMENT SERVICES-NOT ELSEWHERE CLASSIFIED,2023-24Q3_PC0311
Sandwell Metropolitan Borough Council,https://www.sandwell.gov.uk/performance-spending/government-procurement-cards,18-Jan-2024,Total ASCHWB,DVSA,Total Adult Social Care,11,GOVERNMENT SERVICES-NOT ELSEWHERE CLASSIFIED,2023-24Q3_PC0312
Sandwell Metropolitan Borough Council,https://www.sandwell.gov.uk/performance-spending/government-procurement-cards,18-Jan-2024,Total Borough Economy,ROTACLOUD,Total Adult Social Care,464.4,COMPUTER SOFTWARE STORES,2023-24Q3_PC0313
Sandwell Metropolitan Borough Council,https://www.sandwell.gov.uk/performance-spending/government-procurement-cards,18-Jan-2024,Total Borough Economy,APPOINTEDD,Total Adult Social Care,68,COMPUTER SOFTWARE STORES,2023-24Q3_PC0314
Sandwell Metropolitan Borough Council,https://www.sandwell.gov.uk/performance-spending/government-procurement-cards,18-Jan-2024,Total Public Health,WWW.OFFICETEAMCONNECT.,Public Health,66.46,STATIONERY/OFFICE SUPPLIES/PRINTING & WRITING PAP.,2023-24Q3_PC0315
Sandwell Metropolitan Borough Council,https://www.sandwell.gov.uk/performance-spending/government-procurement-cards,18-Jan-2024,Individual School Budgets With Inclusion,THRIVE APPROACH,Individual School Budgets With Inclusion,172.8,SCHOOLS & EDUCATIONAL SVC-NOT ELSEWHERE CLASSIFIED,2023-24Q3_PC0316
Sandwell Metropolitan Borough Council,https://www.sandwell.gov.uk/performance-spending/government-procurement-cards,18-Jan-2024,Total ASCHWB,AMZNMKTPLACE,Total Adult Social Care,-28.99,MISCELLANEOUS AND SPECIALTY RETAIL STORES,2023-24Q3_PC0317
Sandwell Metropolitan Borough Council,https://www.sandwell.gov.uk/performance-spending/government-procurement-cards,18-Jan-2024,Assistant Chief Executive,AMZNMKTPLACE,Assistant Chief Executive (Excl SIU),24.98,MISCELLANEOUS AND SPECIALTY RETAIL STORES,2023-24Q3_PC0318
Sandwell Metropolitan Borough Council,https://www.sandwell.gov.uk/performance-spending/government-procurement-cards,18-Jan-2024,Childrens Services,ASDA STORES 4253,Childrens Services,2.55,"GROCERY STORES, SUPERMARKETS",2023-24Q3_PC0319
Sandwell Metropolitan Borough Council,https://www.sandwell.gov.uk/performance-spending/government-procurement-cards,18-Jan-2024,Childrens Services,Amazon.co.uk JG2DC7O35,Childrens Services,34.68,DIRECT MARKETING-OTHER DIRECT MARKETERS/NOT ELSEW.,2023-24Q3_PC0320
Sandwell Metropolitan Borough Council,https://www.sandwell.gov.uk/performance-spending/government-procurement-cards,18-Jan-2024,Childrens Services,ASDA STORES 4253,Childrens Services,5.13,"GROCERY STORES, SUPERMARKETS",2023-24Q3_PC0321
Sandwell Metropolitan Borough Council,https://www.sandwell.gov.uk/performance-spending/government-procurement-cards,18-Jan-2024,Individual School Budgets With Inclusion,AMZNMKTPLACE,Individual School Budgets With Inclusion,9.89,MISCELLANEOUS AND SPECIALTY RETAIL STORES,2023-24Q3_PC0322
Sandwell Metropolitan Borough Council,https://www.sandwell.gov.uk/performance-spending/government-procurement-cards,18-Jan-2024,Individual School Budgets With Inclusion,AMZNMktplace,Individual School Budgets With Inclusion,6.49,MISCELLANEOUS AND SPECIALTY RETAIL STORES,2023-24Q3_PC0323
Sandwell Metropolitan Borough Council,https://www.sandwell.gov.uk/performance-spending/government-procurement-cards,18-Jan-2024,Childrens Services,GEAR4MUSIC LIMITED,Childrens Services,11.39,"MUSIC STORES-INSTRUMENTS, PIANOS, SHEET MUSIC",2023-24Q3_PC0324
Sandwell Metropolitan Borough Council,https://www.sandwell.gov.uk/performance-spending/government-procurement-cards,18-Jan-2024,Childrens Services,ASDA GROCERIES ONLINE,Childrens Services,-4.3,"GROCERY STORES, SUPERMARKETS",2023-24Q3_PC0325
Sandwell Metropolitan Borough Council,https://www.sandwell.gov.uk/performance-spending/government-procurement-cards,18-Jan-2024,Childrens Services,ASDA GROCERIES ONLINE,Childrens Services,168.9,"GROCERY STORES, SUPERMARKETS",2023-24Q3_PC0326
Sandwell Metropolitan Borough Council,https://www.sandwell.gov.uk/performance-spending/government-procurement-cards,18-Jan-2024,Childrens Services,ASDA GROCERIES ONLINE,Childrens Services,22.65,"GROCERY STORES, SUPERMARKETS",2023-24Q3_PC0327
Sandwell Metropolitan Borough Council,https://www.sandwell.gov.uk/performance-spending/government-procurement-cards,18-Jan-2024,Total ASCHWB,AMZNMktplace,Total Adult Social Care,27,MISCELLANEOUS AND SPECIALTY RETAIL STORES,2023-24Q3_PC0328
Sandwell Metropolitan Borough Council,https://www.sandwell.gov.uk/performance-spending/government-procurement-cards,18-Jan-2024,Total ASCHWB,AMZNMKTPLACE,Total Adult Social Care,88.48,MISCELLANEOUS AND SPECIALTY RETAIL STORES,2023-24Q3_PC0329
Sandwell Metropolitan Borough Council,https://www.sandwell.gov.uk/performance-spending/government-procurement-cards,18-Jan-2024,Total Borough Economy,WWW.LEXISNEXIS.CO.UK,Total Adult Social Care,496.34,MISCELLANEOUS PUBLISHING AND PRINTING,2023-24Q3_PC0330
Sandwell Metropolitan Borough Council,https://www.sandwell.gov.uk/performance-spending/government-procurement-cards,18-Jan-2024,Childrens Services,THE INSTITUTE FOR OUTD,Childrens Services,195,"ORGANIZATIONS, CHARITABLE AND SOCIAL SERVICES",2023-24Q3_PC0331
Sandwell Metropolitan Borough Council,https://www.sandwell.gov.uk/performance-spending/government-procurement-cards,18-Jan-2024,Individual School Budgets With Inclusion,WWW.OFFICETEAMCONNECT.,Individual School Budgets With Inclusion,66.98,STATIONERY/OFFICE SUPPLIES/PRINTING & WRITING PAP.,2023-24Q3_PC0332
Sandwell Metropolitan Borough Council,https://www.sandwell.gov.uk/performance-spending/government-procurement-cards,18-Jan-2024,Individual School Budgets With Inclusion,ASDA STORES,Individual School Budgets With Inclusion,18,"GROCERY STORES, SUPERMARKETS",2023-24Q3_PC0333
Sandwell Metropolitan Borough Council,https://www.sandwell.gov.uk/performance-spending/government-procurement-cards,18-Jan-2024,Individual School Budgets With Inclusion,ASDA SUPERSTORE,Individual School Budgets With Inclusion,35.58,"GROCERY STORES, SUPERMARKETS",2023-24Q3_PC0334
Sandwell Metropolitan Borough Council,https://www.sandwell.gov.uk/performance-spending/government-procurement-cards,18-Jan-2024,Total Borough Economy,HOUSE OF MARBLES,Total Adult Social Care,180.96,MISCELLANEOUS GENERAL MERCHANDISE,2023-24Q3_PC0335
Sandwell Metropolitan Borough Council,https://www.sandwell.gov.uk/performance-spending/government-procurement-cards,18-Jan-2024,FINANCE (Inc SIU),ROYAL MAIL GROUP LTD,Assistant Chief Executive (Excl SIU),6.49,POSTAL SERVICES-GOVERNMENT ONLY,2023-24Q3_PC0336
Sandwell Metropolitan Borough Council,https://www.sandwell.gov.uk/performance-spending/government-procurement-cards,18-Jan-2024,Total ASCHWB,SMARTY CO UK,Total Adult Social Care,20,TELECOM INCL PREPAID/RECURRING PHONE SVCS,2023-24Q3_PC0337
Sandwell Metropolitan Borough Council,https://www.sandwell.gov.uk/performance-spending/government-procurement-cards,18-Jan-2024,Total ASCHWB,AMZNMktplace,Total Adult Social Care,14.96,MISCELLANEOUS AND SPECIALTY RETAIL STORES,2023-24Q3_PC0338
Sandwell Metropolitan Borough Council,https://www.sandwell.gov.uk/performance-spending/government-procurement-cards,18-Jan-2024,Childrens Services,IKEA LTD SHOP ONLINE,Childrens Services,60,"EQUIP, FURNITURE, HOME FURNSHNGS STRS (EXCPT APPL)",2023-24Q3_PC0339
Sandwell Metropolitan Borough Council,https://www.sandwell.gov.uk/performance-spending/government-procurement-cards,18-Jan-2024,Total ASCHWB,A J B SKIP HIRE,Total Adult Social Care,300,"EQUIPMENT RENTAL&LEASING SVS, FURNTURE/TOOL RENTAL",2023-24Q3_PC0340
Sandwell Metropolitan Borough Council,https://www.sandwell.gov.uk/performance-spending/government-procurement-cards,18-Jan-2024,Childrens Services,TESCO STORES 2770,Childrens Services,-8.7,"GROCERY STORES, SUPERMARKETS",2023-24Q3_PC0341
Sandwell Metropolitan Borough Council,https://www.sandwell.gov.uk/performance-spending/government-procurement-cards,18-Jan-2024,Childrens Services,TESCO STORES 2770,Childrens Services,118.65,"GROCERY STORES, SUPERMARKETS",2023-24Q3_PC0342
Sandwell Metropolitan Borough Council,https://www.sandwell.gov.uk/performance-spending/government-procurement-cards,18-Jan-2024,Total Borough Economy,AMZNMktplace,Total Adult Social Care,23.96,MISCELLANEOUS AND SPECIALTY RETAIL STORES,2023-24Q3_PC0343
Sandwell Metropolitan Borough Council,https://www.sandwell.gov.uk/performance-spending/government-procurement-cards,18-Jan-2024,Childrens Services,SP YORKSHIRE TRADING,Childrens Services,214.99,VARIETY STORES,2023-24Q3_PC0344
Sandwell Metropolitan Borough Council,https://www.sandwell.gov.uk/performance-spending/government-procurement-cards,18-Jan-2024,Childrens Services,WWW.THEWORKS.CO.UK,Childrens Services,250,DISCOUNT STORES,2023-24Q3_PC0345
Sandwell Metropolitan Borough Council,https://www.sandwell.gov.uk/performance-spending/government-procurement-cards,18-Jan-2024,Childrens Services,Amazon.co.uk A05WD0CH5,Childrens Services,200,DIRECT MARKETING-OTHER DIRECT MARKETERS/NOT ELSEW.,2023-24Q3_PC0346
Sandwell Metropolitan Borough Council,https://www.sandwell.gov.uk/performance-spending/government-procurement-cards,18-Jan-2024,Total Public Health,THINKIFIC.COM,Public Health,100.8,SCHOOLS & EDUCATIONAL SVC-NOT ELSEWHERE CLASSIFIED,2023-24Q3_PC0347
Sandwell Metropolitan Borough Council,https://www.sandwell.gov.uk/performance-spending/government-procurement-cards,18-Jan-2024,Total Housing Revenue Account,POST OFFICE COUNTER,Total Housing Revenue Account,250,POSTAL SERVICES-GOVERNMENT ONLY,2023-24Q3_PC0348
Sandwell Metropolitan Borough Council,https://www.sandwell.gov.uk/performance-spending/government-procurement-cards,18-Jan-2024,Total Public Health,SumUp   Ymca BCG,Public Health,48.85,"ORGANIZATIONS, CHARITABLE AND SOCIAL SERVICES",2023-24Q3_PC0349
Sandwell Metropolitan Borough Council,https://www.sandwell.gov.uk/performance-spending/government-procurement-cards,18-Jan-2024,FINANCE (Inc SIU),AMZNMktplace,Assistant Chief Executive (Excl SIU),28.25,MISCELLANEOUS AND SPECIALTY RETAIL STORES,2023-24Q3_PC0350
Sandwell Metropolitan Borough Council,https://www.sandwell.gov.uk/performance-spending/government-procurement-cards,18-Jan-2024,Childrens Services,TESCO STORES 6197,Childrens Services,99.88,"GROCERY STORES, SUPERMARKETS",2023-24Q3_PC0351
Sandwell Metropolitan Borough Council,https://www.sandwell.gov.uk/performance-spending/government-procurement-cards,18-Jan-2024,Total Borough Economy,VIKING,Total Adult Social Care,26.94,OFFICE AND COMMERCIAL FURNITURE,2023-24Q3_PC0352
Sandwell Metropolitan Borough Council,https://www.sandwell.gov.uk/performance-spending/government-procurement-cards,18-Jan-2024,Childrens Services,Amazon.co.uk Z68A87XF5,Childrens Services,31.94,DIRECT MARKETING-OTHER DIRECT MARKETERS/NOT ELSEW.,2023-24Q3_PC0353
Sandwell Metropolitan Borough Council,https://www.sandwell.gov.uk/performance-spending/government-procurement-cards,19-Jan-2024,FINANCE (Inc SIU),AMZNMktplace,Assistant Chief Executive (Excl SIU),28.26,MISCELLANEOUS AND SPECIALTY RETAIL STORES,2023-24Q3_PC0354
Sandwell Metropolitan Borough Council,https://www.sandwell.gov.uk/performance-spending/government-procurement-cards,19-Jan-2024,Total ASCHWB,AMZNMktplace,Total Adult Social Care,15.17,MISCELLANEOUS AND SPECIALTY RETAIL STORES,2023-24Q3_PC0355
Sandwell Metropolitan Borough Council,https://www.sandwell.gov.uk/performance-spending/government-procurement-cards,19-Jan-2024,Childrens Services,FILO WHOLESALE,Childrens Services,63.92,MISCELLANEOUS AND SPECIALTY RETAIL STORES,2023-24Q3_PC0356
Sandwell Metropolitan Borough Council,https://www.sandwell.gov.uk/performance-spending/government-procurement-cards,19-Jan-2024,Individual School Budgets With Inclusion,AMZNMktplace,Individual School Budgets With Inclusion,8.99,MISCELLANEOUS AND SPECIALTY RETAIL STORES,2023-24Q3_PC0357
Sandwell Metropolitan Borough Council,https://www.sandwell.gov.uk/performance-spending/government-procurement-cards,19-Jan-2024,Individual School Budgets With Inclusion,POUNDLAND.CO.UK,Individual School Budgets With Inclusion,25.95,DEPARTMENT STORES,2023-24Q3_PC0358
Sandwell Metropolitan Borough Council,https://www.sandwell.gov.uk/performance-spending/government-procurement-cards,19-Jan-2024,Childrens Services,SCREWFIX DIR LTD,Childrens Services,6.49,"BUILDING MATERIALS, LUMBER STORES",2023-24Q3_PC0359
Sandwell Metropolitan Borough Council,https://www.sandwell.gov.uk/performance-spending/government-procurement-cards,19-Jan-2024,Childrens Services,SCREWFIX DIR LTD,Childrens Services,4.79,"BUILDING MATERIALS, LUMBER STORES",2023-24Q3_PC0360
Sandwell Metropolitan Borough Council,https://www.sandwell.gov.uk/performance-spending/government-procurement-cards,19-Jan-2024,Childrens Services,ASDA GROCERIES ONLINE,Childrens Services,-3,"GROCERY STORES, SUPERMARKETS",2023-24Q3_PC0361
Sandwell Metropolitan Borough Council,https://www.sandwell.gov.uk/performance-spending/government-procurement-cards,19-Jan-2024,Childrens Services,ASDA GROCERIES ONLINE,Childrens Services,-18,"GROCERY STORES, SUPERMARKETS",2023-24Q3_PC0362
Sandwell Metropolitan Borough Council,https://www.sandwell.gov.uk/performance-spending/government-procurement-cards,19-Jan-2024,Childrens Services,ASDA GROCERIES ONLINE,Childrens Services,49.75,"GROCERY STORES, SUPERMARKETS",2023-24Q3_PC0363
Sandwell Metropolitan Borough Council,https://www.sandwell.gov.uk/performance-spending/government-procurement-cards,19-Jan-2024,Childrens Services,ASDA GROCERIES ONLINE,Childrens Services,14.5,"GROCERY STORES, SUPERMARKETS",2023-24Q3_PC0364
Sandwell Metropolitan Borough Council,https://www.sandwell.gov.uk/performance-spending/government-procurement-cards,19-Jan-2024,Childrens Services,ASDA GROCERIES ONLINE,Childrens Services,3.25,"GROCERY STORES, SUPERMARKETS",2023-24Q3_PC0365
Sandwell Metropolitan Borough Council,https://www.sandwell.gov.uk/performance-spending/government-procurement-cards,19-Jan-2024,Total ASCHWB,AMZNMktplace,Total Adult Social Care,92.8,MISCELLANEOUS AND SPECIALTY RETAIL STORES,2023-24Q3_PC0366
Sandwell Metropolitan Borough Council,https://www.sandwell.gov.uk/performance-spending/government-procurement-cards,19-Jan-2024,Total ASCHWB,SECURITYSAFETYPRODUCTS,Total Adult Social Care,300,"DETECTVE/PROTECTVE AGNCY,SECURITY SRVS, ARMOR CARS",2023-24Q3_PC0367
Sandwell Metropolitan Borough Council,https://www.sandwell.gov.uk/performance-spending/government-procurement-cards,19-Jan-2024,Total ASCHWB,ZIP HEATERS (UK) LTD,Total Adult Social Care,218.84,PLUMBING AND HEATING EQUIPMENT,2023-24Q3_PC0368
Sandwell Metropolitan Borough Council,https://www.sandwell.gov.uk/performance-spending/government-procurement-cards,19-Jan-2024,Total ASCHWB,WWW.SCREWFIX.COM,Total Adult Social Care,16,"BUILDING MATERIALS, LUMBER STORES",2023-24Q3_PC0369
Sandwell Metropolitan Borough Council,https://www.sandwell.gov.uk/performance-spending/government-procurement-cards,19-Jan-2024,Total Borough Economy,Vistaprint,Total Adult Social Care,395.29,BUSINESS SERVICES-NOT ELSEWHERE CLASSIFIED,2023-24Q3_PC0370
Sandwell Metropolitan Borough Council,https://www.sandwell.gov.uk/performance-spending/government-procurement-cards,19-Jan-2024,Total Borough Economy,www.johnstonespaint.co,Total Adult Social Care,16.9,"GLASS, PAINT, WALLPAPER STORES",2023-24Q3_PC0371
Sandwell Metropolitan Borough Council,https://www.sandwell.gov.uk/performance-spending/government-procurement-cards,19-Jan-2024,Regeneration & Growth,AMZNMKTPLACE,Regeneration And The Economy,24.49,MISCELLANEOUS AND SPECIALTY RETAIL STORES,2023-24Q3_PC0372
Sandwell Metropolitan Borough Council,https://www.sandwell.gov.uk/performance-spending/government-procurement-cards,19-Jan-2024,Total Borough Economy,BIRMINGHAM CASH REGIST,Total Adult Social Care,30,BUSINESS SERVICES-NOT ELSEWHERE CLASSIFIED,2023-24Q3_PC0373
Sandwell Metropolitan Borough Council,https://www.sandwell.gov.uk/performance-spending/government-procurement-cards,19-Jan-2024,Individual School Budgets With Inclusion,AMZNMktplace,Individual School Budgets With Inclusion,39.49,MISCELLANEOUS AND SPECIALTY RETAIL STORES,2023-24Q3_PC0374
Sandwell Metropolitan Borough Council,https://www.sandwell.gov.uk/performance-spending/government-procurement-cards,19-Jan-2024,Total Borough Economy,TIMPSON LTD,Total Adult Social Care,13.5,MISCELLANEOUS AND SPECIALTY RETAIL STORES,2023-24Q3_PC0375
Sandwell Metropolitan Borough Council,https://www.sandwell.gov.uk/performance-spending/government-procurement-cards,19-Jan-2024,Total Borough Economy,AMZNMKTPLACE,Total Adult Social Care,33.38,MISCELLANEOUS AND SPECIALTY RETAIL STORES,2023-24Q3_PC0376
Sandwell Metropolitan Borough Council,https://www.sandwell.gov.uk/performance-spending/government-procurement-cards,19-Jan-2024,Assistant Chief Executive,AMZNMktplace,Assistant Chief Executive (Excl SIU),37.59,MISCELLANEOUS AND SPECIALTY RETAIL STORES,2023-24Q3_PC0377
Sandwell Metropolitan Borough Council,https://www.sandwell.gov.uk/performance-spending/government-procurement-cards,19-Jan-2024,Housing & Assets Total,Amazon.co.uk CS8ZP3YQ5,Corporate Management,27.6,DIRECT MARKETING-OTHER DIRECT MARKETERS/NOT ELSEW.,2023-24Q3_PC0378
Sandwell Metropolitan Borough Council,https://www.sandwell.gov.uk/performance-spending/government-procurement-cards,19-Jan-2024,Housing & Assets Total,Amazon.co.uk 0A97H8UY5,Corporate Management,20.99,DIRECT MARKETING-OTHER DIRECT MARKETERS/NOT ELSEW.,2023-24Q3_PC0379
Sandwell Metropolitan Borough Council,https://www.sandwell.gov.uk/performance-spending/government-procurement-cards,19-Jan-2024,Housing & Assets Total,Amazon.co.uk 9B3UG7ZB5,Corporate Management,20.99,DIRECT MARKETING-OTHER DIRECT MARKETERS/NOT ELSEW.,2023-24Q3_PC0380
Sandwell Metropolitan Borough Council,https://www.sandwell.gov.uk/performance-spending/government-procurement-cards,19-Jan-2024,FINANCE (Inc SIU),AMZNMKTPLACE,Assistant Chief Executive (Excl SIU),11.94,MISCELLANEOUS AND SPECIALTY RETAIL STORES,2023-24Q3_PC0381
Sandwell Metropolitan Borough Council,https://www.sandwell.gov.uk/performance-spending/government-procurement-cards,19-Jan-2024,Childrens Services,WWW.GOMPELS.CO.UK,Childrens Services,120.97,DENTAL/LAB/MED/OPHTHALMIC HOSP EQUIP & SUPPLIES,2023-24Q3_PC0382
Sandwell Metropolitan Borough Council,https://www.sandwell.gov.uk/performance-spending/government-procurement-cards,19-Jan-2024,Total Public Health,THINKIFIC.COM,Public Health,440.4,SCHOOLS & EDUCATIONAL SVC-NOT ELSEWHERE CLASSIFIED,2023-24Q3_PC0383
Sandwell Metropolitan Borough Council,https://www.sandwell.gov.uk/performance-spending/government-procurement-cards,19-Jan-2024,Total Public Health,M and M Direct Ltd,Public Health,475.72,SPORTING GOODS STORES,2023-24Q3_PC0384
Sandwell Metropolitan Borough Council,https://www.sandwell.gov.uk/performance-spending/government-procurement-cards,19-Jan-2024,Total Housing Revenue Account,CAPITA GAS,Total Housing Revenue Account,26.4,"ORGANIZATIONS, MEMBERSHIP-NOT ELSEWHERE CLASSIFIED",2023-24Q3_PC0385
Sandwell Metropolitan Borough Council,https://www.sandwell.gov.uk/performance-spending/government-procurement-cards,19-Jan-2024,Total Housing Revenue Account,PAYPAL  ABSOLUTEINT,Total Housing Revenue Account,228,"CONSULTING, MANAGEMENT, AND PUBLIC RELATIONS SVCS",2023-24Q3_PC0386
Sandwell Metropolitan Borough Council,https://www.sandwell.gov.uk/performance-spending/government-procurement-cards,19-Jan-2024,Law & Governance,SIRCULALTD D&I LEADERS,Assistant Chief Executive (Excl SIU),453.72,"THEATRICAL PRODUCERS(EXCL MOTION PIX),TICKET AGNCY",2023-24Q3_PC0387
Sandwell Metropolitan Borough Council,https://www.sandwell.gov.uk/performance-spending/government-procurement-cards,19-Jan-2024,Housing & Assets Total,AMZNMktplace,Corporate Management,42.95,MISCELLANEOUS AND SPECIALTY RETAIL STORES,2023-24Q3_PC0388
Sandwell Metropolitan Borough Council,https://www.sandwell.gov.uk/performance-spending/government-procurement-cards,22-Jan-2024,Total ASCHWB,WORKWEAR EXPRESS,Total Adult Social Care,235.63,MEN'S/WOMEN'S/CHILDREN'S UNIFORMS/COMMERCIAL CLOTH,2023-24Q3_PC0389
Sandwell Metropolitan Borough Council,https://www.sandwell.gov.uk/performance-spending/government-procurement-cards,22-Jan-2024,Total Borough Economy,ASDA GROCERIES ONLINE,Total Adult Social Care,69.6,"GROCERY STORES, SUPERMARKETS",2023-24Q3_PC0390
Sandwell Metropolitan Borough Council,https://www.sandwell.gov.uk/performance-spending/government-procurement-cards,22-Jan-2024,FINANCE (Inc SIU),AMZNMktplace,Total Adult Social Care,54.4,MISCELLANEOUS AND SPECIALTY RETAIL STORES,2023-24Q3_PC0391
Sandwell Metropolitan Borough Council,https://www.sandwell.gov.uk/performance-spending/government-procurement-cards,22-Jan-2024,Total ASCHWB,AMZNMKTPLACE,Total Adult Social Care,33.99,MISCELLANEOUS AND SPECIALTY RETAIL STORES,2023-24Q3_PC0392
Sandwell Metropolitan Borough Council,https://www.sandwell.gov.uk/performance-spending/government-procurement-cards,22-Jan-2024,Assistant Chief Executive,AMZNMktplace,Assistant Chief Executive (Excl SIU),15.45,MISCELLANEOUS AND SPECIALTY RETAIL STORES,2023-24Q3_PC0393
Sandwell Metropolitan Borough Council,https://www.sandwell.gov.uk/performance-spending/government-procurement-cards,22-Jan-2024,Childrens Services,Amazon.co.uk ZF93W3Y35,Childrens Services,24.5,DIRECT MARKETING-OTHER DIRECT MARKETERS/NOT ELSEW.,2023-24Q3_PC0394
Sandwell Metropolitan Borough Council,https://www.sandwell.gov.uk/performance-spending/government-procurement-cards,22-Jan-2024,Childrens Services,Amazon.co.uk F66AV0BM5,Childrens Services,16.22,DIRECT MARKETING-OTHER DIRECT MARKETERS/NOT ELSEW.,2023-24Q3_PC0395
Sandwell Metropolitan Borough Council,https://www.sandwell.gov.uk/performance-spending/government-procurement-cards,22-Jan-2024,Childrens Services,Amazon.co.uk BT4ZM6VC5,Childrens Services,16.22,DIRECT MARKETING-OTHER DIRECT MARKETERS/NOT ELSEW.,2023-24Q3_PC0396
Sandwell Metropolitan Borough Council,https://www.sandwell.gov.uk/performance-spending/government-procurement-cards,22-Jan-2024,Childrens Services,Amazon.co.uk HO8FB1HP4,Childrens Services,16.22,DIRECT MARKETING-OTHER DIRECT MARKETERS/NOT ELSEW.,2023-24Q3_PC0397
Sandwell Metropolitan Borough Council,https://www.sandwell.gov.uk/performance-spending/government-procurement-cards,22-Jan-2024,Individual School Budgets With Inclusion,POUNDLAND.CO.UK,Individual School Budgets With Inclusion,-1,DEPARTMENT STORES,2023-24Q3_PC0398
Sandwell Metropolitan Borough Council,https://www.sandwell.gov.uk/performance-spending/government-procurement-cards,22-Jan-2024,Total ASCHWB,Amazon.co.uk 167344FA5,Total Adult Social Care,149.35,DIRECT MARKETING-OTHER DIRECT MARKETERS/NOT ELSEW.,2023-24Q3_PC0399
Sandwell Metropolitan Borough Council,https://www.sandwell.gov.uk/performance-spending/government-procurement-cards,22-Jan-2024,Childrens Services,ASDA GROCERIES ONLINE,Childrens Services,65,"GROCERY STORES, SUPERMARKETS",2023-24Q3_PC0400
Sandwell Metropolitan Borough Council,https://www.sandwell.gov.uk/performance-spending/government-procurement-cards,22-Jan-2024,Regeneration & Growth,AMZNMktplace,Regeneration And The Economy,66.9,MISCELLANEOUS AND SPECIALTY RETAIL STORES,2023-24Q3_PC0401
Sandwell Metropolitan Borough Council,https://www.sandwell.gov.uk/performance-spending/government-procurement-cards,22-Jan-2024,Total ASCHWB,WWW.OFFICETEAMCONNECT.,Total Adult Social Care,84.92,STATIONERY/OFFICE SUPPLIES/PRINTING & WRITING PAP.,2023-24Q3_PC0402
Sandwell Metropolitan Borough Council,https://www.sandwell.gov.uk/performance-spending/government-procurement-cards,22-Jan-2024,Total ASCHWB,POUNDLAND.CO.UK,Total Adult Social Care,45.1,DEPARTMENT STORES,2023-24Q3_PC0403
Sandwell Metropolitan Borough Council,https://www.sandwell.gov.uk/performance-spending/government-procurement-cards,22-Jan-2024,Total ASCHWB,POUNDLAND.CO.UK,Total Adult Social Care,9.9,DEPARTMENT STORES,2023-24Q3_PC0404
Sandwell Metropolitan Borough Council,https://www.sandwell.gov.uk/performance-spending/government-procurement-cards,22-Jan-2024,Total Borough Economy,AMZNMktplace,Total Adult Social Care,89.99,MISCELLANEOUS AND SPECIALTY RETAIL STORES,2023-24Q3_PC0405
Sandwell Metropolitan Borough Council,https://www.sandwell.gov.uk/performance-spending/government-procurement-cards,22-Jan-2024,Childrens Services,BEEBYS BUBBLES,Childrens Services,60,"CLEANING, GARMENT, AND LAUNDRY SERVICES",2023-24Q3_PC0406
Sandwell Metropolitan Borough Council,https://www.sandwell.gov.uk/performance-spending/government-procurement-cards,22-Jan-2024,Assistant Chief Executive,AMZNMktplace,Assistant Chief Executive (Excl SIU),-21.24,MISCELLANEOUS AND SPECIALTY RETAIL STORES,2023-24Q3_PC0407
Sandwell Metropolitan Borough Council,https://www.sandwell.gov.uk/performance-spending/government-procurement-cards,22-Jan-2024,Childrens Services,WWW.WMCA.ORG.UK,Childrens Services,10,"TRANSPRTN-SUBRBN & LOCAL COMTR PSNGR, INCL FERRIES",2023-24Q3_PC0408
Sandwell Metropolitan Borough Council,https://www.sandwell.gov.uk/performance-spending/government-procurement-cards,22-Jan-2024,Total Borough Economy,PADDLE.NET SNAPWIDGET,Total Adult Social Care,5.41,DIGITAL GOODS SOFTWARE APPLICATIONS,2023-24Q3_PC0409
Sandwell Metropolitan Borough Council,https://www.sandwell.gov.uk/performance-spending/government-procurement-cards,22-Jan-2024,Childrens Services,AMZNMktplace,Childrens Services,98.95,MISCELLANEOUS AND SPECIALTY RETAIL STORES,2023-24Q3_PC0410
Sandwell Metropolitan Borough Council,https://www.sandwell.gov.uk/performance-spending/government-procurement-cards,22-Jan-2024,Individual School Budgets With Inclusion,AMZNMKTPLACE,Individual School Budgets With Inclusion,70.04,MISCELLANEOUS AND SPECIALTY RETAIL STORES,2023-24Q3_PC0411
Sandwell Metropolitan Borough Council,https://www.sandwell.gov.uk/performance-spending/government-procurement-cards,22-Jan-2024,Childrens Services,AMAZON PRIME Y04Y538N5,Childrens Services,114,DIRECT MARKETING-CONTINUITY/SUBSCRIPTION MERCHANTS,2023-24Q3_PC0412
Sandwell Metropolitan Borough Council,https://www.sandwell.gov.uk/performance-spending/government-procurement-cards,22-Jan-2024,Housing & Assets Total,Amazon.co.uk,Corporate Management,-26.38,DIRECT MARKETING-OTHER DIRECT MARKETERS/NOT ELSEW.,2023-24Q3_PC0413
Sandwell Metropolitan Borough Council,https://www.sandwell.gov.uk/performance-spending/government-procurement-cards,22-Jan-2024,Law & Governance,WWW.OFFICETEAMCONNECT.,Assistant Chief Executive (Excl SIU),332.92,STATIONERY/OFFICE SUPPLIES/PRINTING & WRITING PAP.,2023-24Q3_PC0414
Sandwell Metropolitan Borough Council,https://www.sandwell.gov.uk/performance-spending/government-procurement-cards,22-Jan-2024,Total Borough Economy,Amazon Prime GV62O8PD5,Total Adult Social Care,8.99,DIRECT MARKETING-CONTINUITY/SUBSCRIPTION MERCHANTS,2023-24Q3_PC0415
Sandwell Metropolitan Borough Council,https://www.sandwell.gov.uk/performance-spending/government-procurement-cards,22-Jan-2024,Total ASCHWB,WWW.ARGOS.CO.UK,Total Adult Social Care,100,DEPARTMENT STORES,2023-24Q3_PC0416
Sandwell Metropolitan Borough Council,https://www.sandwell.gov.uk/performance-spending/government-procurement-cards,22-Jan-2024,Childrens Services,ALDI 109 772,Childrens Services,2.97,"GROCERY STORES, SUPERMARKETS",2023-24Q3_PC0417
Sandwell Metropolitan Borough Council,https://www.sandwell.gov.uk/performance-spending/government-procurement-cards,22-Jan-2024,Childrens Services,ALDI 109 772,Childrens Services,19.65,"GROCERY STORES, SUPERMARKETS",2023-24Q3_PC0418
Sandwell Metropolitan Borough Council,https://www.sandwell.gov.uk/performance-spending/government-procurement-cards,22-Jan-2024,Childrens Services,Just Eat,Childrens Services,46.8,FAST FOOD RESTAURANTS,2023-24Q3_PC0419
Sandwell Metropolitan Borough Council,https://www.sandwell.gov.uk/performance-spending/government-procurement-cards,22-Jan-2024,Total Public Health,EVERYTHING5POUNDS.COM,Public Health,65.98,MEN'S AND WOMEN'S CLOTHING STORES,2023-24Q3_PC0420
Sandwell Metropolitan Borough Council,https://www.sandwell.gov.uk/performance-spending/government-procurement-cards,22-Jan-2024,Total Public Health,EVERYTHING5POUNDS.COM,Public Health,98.97,MEN'S AND WOMEN'S CLOTHING STORES,2023-24Q3_PC0421
Sandwell Metropolitan Borough Council,https://www.sandwell.gov.uk/performance-spending/government-procurement-cards,22-Jan-2024,Total ASCHWB,Amazon.co.uk 6767V9S85,Total Adult Social Care,71.76,DIRECT MARKETING-OTHER DIRECT MARKETERS/NOT ELSEW.,2023-24Q3_PC0422
Sandwell Metropolitan Borough Council,https://www.sandwell.gov.uk/performance-spending/government-procurement-cards,22-Jan-2024,FINANCE (Inc SIU),AMZNMktplace,Assistant Chief Executive (Excl SIU),10.19,MISCELLANEOUS AND SPECIALTY RETAIL STORES,2023-24Q3_PC0423
Sandwell Metropolitan Borough Council,https://www.sandwell.gov.uk/performance-spending/government-procurement-cards,22-Jan-2024,FINANCE (Inc SIU),AMZNMktplace,Assistant Chief Executive (Excl SIU),8.04,MISCELLANEOUS AND SPECIALTY RETAIL STORES,2023-24Q3_PC0424
Sandwell Metropolitan Borough Council,https://www.sandwell.gov.uk/performance-spending/government-procurement-cards,22-Jan-2024,FINANCE (Inc SIU),AMZNMktplace,Assistant Chief Executive (Excl SIU),11.68,MISCELLANEOUS AND SPECIALTY RETAIL STORES,2023-24Q3_PC0425
Sandwell Metropolitan Borough Council,https://www.sandwell.gov.uk/performance-spending/government-procurement-cards,22-Jan-2024,FINANCE (Inc SIU),AMZNMktplace,Assistant Chief Executive (Excl SIU),11.69,MISCELLANEOUS AND SPECIALTY RETAIL STORES,2023-24Q3_PC0426
Sandwell Metropolitan Borough Council,https://www.sandwell.gov.uk/performance-spending/government-procurement-cards,22-Jan-2024,FINANCE (Inc SIU),AMZNMktplace,Assistant Chief Executive (Excl SIU),20.96,MISCELLANEOUS AND SPECIALTY RETAIL STORES,2023-24Q3_PC0427
Sandwell Metropolitan Borough Council,https://www.sandwell.gov.uk/performance-spending/government-procurement-cards,22-Jan-2024,Childrens Services,ASDA GROCERIES ONLINE,Childrens Services,84.86,"GROCERY STORES, SUPERMARKETS",2023-24Q3_PC0428
Sandwell Metropolitan Borough Council,https://www.sandwell.gov.uk/performance-spending/government-procurement-cards,22-Jan-2024,Housing & Assets Total,AMZNMktplace,Corporate Management,13.5,MISCELLANEOUS AND SPECIALTY RETAIL STORES,2023-24Q3_PC0429
Sandwell Metropolitan Borough Council,https://www.sandwell.gov.uk/performance-spending/government-procurement-cards,22-Jan-2024,Housing & Assets Total,AMZNMktplace,Corporate Management,15.98,MISCELLANEOUS AND SPECIALTY RETAIL STORES,2023-24Q3_PC0430
Sandwell Metropolitan Borough Council,https://www.sandwell.gov.uk/performance-spending/government-procurement-cards,22-Jan-2024,Total Borough Economy,ALDI 42 772,Total Adult Social Care,10.05,"GROCERY STORES, SUPERMARKETS",2023-24Q3_PC0431
Sandwell Metropolitan Borough Council,https://www.sandwell.gov.uk/performance-spending/government-procurement-cards,23-Jan-2024,Total Borough Economy,CO-OP GROUP 070370,Dead SeRCOP,3.85,"GROCERY STORES, SUPERMARKETS",2023-24Q3_PC0432
Sandwell Metropolitan Borough Council,https://www.sandwell.gov.uk/performance-spending/government-procurement-cards,23-Jan-2024,Individual School Budgets With Inclusion,THRIVE APPROACH,Individual School Budgets With Inclusion,172.8,SCHOOLS & EDUCATIONAL SVC-NOT ELSEWHERE CLASSIFIED,2023-24Q3_PC0433
Sandwell Metropolitan Borough Council,https://www.sandwell.gov.uk/performance-spending/government-procurement-cards,23-Jan-2024,FINANCE (Inc SIU),AMZNMktplace,Total Adult Social Care,15.99,MISCELLANEOUS AND SPECIALTY RETAIL STORES,2023-24Q3_PC0434
Sandwell Metropolitan Borough Council,https://www.sandwell.gov.uk/performance-spending/government-procurement-cards,23-Jan-2024,Childrens Services,ASDA STORES 4253,Childrens Services,6,"GROCERY STORES, SUPERMARKETS",2023-24Q3_PC0435
Sandwell Metropolitan Borough Council,https://www.sandwell.gov.uk/performance-spending/government-procurement-cards,23-Jan-2024,Childrens Services,SP JOHN BULL CLOTHING,Childrens Services,75,MISCELLANEOUS GENERAL MERCHANDISE,2023-24Q3_PC0436
Sandwell Metropolitan Borough Council,https://www.sandwell.gov.uk/performance-spending/government-procurement-cards,23-Jan-2024,Childrens Services,ASDA STORES 4253,Childrens Services,27,"GROCERY STORES, SUPERMARKETS",2023-24Q3_PC0437
Sandwell Metropolitan Borough Council,https://www.sandwell.gov.uk/performance-spending/government-procurement-cards,23-Jan-2024,Individual School Budgets With Inclusion,ASDA GROCERIES ONLINE,Individual School Budgets With Inclusion,-3.05,"GROCERY STORES, SUPERMARKETS",2023-24Q3_PC0438
Sandwell Metropolitan Borough Council,https://www.sandwell.gov.uk/performance-spending/government-procurement-cards,23-Jan-2024,Individual School Budgets With Inclusion,ASDA GROCERIES ONLINE,Individual School Budgets With Inclusion,31.03,"GROCERY STORES, SUPERMARKETS",2023-24Q3_PC0439
Sandwell Metropolitan Borough Council,https://www.sandwell.gov.uk/performance-spending/government-procurement-cards,23-Jan-2024,Childrens Services,ASDA GROCERIES ONLINE,Childrens Services,-15.87,"GROCERY STORES, SUPERMARKETS",2023-24Q3_PC0440
Sandwell Metropolitan Borough Council,https://www.sandwell.gov.uk/performance-spending/government-procurement-cards,23-Jan-2024,Childrens Services,ASDA GROCERIES ONLINE,Childrens Services,118.64,"GROCERY STORES, SUPERMARKETS",2023-24Q3_PC0441
Sandwell Metropolitan Borough Council,https://www.sandwell.gov.uk/performance-spending/government-procurement-cards,23-Jan-2024,Childrens Services,ASDA GROCERIES ONLINE,Childrens Services,10,"GROCERY STORES, SUPERMARKETS",2023-24Q3_PC0442
Sandwell Metropolitan Borough Council,https://www.sandwell.gov.uk/performance-spending/government-procurement-cards,23-Jan-2024,Total ASCHWB,WWW.OFFICETEAMCONNECT.,Total Adult Social Care,103.97,STATIONERY/OFFICE SUPPLIES/PRINTING & WRITING PAP.,2023-24Q3_PC0443
Sandwell Metropolitan Borough Council,https://www.sandwell.gov.uk/performance-spending/government-procurement-cards,23-Jan-2024,Total ASCHWB,TESCO STORES 4838,Total Adult Social Care,-2.25,"GROCERY STORES, SUPERMARKETS",2023-24Q3_PC0444
Sandwell Metropolitan Borough Council,https://www.sandwell.gov.uk/performance-spending/government-procurement-cards,23-Jan-2024,Total ASCHWB,TESCO STORES 4838,Total Adult Social Care,143.2,"GROCERY STORES, SUPERMARKETS",2023-24Q3_PC0445
Sandwell Metropolitan Borough Council,https://www.sandwell.gov.uk/performance-spending/government-procurement-cards,23-Jan-2024,Regeneration & Growth,AMZNMKTPLACE,Regeneration And The Economy,-58.31,MISCELLANEOUS AND SPECIALTY RETAIL STORES,2023-24Q3_PC0446
Sandwell Metropolitan Borough Council,https://www.sandwell.gov.uk/performance-spending/government-procurement-cards,23-Jan-2024,Total Borough Economy,Amazon.co.uk 1Y2Y47GP5,Total Adult Social Care,32.98,DIRECT MARKETING-OTHER DIRECT MARKETERS/NOT ELSEW.,2023-24Q3_PC0447
Sandwell Metropolitan Borough Council,https://www.sandwell.gov.uk/performance-spending/government-procurement-cards,23-Jan-2024,Total Borough Economy,JOHNSONS SKODA,Total Adult Social Care,21.96,"AUTO & TRUCK DLRS-SALES,SVC, REPRS,PRTS, & LEASING",2023-24Q3_PC0448
Sandwell Metropolitan Borough Council,https://www.sandwell.gov.uk/performance-spending/government-procurement-cards,23-Jan-2024,Individual School Budgets With Inclusion,ASDA GROCERIES ONLINE,Individual School Budgets With Inclusion,-1.2,"GROCERY STORES, SUPERMARKETS",2023-24Q3_PC0449
Sandwell Metropolitan Borough Council,https://www.sandwell.gov.uk/performance-spending/government-procurement-cards,23-Jan-2024,Individual School Budgets With Inclusion,ASDA GROCERIES ONLINE,Individual School Budgets With Inclusion,-1.2,"GROCERY STORES, SUPERMARKETS",2023-24Q3_PC0450
Sandwell Metropolitan Borough Council,https://www.sandwell.gov.uk/performance-spending/government-procurement-cards,23-Jan-2024,Individual School Budgets With Inclusion,ASDA GROCERIES ONLINE,Individual School Budgets With Inclusion,-4.5,"GROCERY STORES, SUPERMARKETS",2023-24Q3_PC0451
Sandwell Metropolitan Borough Council,https://www.sandwell.gov.uk/performance-spending/government-procurement-cards,23-Jan-2024,Individual School Budgets With Inclusion,ASDA GROCERIES ONLINE,Individual School Budgets With Inclusion,88.14,"GROCERY STORES, SUPERMARKETS",2023-24Q3_PC0452
Sandwell Metropolitan Borough Council,https://www.sandwell.gov.uk/performance-spending/government-procurement-cards,23-Jan-2024,Housing & Assets Total,AMZNMktplace,Total Adult Social Care,859.8,MISCELLANEOUS AND SPECIALTY RETAIL STORES,2023-24Q3_PC0453
Sandwell Metropolitan Borough Council,https://www.sandwell.gov.uk/performance-spending/government-procurement-cards,23-Jan-2024,Regeneration And The Economy Capital,SQ  ROOM 9 MEDIA LTD,#N/A,88,PROFESSIONAL SERVICES-NOT ELSEWHERE CLASSIFIED,2023-24Q3_PC0454
Sandwell Metropolitan Borough Council,https://www.sandwell.gov.uk/performance-spending/government-procurement-cards,23-Jan-2024,Law & Governance,CHARTERED INSTITUTE OF,Assistant Chief Executive (Excl SIU),252,"SCHOOLS, BUSINESS AND SECRETARIAL",2023-24Q3_PC0455
Sandwell Metropolitan Borough Council,https://www.sandwell.gov.uk/performance-spending/government-procurement-cards,23-Jan-2024,Childrens Services,LIDL GB BANGOR,Childrens Services,50.41,"GROCERY STORES, SUPERMARKETS",2023-24Q3_PC0456
Sandwell Metropolitan Borough Council,https://www.sandwell.gov.uk/performance-spending/government-procurement-cards,23-Jan-2024,Childrens Services,LIDL GB BANGOR,Childrens Services,68.91,"GROCERY STORES, SUPERMARKETS",2023-24Q3_PC0457
Sandwell Metropolitan Borough Council,https://www.sandwell.gov.uk/performance-spending/government-procurement-cards,23-Jan-2024,Total ASCHWB,AMZNMktplace,Total Adult Social Care,25.47,MISCELLANEOUS AND SPECIALTY RETAIL STORES,2023-24Q3_PC0458
Sandwell Metropolitan Borough Council,https://www.sandwell.gov.uk/performance-spending/government-procurement-cards,23-Jan-2024,Total Borough Economy,WWW.OFFICETEAMCONNECT.,Total Adult Social Care,55.21,STATIONERY/OFFICE SUPPLIES/PRINTING & WRITING PAP.,2023-24Q3_PC0459
Sandwell Metropolitan Borough Council,https://www.sandwell.gov.uk/performance-spending/government-procurement-cards,23-Jan-2024,Childrens Services,TESCO STORES 2770,Childrens Services,-8.75,"GROCERY STORES, SUPERMARKETS",2023-24Q3_PC0460
Sandwell Metropolitan Borough Council,https://www.sandwell.gov.uk/performance-spending/government-procurement-cards,23-Jan-2024,Childrens Services,TESCO STORES 2770,Childrens Services,8.75,"GROCERY STORES, SUPERMARKETS",2023-24Q3_PC0461
Sandwell Metropolitan Borough Council,https://www.sandwell.gov.uk/performance-spending/government-procurement-cards,23-Jan-2024,Total Borough Economy,ALDI 772 177,Total Adult Social Care,18.35,"GROCERY STORES, SUPERMARKETS",2023-24Q3_PC0462
Sandwell Metropolitan Borough Council,https://www.sandwell.gov.uk/performance-spending/government-procurement-cards,23-Jan-2024,Law & Governance,Admire Flowers,Assistant Chief Executive (Excl SIU),120,FLORISTS,2023-24Q3_PC0463
Sandwell Metropolitan Borough Council,https://www.sandwell.gov.uk/performance-spending/government-procurement-cards,23-Jan-2024,Total ASCHWB,AMZNMKTPLACE,Total Adult Social Care,59.98,MISCELLANEOUS AND SPECIALTY RETAIL STORES,2023-24Q3_PC0464
Sandwell Metropolitan Borough Council,https://www.sandwell.gov.uk/performance-spending/government-procurement-cards,23-Jan-2024,Law & Governance,MINUTEMAN TYSELEY,Assistant Chief Executive (Excl SIU),499.99,MISCELLANEOUS PUBLISHING AND PRINTING,2023-24Q3_PC0465
Sandwell Metropolitan Borough Council,https://www.sandwell.gov.uk/performance-spending/government-procurement-cards,23-Jan-2024,Childrens Services,WWW.OFFICETEAMCONNECT.,Childrens Services,70.37,STATIONERY/OFFICE SUPPLIES/PRINTING & WRITING PAP.,2023-24Q3_PC0466
Sandwell Metropolitan Borough Council,https://www.sandwell.gov.uk/performance-spending/government-procurement-cards,23-Jan-2024,Total Housing Revenue Account,Amazon.co.uk 792WS3SC5,Total Housing Revenue Account,15.53,DIRECT MARKETING-OTHER DIRECT MARKETERS/NOT ELSEW.,2023-24Q3_PC0467
Sandwell Metropolitan Borough Council,https://www.sandwell.gov.uk/performance-spending/government-procurement-cards,24-Jan-2024,Childrens Services,TESCO STORES 5549,Childrens Services,4.65,"GROCERY STORES, SUPERMARKETS",2023-24Q3_PC0468
Sandwell Metropolitan Borough Council,https://www.sandwell.gov.uk/performance-spending/government-procurement-cards,24-Jan-2024,Total Borough Economy,SANDPITT  FORGE LTD,Total Adult Social Care,164.5,OTHER SERVICES (NOT ELSEWHERE CLASSIFIED),2023-24Q3_PC0469
Sandwell Metropolitan Borough Council,https://www.sandwell.gov.uk/performance-spending/government-procurement-cards,24-Jan-2024,Total Borough Economy,TESCO STORES 2335,Total Adult Social Care,2,"GROCERY STORES, SUPERMARKETS",2023-24Q3_PC0470
Sandwell Metropolitan Borough Council,https://www.sandwell.gov.uk/performance-spending/government-procurement-cards,24-Jan-2024,FINANCE (Inc SIU),WWW.OFFICETEAMCONNECT.,Total Adult Social Care,328.38,STATIONERY/OFFICE SUPPLIES/PRINTING & WRITING PAP.,2023-24Q3_PC0471
Sandwell Metropolitan Borough Council,https://www.sandwell.gov.uk/performance-spending/government-procurement-cards,24-Jan-2024,Individual School Budgets With Inclusion,VIKING,Individual School Budgets With Inclusion,33.92,OFFICE AND COMMERCIAL FURNITURE,2023-24Q3_PC0472
Sandwell Metropolitan Borough Council,https://www.sandwell.gov.uk/performance-spending/government-procurement-cards,24-Jan-2024,Total Borough Economy,SP GS WORKWEAR,Total Adult Social Care,42.93,DEPARTMENT STORES,2023-24Q3_PC0473
Sandwell Metropolitan Borough Council,https://www.sandwell.gov.uk/performance-spending/government-procurement-cards,24-Jan-2024,Total Borough Economy,SP GS WORKWEAR,Total Adult Social Care,19.09,DEPARTMENT STORES,2023-24Q3_PC0474
Sandwell Metropolitan Borough Council,https://www.sandwell.gov.uk/performance-spending/government-procurement-cards,24-Jan-2024,Regeneration & Growth,AMZNMktplace,Regeneration And The Economy,29,MISCELLANEOUS AND SPECIALTY RETAIL STORES,2023-24Q3_PC0475
Sandwell Metropolitan Borough Council,https://www.sandwell.gov.uk/performance-spending/government-procurement-cards,24-Jan-2024,Regeneration & Growth,TRAINLINE,Regeneration And The Economy,48.39,PASSENGER RAILWAYS,2023-24Q3_PC0476
Sandwell Metropolitan Borough Council,https://www.sandwell.gov.uk/performance-spending/government-procurement-cards,24-Jan-2024,Individual School Budgets With Inclusion,ASDA GROCERIES ONLINE,Individual School Budgets With Inclusion,38.45,"GROCERY STORES, SUPERMARKETS",2023-24Q3_PC0477
Sandwell Metropolitan Borough Council,https://www.sandwell.gov.uk/performance-spending/government-procurement-cards,24-Jan-2024,Total ASCHWB,IKEA LTD SHOP ONLINE,Total Adult Social Care,250,"EQUIP, FURNITURE, HOME FURNSHNGS STRS (EXCPT APPL)",2023-24Q3_PC0478
Sandwell Metropolitan Borough Council,https://www.sandwell.gov.uk/performance-spending/government-procurement-cards,24-Jan-2024,Total ASCHWB,WWW.ARGOS.CO.UK,Total Adult Social Care,85.95,DEPARTMENT STORES,2023-24Q3_PC0479
Sandwell Metropolitan Borough Council,https://www.sandwell.gov.uk/performance-spending/government-procurement-cards,24-Jan-2024,Total ASCHWB,IKEA LTD SHOP ONLINE,Total Adult Social Care,125,"EQUIP, FURNITURE, HOME FURNSHNGS STRS (EXCPT APPL)",2023-24Q3_PC0480
Sandwell Metropolitan Borough Council,https://www.sandwell.gov.uk/performance-spending/government-procurement-cards,24-Jan-2024,Childrens Services,ASDA GROCERIES ONLINE,Childrens Services,-2.6,"GROCERY STORES, SUPERMARKETS",2023-24Q3_PC0481
Sandwell Metropolitan Borough Council,https://www.sandwell.gov.uk/performance-spending/government-procurement-cards,24-Jan-2024,Childrens Services,ASDA GROCERIES ONLINE,Childrens Services,74.91,"GROCERY STORES, SUPERMARKETS",2023-24Q3_PC0482
Sandwell Metropolitan Borough Council,https://www.sandwell.gov.uk/performance-spending/government-procurement-cards,24-Jan-2024,Childrens Services,ASDA GROCERIES ONLINE,Childrens Services,13.7,"GROCERY STORES, SUPERMARKETS",2023-24Q3_PC0483
Sandwell Metropolitan Borough Council,https://www.sandwell.gov.uk/performance-spending/government-procurement-cards,24-Jan-2024,Childrens Services,ASDA GROCERIES ONLINE,Childrens Services,9,"GROCERY STORES, SUPERMARKETS",2023-24Q3_PC0484
Sandwell Metropolitan Borough Council,https://www.sandwell.gov.uk/performance-spending/government-procurement-cards,24-Jan-2024,Regeneration & Growth,Amazon.co.uk UZ4ER3WW5,Regeneration And The Economy,28,DIRECT MARKETING-OTHER DIRECT MARKETERS/NOT ELSEW.,2023-24Q3_PC0485
Sandwell Metropolitan Borough Council,https://www.sandwell.gov.uk/performance-spending/government-procurement-cards,24-Jan-2024,Total ASCHWB,AMZNMKTPLACE,Total Adult Social Care,55.9,MISCELLANEOUS AND SPECIALTY RETAIL STORES,2023-24Q3_PC0486
Sandwell Metropolitan Borough Council,https://www.sandwell.gov.uk/performance-spending/government-procurement-cards,24-Jan-2024,Childrens Services,Dunelm Soft Furnishin,Childrens Services,18,"EQUIP, FURNITURE, HOME FURNSHNGS STRS (EXCPT APPL)",2023-24Q3_PC0487
Sandwell Metropolitan Borough Council,https://www.sandwell.gov.uk/performance-spending/government-procurement-cards,24-Jan-2024,Housing & Assets Total,AMZNMKTPLACE,Corporate Management,9.89,MISCELLANEOUS AND SPECIALTY RETAIL STORES,2023-24Q3_PC0488
Sandwell Metropolitan Borough Council,https://www.sandwell.gov.uk/performance-spending/government-procurement-cards,24-Jan-2024,Housing & Assets Total,AMZNMktplace,Corporate Management,90.99,MISCELLANEOUS AND SPECIALTY RETAIL STORES,2023-24Q3_PC0489
Sandwell Metropolitan Borough Council,https://www.sandwell.gov.uk/performance-spending/government-procurement-cards,24-Jan-2024,Total ASCHWB,BAKER ROSS,Total Adult Social Care,82.95,"ARTIST SUPPLY STORES, CRAFT SHOPS",2023-24Q3_PC0490
Sandwell Metropolitan Borough Council,https://www.sandwell.gov.uk/performance-spending/government-procurement-cards,24-Jan-2024,Total ASCHWB,AMZNMKTPLACE,Total Adult Social Care,26.97,MISCELLANEOUS AND SPECIALTY RETAIL STORES,2023-24Q3_PC0491
Sandwell Metropolitan Borough Council,https://www.sandwell.gov.uk/performance-spending/government-procurement-cards,24-Jan-2024,Total ASCHWB,AMZNMktplace,Total Adult Social Care,29.99,MISCELLANEOUS AND SPECIALTY RETAIL STORES,2023-24Q3_PC0492
Sandwell Metropolitan Borough Council,https://www.sandwell.gov.uk/performance-spending/government-procurement-cards,24-Jan-2024,Childrens Services,ROYAL MAIL GROUP LTD,Childrens Services,2.6,POSTAL SERVICES-GOVERNMENT ONLY,2023-24Q3_PC0493
Sandwell Metropolitan Borough Council,https://www.sandwell.gov.uk/performance-spending/government-procurement-cards,24-Jan-2024,FINANCE (Inc SIU),AMZNMktplace,Assistant Chief Executive (Excl SIU),42.96,MISCELLANEOUS AND SPECIALTY RETAIL STORES,2023-24Q3_PC0494
Sandwell Metropolitan Borough Council,https://www.sandwell.gov.uk/performance-spending/government-procurement-cards,24-Jan-2024,Law & Governance,SAINSBURYS S/MKTS,Assistant Chief Executive (Excl SIU),18.5,"GROCERY STORES, SUPERMARKETS",2023-24Q3_PC0495
Sandwell Metropolitan Borough Council,https://www.sandwell.gov.uk/performance-spending/government-procurement-cards,24-Jan-2024,Total Public Health,MENTIMETER BASIC,Public Health,144,COMPUTER SOFTWARE STORES,2023-24Q3_PC0496
Sandwell Metropolitan Borough Council,https://www.sandwell.gov.uk/performance-spending/government-procurement-cards,24-Jan-2024,Total Housing Revenue Account,MOJ OSPT ECOM,Total Housing Revenue Account,40,GOVERNMENT SERVICES-NOT ELSEWHERE CLASSIFIED,2023-24Q3_PC0497
Sandwell Metropolitan Borough Council,https://www.sandwell.gov.uk/performance-spending/government-procurement-cards,24-Jan-2024,Total Housing Revenue Account,MOJ OSPT ECOM,Total Housing Revenue Account,40,GOVERNMENT SERVICES-NOT ELSEWHERE CLASSIFIED,2023-24Q3_PC0498
Sandwell Metropolitan Borough Council,https://www.sandwell.gov.uk/performance-spending/government-procurement-cards,24-Jan-2024,Total Housing Revenue Account,MOJ OSPT ECOM,Total Housing Revenue Account,40,GOVERNMENT SERVICES-NOT ELSEWHERE CLASSIFIED,2023-24Q3_PC0499
Sandwell Metropolitan Borough Council,https://www.sandwell.gov.uk/performance-spending/government-procurement-cards,24-Jan-2024,Total Housing Revenue Account,MOJ OSPT ECOM,Total Housing Revenue Account,40,GOVERNMENT SERVICES-NOT ELSEWHERE CLASSIFIED,2023-24Q3_PC0500
Sandwell Metropolitan Borough Council,https://www.sandwell.gov.uk/performance-spending/government-procurement-cards,24-Jan-2024,Total Housing Revenue Account,MOJ OSPT ECOM,Total Housing Revenue Account,40,GOVERNMENT SERVICES-NOT ELSEWHERE CLASSIFIED,2023-24Q3_PC0501
Sandwell Metropolitan Borough Council,https://www.sandwell.gov.uk/performance-spending/government-procurement-cards,24-Jan-2024,Total Housing Revenue Account,MOJ OSPT ECOM,Total Housing Revenue Account,40,GOVERNMENT SERVICES-NOT ELSEWHERE CLASSIFIED,2023-24Q3_PC0502
Sandwell Metropolitan Borough Council,https://www.sandwell.gov.uk/performance-spending/government-procurement-cards,24-Jan-2024,Childrens Services,AMZNMKTPLACE,Childrens Services,111.41,MISCELLANEOUS AND SPECIALTY RETAIL STORES,2023-24Q3_PC0503
Sandwell Metropolitan Borough Council,https://www.sandwell.gov.uk/performance-spending/government-procurement-cards,24-Jan-2024,Childrens Services,POST OFFICE COUNTER,Childrens Services,21.74,POSTAL SERVICES-GOVERNMENT ONLY,2023-24Q3_PC0504
Sandwell Metropolitan Borough Council,https://www.sandwell.gov.uk/performance-spending/government-procurement-cards,24-Jan-2024,Total Borough Economy,CARD FACTORY,Total Adult Social Care,0.98,"GIFT, CARD, NOVELTY AND SOUVENIR SHOPS",2023-24Q3_PC0505
Sandwell Metropolitan Borough Council,https://www.sandwell.gov.uk/performance-spending/government-procurement-cards,25-Jan-2024,Total ASCHWB,AMZNMKTPLACE,Total Adult Social Care,22.92,MISCELLANEOUS AND SPECIALTY RETAIL STORES,2023-24Q3_PC0506
Sandwell Metropolitan Borough Council,https://www.sandwell.gov.uk/performance-spending/government-procurement-cards,25-Jan-2024,Total ASCHWB,AMZNMKTPLACE,Total Adult Social Care,22.92,MISCELLANEOUS AND SPECIALTY RETAIL STORES,2023-24Q3_PC0507
Sandwell Metropolitan Borough Council,https://www.sandwell.gov.uk/performance-spending/government-procurement-cards,25-Jan-2024,Total ASCHWB,AMZNMKTPLACE,Total Adult Social Care,22.92,MISCELLANEOUS AND SPECIALTY RETAIL STORES,2023-24Q3_PC0508
Sandwell Metropolitan Borough Council,https://www.sandwell.gov.uk/performance-spending/government-procurement-cards,25-Jan-2024,Total ASCHWB,AMZNMKTPLACE,Total Adult Social Care,29.6,MISCELLANEOUS AND SPECIALTY RETAIL STORES,2023-24Q3_PC0509
Sandwell Metropolitan Borough Council,https://www.sandwell.gov.uk/performance-spending/government-procurement-cards,25-Jan-2024,Total Borough Economy,WWW.RANDALLSFIREWOOD,Total Adult Social Care,327,"FIREPLACE, FIREPLACE SCREENS & ACCESSORIES STORES",2023-24Q3_PC0510
Sandwell Metropolitan Borough Council,https://www.sandwell.gov.uk/performance-spending/government-procurement-cards,25-Jan-2024,Total Borough Economy,TIMPSON LTD,Total Adult Social Care,43.5,MISCELLANEOUS AND SPECIALTY RETAIL STORES,2023-24Q3_PC0511
Sandwell Metropolitan Borough Council,https://www.sandwell.gov.uk/performance-spending/government-procurement-cards,25-Jan-2024,Total Borough Economy,AMZNMKTPLACE,Total Adult Social Care,154.98,MISCELLANEOUS AND SPECIALTY RETAIL STORES,2023-24Q3_PC0512
Sandwell Metropolitan Borough Council,https://www.sandwell.gov.uk/performance-spending/government-procurement-cards,25-Jan-2024,FINANCE (Inc SIU),AMZNMktplace,Assistant Chief Executive (Excl SIU),18.22,MISCELLANEOUS AND SPECIALTY RETAIL STORES,2023-24Q3_PC0513
Sandwell Metropolitan Borough Council,https://www.sandwell.gov.uk/performance-spending/government-procurement-cards,25-Jan-2024,Total Borough Economy,WWW.ARCO.CO.UK,Total Adult Social Care,215.96,INDUSTRIAL SUPPLIES NOT ELSEWHERE CLASSIFIED,2023-24Q3_PC0514
Sandwell Metropolitan Borough Council,https://www.sandwell.gov.uk/performance-spending/government-procurement-cards,25-Jan-2024,Total Borough Economy,WWW.WOLVERINEWORLDWIDE,Total Adult Social Care,130,SHOE STORES,2023-24Q3_PC0515
Sandwell Metropolitan Borough Council,https://www.sandwell.gov.uk/performance-spending/government-procurement-cards,25-Jan-2024,Regeneration & Growth,TIMPSON LTD,Regeneration And The Economy,18,MISCELLANEOUS AND SPECIALTY RETAIL STORES,2023-24Q3_PC0516
Sandwell Metropolitan Borough Council,https://www.sandwell.gov.uk/performance-spending/government-procurement-cards,25-Jan-2024,Total ASCHWB,WWW.ARGOS.CO.UK,Total Adult Social Care,11,DEPARTMENT STORES,2023-24Q3_PC0517
Sandwell Metropolitan Borough Council,https://www.sandwell.gov.uk/performance-spending/government-procurement-cards,25-Jan-2024,Total ASCHWB,AMZNMKTPLACE,Total Adult Social Care,17.77,MISCELLANEOUS AND SPECIALTY RETAIL STORES,2023-24Q3_PC0518
Sandwell Metropolitan Borough Council,https://www.sandwell.gov.uk/performance-spending/government-procurement-cards,25-Jan-2024,Individual School Budgets With Inclusion,WWW.ARGOS.CO.UK,Individual School Budgets With Inclusion,115.95,DEPARTMENT STORES,2023-24Q3_PC0519
Sandwell Metropolitan Borough Council,https://www.sandwell.gov.uk/performance-spending/government-procurement-cards,25-Jan-2024,Regeneration & Growth,AMZNMktplace,Regeneration And The Economy,17.9,MISCELLANEOUS AND SPECIALTY RETAIL STORES,2023-24Q3_PC0520
Sandwell Metropolitan Borough Council,https://www.sandwell.gov.uk/performance-spending/government-procurement-cards,25-Jan-2024,Regeneration & Growth,AMZNMktplace,Regeneration And The Economy,16,MISCELLANEOUS AND SPECIALTY RETAIL STORES,2023-24Q3_PC0521
Sandwell Metropolitan Borough Council,https://www.sandwell.gov.uk/performance-spending/government-procurement-cards,25-Jan-2024,Regeneration & Growth,AMZNMktplace,Regeneration And The Economy,77.34,MISCELLANEOUS AND SPECIALTY RETAIL STORES,2023-24Q3_PC0522
Sandwell Metropolitan Borough Council,https://www.sandwell.gov.uk/performance-spending/government-procurement-cards,25-Jan-2024,Regeneration & Growth,AMZNMktplace,Regeneration And The Economy,21.66,MISCELLANEOUS AND SPECIALTY RETAIL STORES,2023-24Q3_PC0523
Sandwell Metropolitan Borough Council,https://www.sandwell.gov.uk/performance-spending/government-procurement-cards,25-Jan-2024,Total Borough Economy,AMZNMKTPLACE,Total Adult Social Care,73.95,MISCELLANEOUS AND SPECIALTY RETAIL STORES,2023-24Q3_PC0524
Sandwell Metropolitan Borough Council,https://www.sandwell.gov.uk/performance-spending/government-procurement-cards,25-Jan-2024,Total Borough Economy,AMZNMktplace,Total Adult Social Care,66.49,MISCELLANEOUS AND SPECIALTY RETAIL STORES,2023-24Q3_PC0525
Sandwell Metropolitan Borough Council,https://www.sandwell.gov.uk/performance-spending/government-procurement-cards,25-Jan-2024,Total ASCHWB,AMZNMktplace,Total Adult Social Care,12.98,MISCELLANEOUS AND SPECIALTY RETAIL STORES,2023-24Q3_PC0526
Sandwell Metropolitan Borough Council,https://www.sandwell.gov.uk/performance-spending/government-procurement-cards,25-Jan-2024,Childrens Services,WESTMINSTER INSIGHT,Childrens Services,409.32,DIGITAL GOODS AUDIOVISUAL MEDIA,2023-24Q3_PC0527
Sandwell Metropolitan Borough Council,https://www.sandwell.gov.uk/performance-spending/government-procurement-cards,25-Jan-2024,Total ASCHWB,AMZNMktplace,Total Adult Social Care,5.1,MISCELLANEOUS AND SPECIALTY RETAIL STORES,2023-24Q3_PC0528
Sandwell Metropolitan Borough Council,https://www.sandwell.gov.uk/performance-spending/government-procurement-cards,25-Jan-2024,Total ASCHWB,AMZNMKTPLACE,Total Adult Social Care,4.15,MISCELLANEOUS AND SPECIALTY RETAIL STORES,2023-24Q3_PC0529
Sandwell Metropolitan Borough Council,https://www.sandwell.gov.uk/performance-spending/government-procurement-cards,25-Jan-2024,Total ASCHWB,AMZNMktplace,Total Adult Social Care,11.99,MISCELLANEOUS AND SPECIALTY RETAIL STORES,2023-24Q3_PC0530
Sandwell Metropolitan Borough Council,https://www.sandwell.gov.uk/performance-spending/government-procurement-cards,25-Jan-2024,Total Borough Economy,HIGH SPEED TRAINING,Total Adult Social Care,60,SCHOOLS & EDUCATIONAL SVC-NOT ELSEWHERE CLASSIFIED,2023-24Q3_PC0531
Sandwell Metropolitan Borough Council,https://www.sandwell.gov.uk/performance-spending/government-procurement-cards,25-Jan-2024,FINANCE (Inc SIU),AMZNMktplace,Assistant Chief Executive (Excl SIU),20.99,MISCELLANEOUS AND SPECIALTY RETAIL STORES,2023-24Q3_PC0532
Sandwell Metropolitan Borough Council,https://www.sandwell.gov.uk/performance-spending/government-procurement-cards,25-Jan-2024,Total ASCHWB,IKEA LTD SHOP ONLINE,Total Adult Social Care,310,"EQUIP, FURNITURE, HOME FURNSHNGS STRS (EXCPT APPL)",2023-24Q3_PC0533
Sandwell Metropolitan Borough Council,https://www.sandwell.gov.uk/performance-spending/government-procurement-cards,25-Jan-2024,Childrens Services,A S CATERING SUPPLIES,Childrens Services,55.81,"COMMERCIAL EQUIPMENT, NOT ELSEWHERE CLASSIFIED",2023-24Q3_PC0534
Sandwell Metropolitan Borough Council,https://www.sandwell.gov.uk/performance-spending/government-procurement-cards,25-Jan-2024,Total Public Health,Amazon.co.uk R15Q833S5,Public Health,14.62,DIRECT MARKETING-OTHER DIRECT MARKETERS/NOT ELSEW.,2023-24Q3_PC0535
Sandwell Metropolitan Borough Council,https://www.sandwell.gov.uk/performance-spending/government-procurement-cards,25-Jan-2024,Childrens Services,ALDI 772 177,Childrens Services,57.78,"GROCERY STORES, SUPERMARKETS",2023-24Q3_PC0536
Sandwell Metropolitan Borough Council,https://www.sandwell.gov.uk/performance-spending/government-procurement-cards,25-Jan-2024,Childrens Services,CENTRAL ENG COOP,Childrens Services,11.9,"GROCERY STORES, SUPERMARKETS",2023-24Q3_PC0537
Sandwell Metropolitan Borough Council,https://www.sandwell.gov.uk/performance-spending/government-procurement-cards,25-Jan-2024,Childrens Services,POST OFFICE COUNTER,Childrens Services,8.15,POSTAL SERVICES-GOVERNMENT ONLY,2023-24Q3_PC0538
Sandwell Metropolitan Borough Council,https://www.sandwell.gov.uk/performance-spending/government-procurement-cards,25-Jan-2024,Childrens Services,Amazon.co.uk HK2AW48X5,Childrens Services,16.88,DIRECT MARKETING-OTHER DIRECT MARKETERS/NOT ELSEW.,2023-24Q3_PC0539
Sandwell Metropolitan Borough Council,https://www.sandwell.gov.uk/performance-spending/government-procurement-cards,25-Jan-2024,Total Housing Revenue Account,AMZNMKTPLACE,Total Housing Revenue Account,31.47,MISCELLANEOUS AND SPECIALTY RETAIL STORES,2023-24Q3_PC0540
Sandwell Metropolitan Borough Council,https://www.sandwell.gov.uk/performance-spending/government-procurement-cards,25-Jan-2024,Childrens Services,SPORT STRU  SPORT STRU,Childrens Services,220,SCHOOLS & EDUCATIONAL SVC-NOT ELSEWHERE CLASSIFIED,2023-24Q3_PC0541
Sandwell Metropolitan Borough Council,https://www.sandwell.gov.uk/performance-spending/government-procurement-cards,25-Jan-2024,Total Borough Economy,Amazon.co.uk 1Y6ED4EW5,Total Adult Social Care,78.56,DIRECT MARKETING-OTHER DIRECT MARKETERS/NOT ELSEW.,2023-24Q3_PC0542
Sandwell Metropolitan Borough Council,https://www.sandwell.gov.uk/performance-spending/government-procurement-cards,25-Jan-2024,Total Borough Economy,Amazon.co.uk W399D7WW5,Total Adult Social Care,25.19,DIRECT MARKETING-OTHER DIRECT MARKETERS/NOT ELSEW.,2023-24Q3_PC0543
Sandwell Metropolitan Borough Council,https://www.sandwell.gov.uk/performance-spending/government-procurement-cards,25-Jan-2024,Assistant Chief Executive,AMAZON  204-6716747-09,Assistant Chief Executive (Excl SIU),21.93,MISCELLANEOUS GENERAL MERCHANDISE,2023-24Q3_PC0544
Sandwell Metropolitan Borough Council,https://www.sandwell.gov.uk/performance-spending/government-procurement-cards,26-Jan-2024,Total ASCHWB,AMZNMKTPLACE,Total Adult Social Care,99.95,MISCELLANEOUS AND SPECIALTY RETAIL STORES,2023-24Q3_PC0545
Sandwell Metropolitan Borough Council,https://www.sandwell.gov.uk/performance-spending/government-procurement-cards,26-Jan-2024,Total Borough Economy,TIMPSON LTD,Total Adult Social Care,24,MISCELLANEOUS AND SPECIALTY RETAIL STORES,2023-24Q3_PC0546
Sandwell Metropolitan Borough Council,https://www.sandwell.gov.uk/performance-spending/government-procurement-cards,26-Jan-2024,Total Borough Economy,FLOWER CONNEXION,Total Adult Social Care,50,FLORISTS,2023-24Q3_PC0547
Sandwell Metropolitan Borough Council,https://www.sandwell.gov.uk/performance-spending/government-procurement-cards,26-Jan-2024,Total Borough Economy,AMZNMktplace,Total Adult Social Care,16.89,MISCELLANEOUS AND SPECIALTY RETAIL STORES,2023-24Q3_PC0548
Sandwell Metropolitan Borough Council,https://www.sandwell.gov.uk/performance-spending/government-procurement-cards,26-Jan-2024,Assistant Chief Executive,AMZNMktplace,Assistant Chief Executive (Excl SIU),30.98,MISCELLANEOUS AND SPECIALTY RETAIL STORES,2023-24Q3_PC0549
Sandwell Metropolitan Borough Council,https://www.sandwell.gov.uk/performance-spending/government-procurement-cards,26-Jan-2024,Individual School Budgets With Inclusion,ASDA GROCERIES ONLINE,Individual School Budgets With Inclusion,122.86,"GROCERY STORES, SUPERMARKETS",2023-24Q3_PC0550
Sandwell Metropolitan Borough Council,https://www.sandwell.gov.uk/performance-spending/government-procurement-cards,26-Jan-2024,Individual School Budgets With Inclusion,SHOE ZONE (INTERNET),Individual School Budgets With Inclusion,46.96,SHOE STORES,2023-24Q3_PC0551
Sandwell Metropolitan Borough Council,https://www.sandwell.gov.uk/performance-spending/government-procurement-cards,26-Jan-2024,Individual School Budgets With Inclusion,ASDA GROCERIES ONLINE,Individual School Budgets With Inclusion,-2.98,"GROCERY STORES, SUPERMARKETS",2023-24Q3_PC0552
Sandwell Metropolitan Borough Council,https://www.sandwell.gov.uk/performance-spending/government-procurement-cards,26-Jan-2024,Regeneration & Growth,AMAZON  204-8417532-44,Regeneration And The Economy,8.99,MISCELLANEOUS GENERAL MERCHANDISE,2023-24Q3_PC0553
Sandwell Metropolitan Borough Council,https://www.sandwell.gov.uk/performance-spending/government-procurement-cards,26-Jan-2024,Regeneration & Growth,SCOTTISH POWER,Regeneration And The Economy,14.16,"FUEL DEALERS-COAL, FUEL OIL, LIQ PETROLEUM, WOOD",2023-24Q3_PC0554
Sandwell Metropolitan Borough Council,https://www.sandwell.gov.uk/performance-spending/government-procurement-cards,26-Jan-2024,Total Borough Economy,AMAZON  204-4067664-09,Total Adult Social Care,33.88,MISCELLANEOUS GENERAL MERCHANDISE,2023-24Q3_PC0555
Sandwell Metropolitan Borough Council,https://www.sandwell.gov.uk/performance-spending/government-procurement-cards,26-Jan-2024,Total Borough Economy,AMZNMktplace,Total Adult Social Care,-89.99,MISCELLANEOUS AND SPECIALTY RETAIL STORES,2023-24Q3_PC0556
Sandwell Metropolitan Borough Council,https://www.sandwell.gov.uk/performance-spending/government-procurement-cards,26-Jan-2024,Total Borough Economy,AMZNMktplace,Total Adult Social Care,28.98,MISCELLANEOUS AND SPECIALTY RETAIL STORES,2023-24Q3_PC0557
Sandwell Metropolitan Borough Council,https://www.sandwell.gov.uk/performance-spending/government-procurement-cards,26-Jan-2024,Total ASCHWB,AMAZON  204-5000570-65,Total Adult Social Care,66.01,MISCELLANEOUS GENERAL MERCHANDISE,2023-24Q3_PC0558
Sandwell Metropolitan Borough Council,https://www.sandwell.gov.uk/performance-spending/government-procurement-cards,26-Jan-2024,Childrens Services,AMZNMktplace,Childrens Services,6.99,MISCELLANEOUS AND SPECIALTY RETAIL STORES,2023-24Q3_PC0559
Sandwell Metropolitan Borough Council,https://www.sandwell.gov.uk/performance-spending/government-procurement-cards,26-Jan-2024,Childrens Services,NISBETS LTD,Childrens Services,457.09,DIRECT MARKETING-CATALOG MERCHANTS,2023-24Q3_PC0560
Sandwell Metropolitan Borough Council,https://www.sandwell.gov.uk/performance-spending/government-procurement-cards,26-Jan-2024,Total Borough Economy,OT GROUP,Total Adult Social Care,299.23,STATIONERY/OFFICE SUPPLIES/PRINTING & WRITING PAP.,2023-24Q3_PC0561
Sandwell Metropolitan Borough Council,https://www.sandwell.gov.uk/performance-spending/government-procurement-cards,26-Jan-2024,Total Borough Economy,TRAINLINE,Total Adult Social Care,51.35,PASSENGER RAILWAYS,2023-24Q3_PC0562
Sandwell Metropolitan Borough Council,https://www.sandwell.gov.uk/performance-spending/government-procurement-cards,26-Jan-2024,Total Borough Economy,TRAINLINE,Total Adult Social Care,24.34,PASSENGER RAILWAYS,2023-24Q3_PC0563
Sandwell Metropolitan Borough Council,https://www.sandwell.gov.uk/performance-spending/government-procurement-cards,26-Jan-2024,Total Borough Economy,HOMEBASE LTD 085,Dead SeRCOP,91.2,HOME SUPPLY WAREHOUSE STORES,2023-24Q3_PC0564
Sandwell Metropolitan Borough Council,https://www.sandwell.gov.uk/performance-spending/government-procurement-cards,26-Jan-2024,Total Borough Economy,AMZNMktplace,Total Adult Social Care,99.98,MISCELLANEOUS AND SPECIALTY RETAIL STORES,2023-24Q3_PC0565
Sandwell Metropolitan Borough Council,https://www.sandwell.gov.uk/performance-spending/government-procurement-cards,26-Jan-2024,Childrens Services,RONTEC DUDLEY PORT,Childrens Services,8,SERVICE STATIONS WITH OR WITHOUT ANCILLARY SERVICE,2023-24Q3_PC0566
Sandwell Metropolitan Borough Council,https://www.sandwell.gov.uk/performance-spending/government-procurement-cards,26-Jan-2024,Total Public Health,SumUp   The Fish   Chi,Public Health,9.75,"GROCERY STORES, SUPERMARKETS",2023-24Q3_PC0567
Sandwell Metropolitan Borough Council,https://www.sandwell.gov.uk/performance-spending/government-procurement-cards,26-Jan-2024,Total Public Health,Just Eat,Public Health,83.49,FAST FOOD RESTAURANTS,2023-24Q3_PC0568
Sandwell Metropolitan Borough Council,https://www.sandwell.gov.uk/performance-spending/government-procurement-cards,26-Jan-2024,FINANCE (Inc SIU),REMARKABLE,Assistant Chief Executive (Excl SIU),2.99,ELECTRONIC SALES,2023-24Q3_PC0569
Sandwell Metropolitan Borough Council,https://www.sandwell.gov.uk/performance-spending/government-procurement-cards,26-Jan-2024,Childrens Services,SAINSBURYS S/MKTS,Childrens Services,18.87,"GROCERY STORES, SUPERMARKETS",2023-24Q3_PC0570
Sandwell Metropolitan Borough Council,https://www.sandwell.gov.uk/performance-spending/government-procurement-cards,26-Jan-2024,Childrens Services,Shell Solihull,Childrens Services,20.01,SERVICE STATIONS WITH OR WITHOUT ANCILLARY SERVICE,2023-24Q3_PC0571
Sandwell Metropolitan Borough Council,https://www.sandwell.gov.uk/performance-spending/government-procurement-cards,26-Jan-2024,Total Borough Economy,WWW.OFFICETEAMCONNECT.,Total Adult Social Care,78.23,STATIONERY/OFFICE SUPPLIES/PRINTING & WRITING PAP.,2023-24Q3_PC0572
Sandwell Metropolitan Borough Council,https://www.sandwell.gov.uk/performance-spending/government-procurement-cards,29-Jan-2024,Total ASCHWB,AMZNMKTPLACE,Total Adult Social Care,22.92,MISCELLANEOUS AND SPECIALTY RETAIL STORES,2023-24Q3_PC0573
Sandwell Metropolitan Borough Council,https://www.sandwell.gov.uk/performance-spending/government-procurement-cards,29-Jan-2024,Total ASCHWB,AMZNMKTPLACE,Total Adult Social Care,22.92,MISCELLANEOUS AND SPECIALTY RETAIL STORES,2023-24Q3_PC0574
Sandwell Metropolitan Borough Council,https://www.sandwell.gov.uk/performance-spending/government-procurement-cards,29-Jan-2024,Total Borough Economy,WWW.LINCRAFTS.COM,Total Adult Social Care,53.98,"GAME, TOY, AND HOBBY SHOPS",2023-24Q3_PC0575
Sandwell Metropolitan Borough Council,https://www.sandwell.gov.uk/performance-spending/government-procurement-cards,29-Jan-2024,Total Borough Economy,AGRIWEBB UKEU LTD,Total Adult Social Care,300,COMPUTER SOFTWARE STORES,2023-24Q3_PC0576
Sandwell Metropolitan Borough Council,https://www.sandwell.gov.uk/performance-spending/government-procurement-cards,29-Jan-2024,Total ASCHWB,AMAZON  204-7231428-43,Total Adult Social Care,107.45,MISCELLANEOUS GENERAL MERCHANDISE,2023-24Q3_PC0577
Sandwell Metropolitan Borough Council,https://www.sandwell.gov.uk/performance-spending/government-procurement-cards,29-Jan-2024,Law & Governance,SAINSBURYS SMKTS,Assistant Chief Executive (Excl SIU),113.5,"GROCERY STORES, SUPERMARKETS",2023-24Q3_PC0578
Sandwell Metropolitan Borough Council,https://www.sandwell.gov.uk/performance-spending/government-procurement-cards,29-Jan-2024,Childrens Services,ASDA STORES 4253,Childrens Services,35,"GROCERY STORES, SUPERMARKETS",2023-24Q3_PC0579
Sandwell Metropolitan Borough Council,https://www.sandwell.gov.uk/performance-spending/government-procurement-cards,29-Jan-2024,Law & Governance,WM MORRISONS STORE,Assistant Chief Executive (Excl SIU),3.74,"GROCERY STORES, SUPERMARKETS",2023-24Q3_PC0580
Sandwell Metropolitan Borough Council,https://www.sandwell.gov.uk/performance-spending/government-procurement-cards,29-Jan-2024,Childrens Services,GEAR4MUSIC LIMITED,Childrens Services,46.43,"MUSIC STORES-INSTRUMENTS, PIANOS, SHEET MUSIC",2023-24Q3_PC0581
Sandwell Metropolitan Borough Council,https://www.sandwell.gov.uk/performance-spending/government-procurement-cards,29-Jan-2024,Childrens Services,SCREWFIX DIR LTD,Childrens Services,6.99,"BUILDING MATERIALS, LUMBER STORES",2023-24Q3_PC0582
Sandwell Metropolitan Borough Council,https://www.sandwell.gov.uk/performance-spending/government-procurement-cards,29-Jan-2024,Childrens Services,TOOLSTATION LIMITED,Childrens Services,12,"BUILDING MATERIALS, LUMBER STORES",2023-24Q3_PC0583
Sandwell Metropolitan Borough Council,https://www.sandwell.gov.uk/performance-spending/government-procurement-cards,29-Jan-2024,Childrens Services,BRIDEBOOK,Childrens Services,153.6,COMPUTER SOFTWARE STORES,2023-24Q3_PC0584
Sandwell Metropolitan Borough Council,https://www.sandwell.gov.uk/performance-spending/government-procurement-cards,29-Jan-2024,Total ASCHWB,AMAZON  206-3895614-33,Total Adult Social Care,55.15,MISCELLANEOUS GENERAL MERCHANDISE,2023-24Q3_PC0585
Sandwell Metropolitan Borough Council,https://www.sandwell.gov.uk/performance-spending/government-procurement-cards,29-Jan-2024,Total Borough Economy,SUTTONS B2C ECOMM,Total Adult Social Care,420.6,LAWN AND GARDEN SUPPLY STORES,2023-24Q3_PC0586
Sandwell Metropolitan Borough Council,https://www.sandwell.gov.uk/performance-spending/government-procurement-cards,29-Jan-2024,Childrens Services,BEEBYS BUBBLES,Childrens Services,112.5,"CLEANING, GARMENT, AND LAUNDRY SERVICES",2023-24Q3_PC0587
Sandwell Metropolitan Borough Council,https://www.sandwell.gov.uk/performance-spending/government-procurement-cards,29-Jan-2024,Childrens Services,ADOBE SYSTEMS SOFTWARE,Childrens Services,19.97,COMPUTER SOFTWARE STORES,2023-24Q3_PC0588
Sandwell Metropolitan Borough Council,https://www.sandwell.gov.uk/performance-spending/government-procurement-cards,29-Jan-2024,Total ASCHWB,WWW.ARGOS.CO.UK,Total Adult Social Care,160,DEPARTMENT STORES,2023-24Q3_PC0589
Sandwell Metropolitan Borough Council,https://www.sandwell.gov.uk/performance-spending/government-procurement-cards,29-Jan-2024,Total ASCHWB,AMAZON  026-8467468-70,Total Adult Social Care,65.35,MISCELLANEOUS GENERAL MERCHANDISE,2023-24Q3_PC0590
Sandwell Metropolitan Borough Council,https://www.sandwell.gov.uk/performance-spending/government-procurement-cards,29-Jan-2024,Total ASCHWB,ARGOS OLDBURY,Total Adult Social Care,35,DISCOUNT STORES,2023-24Q3_PC0591
Sandwell Metropolitan Borough Council,https://www.sandwell.gov.uk/performance-spending/government-procurement-cards,29-Jan-2024,Total ASCHWB,SAINSBURYS S/MKTS,Total Adult Social Care,28.3,"GROCERY STORES, SUPERMARKETS",2023-24Q3_PC0592
Sandwell Metropolitan Borough Council,https://www.sandwell.gov.uk/performance-spending/government-procurement-cards,29-Jan-2024,Total Borough Economy,TIMPSON LTD,Total Adult Social Care,12.5,MISCELLANEOUS AND SPECIALTY RETAIL STORES,2023-24Q3_PC0593
Sandwell Metropolitan Borough Council,https://www.sandwell.gov.uk/performance-spending/government-procurement-cards,29-Jan-2024,Total Borough Economy,TSOHOST,Total Adult Social Care,9.54,DIRECT MARKETING-CONTINUITY/SUBSCRIPTION MERCHANTS,2023-24Q3_PC0594
Sandwell Metropolitan Borough Council,https://www.sandwell.gov.uk/performance-spending/government-procurement-cards,29-Jan-2024,Total Borough Economy,PAYPAL  BAKER ROSS,Total Adult Social Care,191.43,"GAME, TOY, AND HOBBY SHOPS",2023-24Q3_PC0595
Sandwell Metropolitan Borough Council,https://www.sandwell.gov.uk/performance-spending/government-procurement-cards,29-Jan-2024,Total ASCHWB,eBay O 19-11095-09907,Total Adult Social Care,194.8,DEPARTMENT STORES,2023-24Q3_PC0596
Sandwell Metropolitan Borough Council,https://www.sandwell.gov.uk/performance-spending/government-procurement-cards,29-Jan-2024,Total Borough Economy,AMZNMktplace,Total Adult Social Care,14.5,MISCELLANEOUS AND SPECIALTY RETAIL STORES,2023-24Q3_PC0597
Sandwell Metropolitan Borough Council,https://www.sandwell.gov.uk/performance-spending/government-procurement-cards,29-Jan-2024,Law & Governance,PREMIER INN,Assistant Chief Executive (Excl SIU),313,PREMIER INN,2023-24Q3_PC0598
Sandwell Metropolitan Borough Council,https://www.sandwell.gov.uk/performance-spending/government-procurement-cards,29-Jan-2024,Total Borough Economy,AMAZON  204-2356698-05,Total Adult Social Care,295.07,MISCELLANEOUS GENERAL MERCHANDISE,2023-24Q3_PC0599
Sandwell Metropolitan Borough Council,https://www.sandwell.gov.uk/performance-spending/government-procurement-cards,29-Jan-2024,Total Borough Economy,AMAZON  204-7535227-23,Total Adult Social Care,110.97,MISCELLANEOUS GENERAL MERCHANDISE,2023-24Q3_PC0600
Sandwell Metropolitan Borough Council,https://www.sandwell.gov.uk/performance-spending/government-procurement-cards,29-Jan-2024,Total ASCHWB,SP NWOF,Total Adult Social Care,187.8,OFFICE AND COMMERCIAL FURNITURE,2023-24Q3_PC0601
Sandwell Metropolitan Borough Council,https://www.sandwell.gov.uk/performance-spending/government-procurement-cards,29-Jan-2024,Total Public Health,RESEARCH REGISTRY,Public Health,99,COMPUTER SOFTWARE STORES,2023-24Q3_PC0602
Sandwell Metropolitan Borough Council,https://www.sandwell.gov.uk/performance-spending/government-procurement-cards,29-Jan-2024,Childrens Services,Subway 38865 Church St,Childrens Services,13.58,FAST FOOD RESTAURANTS,2023-24Q3_PC0603
Sandwell Metropolitan Borough Council,https://www.sandwell.gov.uk/performance-spending/government-procurement-cards,29-Jan-2024,Childrens Services,TESCO STORES 2335,Childrens Services,23.1,"GROCERY STORES, SUPERMARKETS",2023-24Q3_PC0604
Sandwell Metropolitan Borough Council,https://www.sandwell.gov.uk/performance-spending/government-procurement-cards,29-Jan-2024,Total Borough Economy,Amazon.co.uk VR4LS2KI5,Total Adult Social Care,66.21,DIRECT MARKETING-OTHER DIRECT MARKETERS/NOT ELSEW.,2023-24Q3_PC0605
Sandwell Metropolitan Borough Council,https://www.sandwell.gov.uk/performance-spending/government-procurement-cards,29-Jan-2024,Regeneration & Growth,TRAVELODGE,Regeneration And The Economy,257.97,TRAVELODGE,2023-24Q3_PC0606
Sandwell Metropolitan Borough Council,https://www.sandwell.gov.uk/performance-spending/government-procurement-cards,29-Jan-2024,Regeneration & Growth,Amazon.co.uk A40QK3O95,Regeneration And The Economy,22.57,DIRECT MARKETING-OTHER DIRECT MARKETERS/NOT ELSEW.,2023-24Q3_PC0607
Sandwell Metropolitan Borough Council,https://www.sandwell.gov.uk/performance-spending/government-procurement-cards,29-Jan-2024,Assistant Chief Executive,TSOHOST,Assistant Chief Executive (Excl SIU),143.86,DIRECT MARKETING-CONTINUITY/SUBSCRIPTION MERCHANTS,2023-24Q3_PC0608
Sandwell Metropolitan Borough Council,https://www.sandwell.gov.uk/performance-spending/government-procurement-cards,29-Jan-2024,Regeneration & Growth,AMAZON  204-9252553-51,Regeneration And The Economy,47.12,MISCELLANEOUS GENERAL MERCHANDISE,2023-24Q3_PC0609
Sandwell Metropolitan Borough Council,https://www.sandwell.gov.uk/performance-spending/government-procurement-cards,29-Jan-2024,Regeneration & Growth,PAYPAL  POWERSU5ARJ,Regeneration And The Economy,54.99,ELECTRONIC SALES,2023-24Q3_PC0610
Sandwell Metropolitan Borough Council,https://www.sandwell.gov.uk/performance-spending/government-procurement-cards,29-Jan-2024,Total Borough Economy,ASDA GROCERIES ONLINE,Total Adult Social Care,58.8,"GROCERY STORES, SUPERMARKETS",2023-24Q3_PC0611
Sandwell Metropolitan Borough Council,https://www.sandwell.gov.uk/performance-spending/government-procurement-cards,30-Jan-2024,Total Borough Economy,Dunelm Soft Furnishin,Total Adult Social Care,38.5,"EQUIP, FURNITURE, HOME FURNSHNGS STRS (EXCPT APPL)",2023-24Q3_PC0612
Sandwell Metropolitan Borough Council,https://www.sandwell.gov.uk/performance-spending/government-procurement-cards,30-Jan-2024,Total Borough Economy,POUNDLAND LTD - 1729,Total Adult Social Care,8.75,DISCOUNT STORES,2023-24Q3_PC0613
Sandwell Metropolitan Borough Council,https://www.sandwell.gov.uk/performance-spending/government-procurement-cards,30-Jan-2024,Total Borough Economy,ASDA STORES,Total Adult Social Care,9,"GROCERY STORES, SUPERMARKETS",2023-24Q3_PC0614
Sandwell Metropolitan Borough Council,https://www.sandwell.gov.uk/performance-spending/government-procurement-cards,30-Jan-2024,Assistant Chief Executive,AMAZON  204-3438039-69,Assistant Chief Executive (Excl SIU),10.89,MISCELLANEOUS GENERAL MERCHANDISE,2023-24Q3_PC0615
Sandwell Metropolitan Borough Council,https://www.sandwell.gov.uk/performance-spending/government-procurement-cards,30-Jan-2024,Assistant Chief Executive,AMAZON  204-9324820-37,Assistant Chief Executive (Excl SIU),10.89,MISCELLANEOUS GENERAL MERCHANDISE,2023-24Q3_PC0616
Sandwell Metropolitan Borough Council,https://www.sandwell.gov.uk/performance-spending/government-procurement-cards,30-Jan-2024,Assistant Chief Executive,AMZNMktplace,Assistant Chief Executive (Excl SIU),9.49,MISCELLANEOUS AND SPECIALTY RETAIL STORES,2023-24Q3_PC0617
Sandwell Metropolitan Borough Council,https://www.sandwell.gov.uk/performance-spending/government-procurement-cards,30-Jan-2024,Childrens Services,ASDA STORES 4253,Childrens Services,18.35,"GROCERY STORES, SUPERMARKETS",2023-24Q3_PC0618
Sandwell Metropolitan Borough Council,https://www.sandwell.gov.uk/performance-spending/government-procurement-cards,30-Jan-2024,Childrens Services,ASDA STORES 4253,Childrens Services,39.3,"GROCERY STORES, SUPERMARKETS",2023-24Q3_PC0619
Sandwell Metropolitan Borough Council,https://www.sandwell.gov.uk/performance-spending/government-procurement-cards,30-Jan-2024,Individual School Budgets With Inclusion,ASDA GROCERIES ONLINE,Individual School Budgets With Inclusion,35.78,"GROCERY STORES, SUPERMARKETS",2023-24Q3_PC0620
Sandwell Metropolitan Borough Council,https://www.sandwell.gov.uk/performance-spending/government-procurement-cards,30-Jan-2024,Individual School Budgets With Inclusion,ASDA GROCERIES ONLINE,Individual School Budgets With Inclusion,-2.6,"GROCERY STORES, SUPERMARKETS",2023-24Q3_PC0621
Sandwell Metropolitan Borough Council,https://www.sandwell.gov.uk/performance-spending/government-procurement-cards,30-Jan-2024,Total ASCHWB,WWW.SCREWFIX.COM,Total Adult Social Care,9.49,"BUILDING MATERIALS, LUMBER STORES",2023-24Q3_PC0622
Sandwell Metropolitan Borough Council,https://www.sandwell.gov.uk/performance-spending/government-procurement-cards,30-Jan-2024,Childrens Services,ASDA GROCERIES ONLINE,Childrens Services,-2.87,"GROCERY STORES, SUPERMARKETS",2023-24Q3_PC0623
Sandwell Metropolitan Borough Council,https://www.sandwell.gov.uk/performance-spending/government-procurement-cards,30-Jan-2024,Childrens Services,ASDA GROCERIES ONLINE,Childrens Services,154.15,"GROCERY STORES, SUPERMARKETS",2023-24Q3_PC0624
Sandwell Metropolitan Borough Council,https://www.sandwell.gov.uk/performance-spending/government-procurement-cards,30-Jan-2024,Total ASCHWB,TVLICENSING.CO.UK,Total Adult Social Care,159,"CONSULTING, MANAGEMENT, AND PUBLIC RELATIONS SVCS",2023-24Q3_PC0625
Sandwell Metropolitan Borough Council,https://www.sandwell.gov.uk/performance-spending/government-procurement-cards,30-Jan-2024,Total ASCHWB,AMZNMktplace,Total Adult Social Care,54.23,MISCELLANEOUS AND SPECIALTY RETAIL STORES,2023-24Q3_PC0626
Sandwell Metropolitan Borough Council,https://www.sandwell.gov.uk/performance-spending/government-procurement-cards,30-Jan-2024,Total Borough Economy,SUTTONS B2C ECOMM,Total Adult Social Care,117.19,LAWN AND GARDEN SUPPLY STORES,2023-24Q3_PC0627
Sandwell Metropolitan Borough Council,https://www.sandwell.gov.uk/performance-spending/government-procurement-cards,30-Jan-2024,Regeneration & Growth,AMAZON  204-1108469-16,Regeneration And The Economy,29.99,MISCELLANEOUS GENERAL MERCHANDISE,2023-24Q3_PC0628
Sandwell Metropolitan Borough Council,https://www.sandwell.gov.uk/performance-spending/government-procurement-cards,30-Jan-2024,Individual School Budgets With Inclusion,ASDA GROCERIES ONLINE,Individual School Budgets With Inclusion,-4.5,"GROCERY STORES, SUPERMARKETS",2023-24Q3_PC0629
Sandwell Metropolitan Borough Council,https://www.sandwell.gov.uk/performance-spending/government-procurement-cards,30-Jan-2024,Individual School Budgets With Inclusion,ASDA GROCERIES ONLINE,Individual School Budgets With Inclusion,13.05,"GROCERY STORES, SUPERMARKETS",2023-24Q3_PC0630
Sandwell Metropolitan Borough Council,https://www.sandwell.gov.uk/performance-spending/government-procurement-cards,30-Jan-2024,Individual School Budgets With Inclusion,ASDA GROCERIES ONLINE,Individual School Budgets With Inclusion,58.73,"GROCERY STORES, SUPERMARKETS",2023-24Q3_PC0631
Sandwell Metropolitan Borough Council,https://www.sandwell.gov.uk/performance-spending/government-procurement-cards,30-Jan-2024,Childrens Services,AMZNMktplace,Childrens Services,11.27,MISCELLANEOUS AND SPECIALTY RETAIL STORES,2023-24Q3_PC0632
Sandwell Metropolitan Borough Council,https://www.sandwell.gov.uk/performance-spending/government-procurement-cards,30-Jan-2024,Childrens Services,SETON,Childrens Services,31.42,"DURABLE GOODS, NOT ELSEWHERE CLASSIFIED",2023-24Q3_PC0633
Sandwell Metropolitan Borough Council,https://www.sandwell.gov.uk/performance-spending/government-procurement-cards,30-Jan-2024,Childrens Services,WORKPLACEDEPOT.CO.UK,Childrens Services,126.52,INDUSTRIAL SUPPLIES NOT ELSEWHERE CLASSIFIED,2023-24Q3_PC0634
Sandwell Metropolitan Borough Council,https://www.sandwell.gov.uk/performance-spending/government-procurement-cards,30-Jan-2024,Childrens Services,AMAZON  205-9303679-99,Childrens Services,2.79,MISCELLANEOUS GENERAL MERCHANDISE,2023-24Q3_PC0635
Sandwell Metropolitan Borough Council,https://www.sandwell.gov.uk/performance-spending/government-procurement-cards,30-Jan-2024,Childrens Services,AMAZON  205-7272047-85,Childrens Services,6.92,MISCELLANEOUS GENERAL MERCHANDISE,2023-24Q3_PC0636
Sandwell Metropolitan Borough Council,https://www.sandwell.gov.uk/performance-spending/government-procurement-cards,30-Jan-2024,Total Borough Economy,AMAZON  204-6573519-28,Regeneration And The Economy,14.99,MISCELLANEOUS GENERAL MERCHANDISE,2023-24Q3_PC0637
Sandwell Metropolitan Borough Council,https://www.sandwell.gov.uk/performance-spending/government-procurement-cards,30-Jan-2024,Total Borough Economy,AMAZON  204-4543266-89,Total Adult Social Care,3.99,MISCELLANEOUS GENERAL MERCHANDISE,2023-24Q3_PC0638
Sandwell Metropolitan Borough Council,https://www.sandwell.gov.uk/performance-spending/government-procurement-cards,30-Jan-2024,Total Borough Economy,AMZNMktplace,Total Adult Social Care,10.06,MISCELLANEOUS AND SPECIALTY RETAIL STORES,2023-24Q3_PC0639
Sandwell Metropolitan Borough Council,https://www.sandwell.gov.uk/performance-spending/government-procurement-cards,30-Jan-2024,Total Borough Economy,Amazon.co.uk,Total Adult Social Care,-36.1,DIRECT MARKETING-OTHER DIRECT MARKETERS/NOT ELSEW.,2023-24Q3_PC0640
Sandwell Metropolitan Borough Council,https://www.sandwell.gov.uk/performance-spending/government-procurement-cards,30-Jan-2024,Total Borough Economy,Amazon.co.uk,Total Adult Social Care,-61.24,DIRECT MARKETING-OTHER DIRECT MARKETERS/NOT ELSEW.,2023-24Q3_PC0641
Sandwell Metropolitan Borough Council,https://www.sandwell.gov.uk/performance-spending/government-procurement-cards,30-Jan-2024,Total Borough Economy,AMAZON  204-6132490-06,Total Adult Social Care,29.98,MISCELLANEOUS GENERAL MERCHANDISE,2023-24Q3_PC0642
Sandwell Metropolitan Borough Council,https://www.sandwell.gov.uk/performance-spending/government-procurement-cards,30-Jan-2024,Childrens Services,TESCO STORES 2770,Childrens Services,128.89,"GROCERY STORES, SUPERMARKETS",2023-24Q3_PC0643
Sandwell Metropolitan Borough Council,https://www.sandwell.gov.uk/performance-spending/government-procurement-cards,30-Jan-2024,Total Borough Economy,UBER    TRIP,Total Adult Social Care,12.98,LIMOUSINES AND TAXICABS,2023-24Q3_PC0644
Sandwell Metropolitan Borough Council,https://www.sandwell.gov.uk/performance-spending/government-procurement-cards,30-Jan-2024,Childrens Services,AMAZON  FH,Childrens Services,104.95,MISCELLANEOUS GENERAL MERCHANDISE,2023-24Q3_PC0645
Sandwell Metropolitan Borough Council,https://www.sandwell.gov.uk/performance-spending/government-procurement-cards,30-Jan-2024,Childrens Services,AMAZON  FH,Childrens Services,20.99,MISCELLANEOUS GENERAL MERCHANDISE,2023-24Q3_PC0646
Sandwell Metropolitan Borough Council,https://www.sandwell.gov.uk/performance-spending/government-procurement-cards,30-Jan-2024,Childrens Services,AMAZON  FH,Childrens Services,41.98,MISCELLANEOUS GENERAL MERCHANDISE,2023-24Q3_PC0647
Sandwell Metropolitan Borough Council,https://www.sandwell.gov.uk/performance-spending/government-procurement-cards,30-Jan-2024,Childrens Services,AMAZON  204-8607527-34,Childrens Services,40,MISCELLANEOUS GENERAL MERCHANDISE,2023-24Q3_PC0648
Sandwell Metropolitan Borough Council,https://www.sandwell.gov.uk/performance-spending/government-procurement-cards,30-Jan-2024,Total Housing Revenue Account,AMAZON  026-8479649-24,Total Housing Revenue Account,30.61,MISCELLANEOUS GENERAL MERCHANDISE,2023-24Q3_PC0649
Sandwell Metropolitan Borough Council,https://www.sandwell.gov.uk/performance-spending/government-procurement-cards,30-Jan-2024,Total Housing Revenue Account,AMAZON  026-3559086-95,Total Housing Revenue Account,19.98,MISCELLANEOUS GENERAL MERCHANDISE,2023-24Q3_PC0650
Sandwell Metropolitan Borough Council,https://www.sandwell.gov.uk/performance-spending/government-procurement-cards,30-Jan-2024,Total Housing Revenue Account,AMAZON  026-8685562-86,Total Housing Revenue Account,19.98,MISCELLANEOUS GENERAL MERCHANDISE,2023-24Q3_PC0651
Sandwell Metropolitan Borough Council,https://www.sandwell.gov.uk/performance-spending/government-procurement-cards,30-Jan-2024,Childrens Services,ASDA GROCERIES ONLINE,Childrens Services,-4.1,"GROCERY STORES, SUPERMARKETS",2023-24Q3_PC0652
Sandwell Metropolitan Borough Council,https://www.sandwell.gov.uk/performance-spending/government-procurement-cards,30-Jan-2024,Childrens Services,ASDA GROCERIES ONLINE,Childrens Services,-15,"GROCERY STORES, SUPERMARKETS",2023-24Q3_PC0653
Sandwell Metropolitan Borough Council,https://www.sandwell.gov.uk/performance-spending/government-procurement-cards,30-Jan-2024,Childrens Services,ASDA GROCERIES ONLINE,Childrens Services,148.5,"GROCERY STORES, SUPERMARKETS",2023-24Q3_PC0654
Sandwell Metropolitan Borough Council,https://www.sandwell.gov.uk/performance-spending/government-procurement-cards,30-Jan-2024,Total Borough Economy,VIKING,Total Adult Social Care,10.5,OFFICE AND COMMERCIAL FURNITURE,2023-24Q3_PC0655
Sandwell Metropolitan Borough Council,https://www.sandwell.gov.uk/performance-spending/government-procurement-cards,30-Jan-2024,Total Borough Economy,VIKING,Total Adult Social Care,67.67,OFFICE AND COMMERCIAL FURNITURE,2023-24Q3_PC0656
Sandwell Metropolitan Borough Council,https://www.sandwell.gov.uk/performance-spending/government-procurement-cards,31-Jan-2024,Total Borough Economy,AMAZON  204-9450813-18,Total Adult Social Care,50.69,MISCELLANEOUS GENERAL MERCHANDISE,2023-24Q3_PC0657
Sandwell Metropolitan Borough Council,https://www.sandwell.gov.uk/performance-spending/government-procurement-cards,31-Jan-2024,Childrens Services,AMZNMktplace,Childrens Services,5.99,MISCELLANEOUS AND SPECIALTY RETAIL STORES,2023-24Q3_PC0658
Sandwell Metropolitan Borough Council,https://www.sandwell.gov.uk/performance-spending/government-procurement-cards,31-Jan-2024,Total Borough Economy,WWW.SCREWFIX.COM,Total Adult Social Care,33.48,"BUILDING MATERIALS, LUMBER STORES",2023-24Q3_PC0659
Sandwell Metropolitan Borough Council,https://www.sandwell.gov.uk/performance-spending/government-procurement-cards,31-Jan-2024,Total Borough Economy,AMAZON  204-1857094-52,Total Adult Social Care,128.51,MISCELLANEOUS GENERAL MERCHANDISE,2023-24Q3_PC0660
Sandwell Metropolitan Borough Council,https://www.sandwell.gov.uk/performance-spending/government-procurement-cards,31-Jan-2024,Total ASCHWB,BRYSDALES LTD,Total Adult Social Care,109.2,MISCELLANEOUS AND SPECIALTY RETAIL STORES,2023-24Q3_PC0661
Sandwell Metropolitan Borough Council,https://www.sandwell.gov.uk/performance-spending/government-procurement-cards,31-Jan-2024,Individual School Budgets With Inclusion,CATER 4 YOU,Individual School Budgets With Inclusion,39.08,INDUSTRIAL SUPPLIES NOT ELSEWHERE CLASSIFIED,2023-24Q3_PC0662
Sandwell Metropolitan Borough Council,https://www.sandwell.gov.uk/performance-spending/government-procurement-cards,31-Jan-2024,Individual School Budgets With Inclusion,ASDA GROCERIES ONLINE,Individual School Budgets With Inclusion,-1.2,"GROCERY STORES, SUPERMARKETS",2023-24Q3_PC0663
Sandwell Metropolitan Borough Council,https://www.sandwell.gov.uk/performance-spending/government-procurement-cards,31-Jan-2024,Individual School Budgets With Inclusion,ASDA GROCERIES ONLINE,Individual School Budgets With Inclusion,45.5,"GROCERY STORES, SUPERMARKETS",2023-24Q3_PC0664
Sandwell Metropolitan Borough Council,https://www.sandwell.gov.uk/performance-spending/government-procurement-cards,31-Jan-2024,Regeneration & Growth,AMAZON  205-0275887-74,Regeneration And The Economy,28.25,MISCELLANEOUS GENERAL MERCHANDISE,2023-24Q3_PC0665
Sandwell Metropolitan Borough Council,https://www.sandwell.gov.uk/performance-spending/government-procurement-cards,31-Jan-2024,Total Borough Economy,AMAZON  204-9495915-90,Total Adult Social Care,29.01,MISCELLANEOUS GENERAL MERCHANDISE,2023-24Q3_PC0666
Sandwell Metropolitan Borough Council,https://www.sandwell.gov.uk/performance-spending/government-procurement-cards,31-Jan-2024,Total ASCHWB,eBay O 03-11124-39976,Total Adult Social Care,86.76,DEPARTMENT STORES,2023-24Q3_PC0667
Sandwell Metropolitan Borough Council,https://www.sandwell.gov.uk/performance-spending/government-procurement-cards,31-Jan-2024,Total ASCHWB,AMZNMktplace,Total Adult Social Care,149.89,MISCELLANEOUS AND SPECIALTY RETAIL STORES,2023-24Q3_PC0668
Sandwell Metropolitan Borough Council,https://www.sandwell.gov.uk/performance-spending/government-procurement-cards,31-Jan-2024,Total Borough Economy,AMAZON  204-6533160-80,Total Adult Social Care,67.99,MISCELLANEOUS GENERAL MERCHANDISE,2023-24Q3_PC0669
Sandwell Metropolitan Borough Council,https://www.sandwell.gov.uk/performance-spending/government-procurement-cards,31-Jan-2024,Childrens Services,WWW.REDSPOTTEDHANKY.CO,Childrens Services,8.8,PASSENGER RAILWAYS,2023-24Q3_PC0670
Sandwell Metropolitan Borough Council,https://www.sandwell.gov.uk/performance-spending/government-procurement-cards,31-Jan-2024,Total Borough Economy,VIRTUAL COLLEGE LIMITE,Total Adult Social Care,168,SCHOOLS & EDUCATIONAL SVC-NOT ELSEWHERE CLASSIFIED,2023-24Q3_PC0671
Sandwell Metropolitan Borough Council,https://www.sandwell.gov.uk/performance-spending/government-procurement-cards,31-Jan-2024,Total Borough Economy,DISKLOK UK LIMITED,Total Adult Social Care,20,"AUTOMOTIVE PARTS, ACCESSORIES STORES",2023-24Q3_PC0672
Sandwell Metropolitan Borough Council,https://www.sandwell.gov.uk/performance-spending/government-procurement-cards,31-Jan-2024,Total ASCHWB,Amazon.co.uk UJ4ZF5IH5,Total Adult Social Care,72.3,DIRECT MARKETING-OTHER DIRECT MARKETERS/NOT ELSEW.,2023-24Q3_PC0673
Sandwell Metropolitan Borough Council,https://www.sandwell.gov.uk/performance-spending/government-procurement-cards,31-Jan-2024,Childrens Services,Mailchimp,Childrens Services,12.37,DIGITAL GOODS MULTI CATEGORY,2023-24Q3_PC0674
Sandwell Metropolitan Borough Council,https://www.sandwell.gov.uk/performance-spending/government-procurement-cards,31-Jan-2024,Total Housing Revenue Account,MOJ OSPT ECOM,Total Housing Revenue Account,40,GOVERNMENT SERVICES-NOT ELSEWHERE CLASSIFIED,2023-24Q3_PC0675
Sandwell Metropolitan Borough Council,https://www.sandwell.gov.uk/performance-spending/government-procurement-cards,31-Jan-2024,Total Housing Revenue Account,WWW.SCREWFIX.COM,Total Housing Revenue Account,6.49,"BUILDING MATERIALS, LUMBER STORES",2023-24Q3_PC0676
Sandwell Metropolitan Borough Council,https://www.sandwell.gov.uk/performance-spending/government-procurement-cards,31-Jan-2024,Regeneration & Growth,AMAZON  204-1114083-37,Regeneration And The Economy,34.35,MISCELLANEOUS GENERAL MERCHANDISE,2023-24Q3_PC0677
Sandwell Metropolitan Borough Council,https://www.sandwell.gov.uk/performance-spending/government-procurement-cards,31-Jan-2024,Regeneration & Growth,TRAINLINE,Regeneration And The Economy,222.49,PASSENGER RAILWAYS,2023-24Q3_PC0678
Sandwell Metropolitan Borough Council,https://www.sandwell.gov.uk/performance-spending/government-procurement-cards,31-Jan-2024,Assistant Chief Executive,POST OFFICE COUNTER,Assistant Chief Executive (Excl SIU),25,POSTAL SERVICES-GOVERNMENT ONLY,2023-24Q3_PC0679
Sandwell Metropolitan Borough Council,https://www.sandwell.gov.uk/performance-spending/government-procurement-cards,31-Jan-2024,Assistant Chief Executive,POST OFFICE COUNTER,Assistant Chief Executive (Excl SIU),2.75,POSTAL SERVICES-GOVERNMENT ONLY,2023-24Q3_PC0680
Sandwell Metropolitan Borough Council,https://www.sandwell.gov.uk/performance-spending/government-procurement-cards,31-Jan-2024,Regeneration & Growth,PREMIER FARNELL,Regeneration And The Economy,52.92,ELECTRICAL PARTS AND EQUIPMENT,2023-24Q3_PC0681
Sandwell Metropolitan Borough Council,https://www.sandwell.gov.uk/performance-spending/government-procurement-cards,31-Jan-2024,Regeneration & Growth,SSED LTD,Regeneration And The Economy,144,"DETECTVE/PROTECTVE AGNCY,SECURITY SRVS, ARMOR CARS",2023-24Q3_PC0682
Sandwell Metropolitan Borough Council,https://www.sandwell.gov.uk/performance-spending/government-procurement-cards,01-Feb-2024,Assistant Chief Executive,AMAZON  203-6752031-67,Assistant Chief Executive (Excl SIU),26.53,MISCELLANEOUS GENERAL MERCHANDISE,2023-24Q3_PC0683
Sandwell Metropolitan Borough Council,https://www.sandwell.gov.uk/performance-spending/government-procurement-cards,01-Feb-2024,Childrens Services,FACEBK  J27MWVKW92,Childrens Services,91.5,ADVERTISING SERVICES,2023-24Q3_PC0684
Sandwell Metropolitan Borough Council,https://www.sandwell.gov.uk/performance-spending/government-procurement-cards,01-Feb-2024,Assistant Chief Executive,AMAZON  204-5673075-51,Assistant Chief Executive (Excl SIU),103.9,MISCELLANEOUS GENERAL MERCHANDISE,2023-24Q3_PC0685
Sandwell Metropolitan Borough Council,https://www.sandwell.gov.uk/performance-spending/government-procurement-cards,01-Feb-2024,Childrens Services,YORKSHIRE PURCHASING O,Childrens Services,215.84,STATIONERY/OFFICE SUPPLIES/PRINTING & WRITING PAP.,2023-24Q3_PC0686
Sandwell Metropolitan Borough Council,https://www.sandwell.gov.uk/performance-spending/government-procurement-cards,01-Feb-2024,Individual School Budgets With Inclusion,AMAZON  204-9898010-58,Individual School Budgets With Inclusion,45.99,MISCELLANEOUS GENERAL MERCHANDISE,2023-24Q3_PC0687
Sandwell Metropolitan Borough Council,https://www.sandwell.gov.uk/performance-spending/government-procurement-cards,01-Feb-2024,Regeneration & Growth,CHRIS BRAIN ASSOCIATES,Regeneration And The Economy,990,"CONSULTING, MANAGEMENT, AND PUBLIC RELATIONS SVCS",2023-24Q3_PC0688
Sandwell Metropolitan Borough Council,https://www.sandwell.gov.uk/performance-spending/government-procurement-cards,01-Feb-2024,Total Borough Economy,AMAZON  204-9507734-20,Total Adult Social Care,75.5,MISCELLANEOUS GENERAL MERCHANDISE,2023-24Q3_PC0689
Sandwell Metropolitan Borough Council,https://www.sandwell.gov.uk/performance-spending/government-procurement-cards,01-Feb-2024,Total Borough Economy,AMZNMktplace,Total Adult Social Care,12.48,MISCELLANEOUS AND SPECIALTY RETAIL STORES,2023-24Q3_PC0690
Sandwell Metropolitan Borough Council,https://www.sandwell.gov.uk/performance-spending/government-procurement-cards,01-Feb-2024,Total Borough Economy,Vistaprint,Total Adult Social Care,86.46,BUSINESS SERVICES-NOT ELSEWHERE CLASSIFIED,2023-24Q3_PC0691
Sandwell Metropolitan Borough Council,https://www.sandwell.gov.uk/performance-spending/government-procurement-cards,01-Feb-2024,Total Borough Economy,LOTC.ORG.UK,Total Adult Social Care,125,SCHOOLS & EDUCATIONAL SVC-NOT ELSEWHERE CLASSIFIED,2023-24Q3_PC0692
Sandwell Metropolitan Borough Council,https://www.sandwell.gov.uk/performance-spending/government-procurement-cards,01-Feb-2024,Childrens Services,FRS COUNTRYWEAR LTD,Childrens Services,201.6,MEN'S AND WOMEN'S CLOTHING STORES,2023-24Q3_PC0693
Sandwell Metropolitan Borough Council,https://www.sandwell.gov.uk/performance-spending/government-procurement-cards,01-Feb-2024,Regeneration & Growth,AMAZON  204-9923880-15,Regeneration And The Economy,28.45,MISCELLANEOUS GENERAL MERCHANDISE,2023-24Q3_PC0694
Sandwell Metropolitan Borough Council,https://www.sandwell.gov.uk/performance-spending/government-procurement-cards,01-Feb-2024,Total Borough Economy,HP INC HP.COM STORE UK,Total Adult Social Care,129.98,ELECTRONIC SALES,2023-24Q3_PC0695
Sandwell Metropolitan Borough Council,https://www.sandwell.gov.uk/performance-spending/government-procurement-cards,01-Feb-2024,Individual School Budgets With Inclusion,AMZNMktplace,Individual School Budgets With Inclusion,41.2,MISCELLANEOUS AND SPECIALTY RETAIL STORES,2023-24Q3_PC0696
Sandwell Metropolitan Borough Council,https://www.sandwell.gov.uk/performance-spending/government-procurement-cards,01-Feb-2024,Childrens Services,SHARKNINJA EUROPE,Childrens Services,14.99,MISCELLANEOUS HOUSE FURNISHING SPECIALTY SHOPS,2023-24Q3_PC0697
Sandwell Metropolitan Borough Council,https://www.sandwell.gov.uk/performance-spending/government-procurement-cards,01-Feb-2024,Childrens Services,WIGLEY DIY LTD,Childrens Services,104.41,"GLASS, PAINT, WALLPAPER STORES",2023-24Q3_PC0698
Sandwell Metropolitan Borough Council,https://www.sandwell.gov.uk/performance-spending/government-procurement-cards,01-Feb-2024,Law & Governance,WWW2.@WARWICK.AC.UK,Assistant Chief Executive (Excl SIU),190,"COLLEGES, UNIV, PRO SCHOOLS, JUNIOR COLLEGES",2023-24Q3_PC0699
Sandwell Metropolitan Borough Council,https://www.sandwell.gov.uk/performance-spending/government-procurement-cards,01-Feb-2024,Childrens Services,AMAZON  WEANING,Childrens Services,19.75,MISCELLANEOUS GENERAL MERCHANDISE,2023-24Q3_PC0700
Sandwell Metropolitan Borough Council,https://www.sandwell.gov.uk/performance-spending/government-procurement-cards,01-Feb-2024,Total Borough Economy,TRAINLINE,Total Adult Social Care,75.5,PASSENGER RAILWAYS,2023-24Q3_PC0701
Sandwell Metropolitan Borough Council,https://www.sandwell.gov.uk/performance-spending/government-procurement-cards,01-Feb-2024,Total Borough Economy,TRAINLINE,Total Adult Social Care,41.6,PASSENGER RAILWAYS,2023-24Q3_PC0702
Sandwell Metropolitan Borough Council,https://www.sandwell.gov.uk/performance-spending/government-procurement-cards,01-Feb-2024,Total Borough Economy,TRAINLINE,Total Adult Social Care,12.55,PASSENGER RAILWAYS,2023-24Q3_PC0703
Sandwell Metropolitan Borough Council,https://www.sandwell.gov.uk/performance-spending/government-procurement-cards,01-Feb-2024,Total ASCHWB,SUPERDRUG STORES PLC,Total Adult Social Care,49.9,"DRUG STORES, PHARMACIES",2023-24Q3_PC0704
Sandwell Metropolitan Borough Council,https://www.sandwell.gov.uk/performance-spending/government-procurement-cards,01-Feb-2024,Childrens Services,TESCO STORES 2770,Childrens Services,63.57,"GROCERY STORES, SUPERMARKETS",2023-24Q3_PC0705
Sandwell Metropolitan Borough Council,https://www.sandwell.gov.uk/performance-spending/government-procurement-cards,01-Feb-2024,Childrens Services,AMAZON  FH,Childrens Services,20.99,MISCELLANEOUS GENERAL MERCHANDISE,2023-24Q3_PC0706
Sandwell Metropolitan Borough Council,https://www.sandwell.gov.uk/performance-spending/government-procurement-cards,01-Feb-2024,Childrens Services,OFFICEPKWMX,Childrens Services,57.2,"PRECIOUS STONES AND METALS, WATCHES AND JEWELRY",2023-24Q3_PC0707
Sandwell Metropolitan Borough Council,https://www.sandwell.gov.uk/performance-spending/government-procurement-cards,01-Feb-2024,Childrens Services,Amazon.co.uk TD84K9A25,Childrens Services,26.82,DIRECT MARKETING-OTHER DIRECT MARKETERS/NOT ELSEW.,2023-24Q3_PC0708
Sandwell Metropolitan Borough Council,https://www.sandwell.gov.uk/performance-spending/government-procurement-cards,01-Feb-2024,Total Public Health,SQ  SIGNATURE CATERING,Public Health,742.8,CATERERS,2023-24Q3_PC0709
Sandwell Metropolitan Borough Council,https://www.sandwell.gov.uk/performance-spending/government-procurement-cards,01-Feb-2024,Childrens Services,WWW.GOMPELS.CO.UK,Childrens Services,128.87,DENTAL/LAB/MED/OPHTHALMIC HOSP EQUIP & SUPPLIES,2023-24Q3_PC0710
Sandwell Metropolitan Borough Council,https://www.sandwell.gov.uk/performance-spending/government-procurement-cards,01-Feb-2024,Total Housing Revenue Account,CAPITA GAS,Total Housing Revenue Account,3,"ORGANIZATIONS, MEMBERSHIP-NOT ELSEWHERE CLASSIFIED",2023-24Q3_PC0711
Sandwell Metropolitan Borough Council,https://www.sandwell.gov.uk/performance-spending/government-procurement-cards,01-Feb-2024,Total Housing Revenue Account,Amazon.co.uk QS01A6255,Total Housing Revenue Account,24.98,DIRECT MARKETING-OTHER DIRECT MARKETERS/NOT ELSEW.,2023-24Q3_PC0712
Sandwell Metropolitan Borough Council,https://www.sandwell.gov.uk/performance-spending/government-procurement-cards,01-Feb-2024,Total Housing Revenue Account,CORAM UK HOLDING LIMIT,Total Housing Revenue Account,374.2,PLUMBING AND HEATING EQUIPMENT,2023-24Q3_PC0713
Sandwell Metropolitan Borough Council,https://www.sandwell.gov.uk/performance-spending/government-procurement-cards,01-Feb-2024,Total Borough Economy,AMZNMktplace,Total Adult Social Care,19.69,MISCELLANEOUS AND SPECIALTY RETAIL STORES,2023-24Q3_PC0714
Sandwell Metropolitan Borough Council,https://www.sandwell.gov.uk/performance-spending/government-procurement-cards,01-Feb-2024,Housing & Assets Total,AMAZON  204-4720550-19,Corporate Management,106.73,MISCELLANEOUS GENERAL MERCHANDISE,2023-24Q3_PC0715
Sandwell Metropolitan Borough Council,https://www.sandwell.gov.uk/performance-spending/government-procurement-cards,01-Feb-2024,Childrens Services,AMAZON  202-3827657-03,Childrens Services,11.99,MISCELLANEOUS GENERAL MERCHANDISE,2023-24Q3_PC0716
Sandwell Metropolitan Borough Council,https://www.sandwell.gov.uk/performance-spending/government-procurement-cards,02-Feb-2024,FINANCE (Inc SIU),SP LOOP EARPLUGS,Assistant Chief Executive (Excl SIU),33.4,MISCELLANEOUS AND SPECIALTY RETAIL STORES,2023-24Q3_PC0717
Sandwell Metropolitan Borough Council,https://www.sandwell.gov.uk/performance-spending/government-procurement-cards,02-Feb-2024,Total Borough Economy,AMAZON  204-3174901-67,Total Adult Social Care,17.99,MISCELLANEOUS GENERAL MERCHANDISE,2023-24Q3_PC0718
Sandwell Metropolitan Borough Council,https://www.sandwell.gov.uk/performance-spending/government-procurement-cards,02-Feb-2024,Total Borough Economy,AMZNMktplace,Total Adult Social Care,32.67,MISCELLANEOUS AND SPECIALTY RETAIL STORES,2023-24Q3_PC0719
Sandwell Metropolitan Borough Council,https://www.sandwell.gov.uk/performance-spending/government-procurement-cards,02-Feb-2024,Total Borough Economy,AMAZON  204-4582215-18,Total Adult Social Care,8.52,MISCELLANEOUS GENERAL MERCHANDISE,2023-24Q3_PC0720
Sandwell Metropolitan Borough Council,https://www.sandwell.gov.uk/performance-spending/government-procurement-cards,02-Feb-2024,Total Borough Economy,AMAZON  204-9039788-69,Total Adult Social Care,16.3,MISCELLANEOUS GENERAL MERCHANDISE,2023-24Q3_PC0721
Sandwell Metropolitan Borough Council,https://www.sandwell.gov.uk/performance-spending/government-procurement-cards,02-Feb-2024,Total Borough Economy,Hobbycraft,Total Adult Social Care,16,"ARTIST SUPPLY STORES, CRAFT SHOPS",2023-24Q3_PC0722
Sandwell Metropolitan Borough Council,https://www.sandwell.gov.uk/performance-spending/government-procurement-cards,02-Feb-2024,Total Borough Economy,B&M 620 - MERRY HILL,Total Adult Social Care,14.73,MISCELLANEOUS GENERAL MERCHANDISE,2023-24Q3_PC0723
Sandwell Metropolitan Borough Council,https://www.sandwell.gov.uk/performance-spending/government-procurement-cards,02-Feb-2024,Total Borough Economy,TESCO STORES 6197,Total Adult Social Care,24,"GROCERY STORES, SUPERMARKETS",2023-24Q3_PC0724
Sandwell Metropolitan Borough Council,https://www.sandwell.gov.uk/performance-spending/government-procurement-cards,02-Feb-2024,Total ASCHWB,AMAZON  204-4942537-80,Total Adult Social Care,97.16,MISCELLANEOUS GENERAL MERCHANDISE,2023-24Q3_PC0725
Sandwell Metropolitan Borough Council,https://www.sandwell.gov.uk/performance-spending/government-procurement-cards,02-Feb-2024,Childrens Services,Amazon.co.uk 3D7JM5H15,Childrens Services,4.34,DIRECT MARKETING-OTHER DIRECT MARKETERS/NOT ELSEW.,2023-24Q3_PC0726
Sandwell Metropolitan Borough Council,https://www.sandwell.gov.uk/performance-spending/government-procurement-cards,02-Feb-2024,Individual School Budgets With Inclusion,Justmylook.com,Individual School Budgets With Inclusion,103.99,COSMETIC STORES,2023-24Q3_PC0727
Sandwell Metropolitan Borough Council,https://www.sandwell.gov.uk/performance-spending/government-procurement-cards,02-Feb-2024,Total ASCHWB,AMZNMktplace,Total Adult Social Care,9.98,MISCELLANEOUS AND SPECIALTY RETAIL STORES,2023-24Q3_PC0728
Sandwell Metropolitan Borough Council,https://www.sandwell.gov.uk/performance-spending/government-procurement-cards,02-Feb-2024,Total ASCHWB,Amazon.co.uk VY5233ZW5,Total Adult Social Care,102.87,DIRECT MARKETING-OTHER DIRECT MARKETERS/NOT ELSEW.,2023-24Q3_PC0729
Sandwell Metropolitan Borough Council,https://www.sandwell.gov.uk/performance-spending/government-procurement-cards,02-Feb-2024,Total ASCHWB,WWW.RATTANTREE.COM,Total Adult Social Care,59.99,"EQUIP, FURNITURE, HOME FURNSHNGS STRS (EXCPT APPL)",2023-24Q3_PC0730
Sandwell Metropolitan Borough Council,https://www.sandwell.gov.uk/performance-spending/government-procurement-cards,02-Feb-2024,Total ASCHWB,WWW.RATTANTREE.COM,Total Adult Social Care,59.99,"EQUIP, FURNITURE, HOME FURNSHNGS STRS (EXCPT APPL)",2023-24Q3_PC0731
Sandwell Metropolitan Borough Council,https://www.sandwell.gov.uk/performance-spending/government-procurement-cards,02-Feb-2024,Law & Governance,WM MORRISONS STORE,Assistant Chief Executive (Excl SIU),3.85,"GROCERY STORES, SUPERMARKETS",2023-24Q3_PC0732
Sandwell Metropolitan Borough Council,https://www.sandwell.gov.uk/performance-spending/government-procurement-cards,02-Feb-2024,Total ASCHWB,SP RINKIT.COM,Total Adult Social Care,102,"EQUIP, FURNITURE, HOME FURNSHNGS STRS (EXCPT APPL)",2023-24Q3_PC0733
Sandwell Metropolitan Borough Council,https://www.sandwell.gov.uk/performance-spending/government-procurement-cards,02-Feb-2024,Childrens Services,ASDA GROCERIES ONLINE,Childrens Services,0.23,"GROCERY STORES, SUPERMARKETS",2023-24Q3_PC0734
Sandwell Metropolitan Borough Council,https://www.sandwell.gov.uk/performance-spending/government-procurement-cards,02-Feb-2024,Childrens Services,ASDA GROCERIES ONLINE,Childrens Services,68.99,"GROCERY STORES, SUPERMARKETS",2023-24Q3_PC0735
Sandwell Metropolitan Borough Council,https://www.sandwell.gov.uk/performance-spending/government-procurement-cards,02-Feb-2024,Total ASCHWB,AMAZON  206-4260407-06,Total Adult Social Care,72.5,MISCELLANEOUS GENERAL MERCHANDISE,2023-24Q3_PC0736
Sandwell Metropolitan Borough Council,https://www.sandwell.gov.uk/performance-spending/government-procurement-cards,02-Feb-2024,Total ASCHWB,AMZNMktplace,Total Adult Social Care,51.15,MISCELLANEOUS AND SPECIALTY RETAIL STORES,2023-24Q3_PC0737
Sandwell Metropolitan Borough Council,https://www.sandwell.gov.uk/performance-spending/government-procurement-cards,02-Feb-2024,Total ASCHWB,AMZNMktplace,Total Adult Social Care,28.08,MISCELLANEOUS AND SPECIALTY RETAIL STORES,2023-24Q3_PC0738
Sandwell Metropolitan Borough Council,https://www.sandwell.gov.uk/performance-spending/government-procurement-cards,02-Feb-2024,Total ASCHWB,AMAZON  206-6866447-69,Total Adult Social Care,39.91,MISCELLANEOUS GENERAL MERCHANDISE,2023-24Q3_PC0739
Sandwell Metropolitan Borough Council,https://www.sandwell.gov.uk/performance-spending/government-procurement-cards,02-Feb-2024,Total ASCHWB,BRYSDALES LTD,Total Adult Social Care,109.2,MISCELLANEOUS AND SPECIALTY RETAIL STORES,2023-24Q3_PC0740
Sandwell Metropolitan Borough Council,https://www.sandwell.gov.uk/performance-spending/government-procurement-cards,02-Feb-2024,Childrens Services,Canva  04048-48613058,Childrens Services,99.99,"COMMERCIAL ART, GRAPHICS, PHOTOGRAPHY",2023-24Q3_PC0741
Sandwell Metropolitan Borough Council,https://www.sandwell.gov.uk/performance-spending/government-procurement-cards,02-Feb-2024,Individual School Budgets With Inclusion,WWW.ARGOS.CO.UK,Individual School Budgets With Inclusion,457.95,DEPARTMENT STORES,2023-24Q3_PC0742
Sandwell Metropolitan Borough Council,https://www.sandwell.gov.uk/performance-spending/government-procurement-cards,02-Feb-2024,Childrens Services,DUNLEY SERVICE STATION,Childrens Services,16.61,SERVICE STATIONS WITH OR WITHOUT ANCILLARY SERVICE,2023-24Q3_PC0743
Sandwell Metropolitan Borough Council,https://www.sandwell.gov.uk/performance-spending/government-procurement-cards,02-Feb-2024,Total ASCHWB,WWW.ARGOS.CO.UK,Total Adult Social Care,125,DEPARTMENT STORES,2023-24Q3_PC0744
Sandwell Metropolitan Borough Council,https://www.sandwell.gov.uk/performance-spending/government-procurement-cards,02-Feb-2024,Regeneration & Growth,EASTWOOD PARK LIMITED,Regeneration And The Economy,654,SCHOOLS & EDUCATIONAL SVC-NOT ELSEWHERE CLASSIFIED,2023-24Q3_PC0745
Sandwell Metropolitan Borough Council,https://www.sandwell.gov.uk/performance-spending/government-procurement-cards,02-Feb-2024,Total ASCHWB,SUPERDRUG STORES PLC,Total Adult Social Care,89.97,"DRUG STORES, PHARMACIES",2023-24Q3_PC0746
Sandwell Metropolitan Borough Council,https://www.sandwell.gov.uk/performance-spending/government-procurement-cards,02-Feb-2024,Childrens Services,TESCO SUBSCRIPTION,Childrens Services,7.99,DIRECT MARKETING-CONTINUITY/SUBSCRIPTION MERCHANTS,2023-24Q3_PC0747
Sandwell Metropolitan Borough Council,https://www.sandwell.gov.uk/performance-spending/government-procurement-cards,02-Feb-2024,Total Borough Economy,GOOGLE GSUITE LIGHTWOO,Total Adult Social Care,18,BUSINESS SERVICES-NOT ELSEWHERE CLASSIFIED,2023-24Q3_PC0748
Sandwell Metropolitan Borough Council,https://www.sandwell.gov.uk/performance-spending/government-procurement-cards,02-Feb-2024,Corporate Management,OT GROUP,Corporate Management,42.12,STATIONERY/OFFICE SUPPLIES/PRINTING & WRITING PAP.,2023-24Q3_PC0749
Sandwell Metropolitan Borough Council,https://www.sandwell.gov.uk/performance-spending/government-procurement-cards,02-Feb-2024,Assistant Chief Executive,GOOGLE CLOUD HSDDZM,Assistant Chief Executive (Excl SIU),178.41,"COMP PROGRAMING,DATA PRCSNG,INTGRTD SYS DSGN SRVS",2023-24Q3_PC0750
Sandwell Metropolitan Borough Council,https://www.sandwell.gov.uk/performance-spending/government-procurement-cards,02-Feb-2024,Assistant Chief Executive,AMAZON  204-3061223-15,Neighbourhoods,54.91,MISCELLANEOUS GENERAL MERCHANDISE,2023-24Q3_PC0751
Sandwell Metropolitan Borough Council,https://www.sandwell.gov.uk/performance-spending/government-procurement-cards,02-Feb-2024,Total Borough Economy,Wm Morrisons Store Pic,Total Adult Social Care,237.03,"GROCERY STORES, SUPERMARKETS",2023-24Q3_PC0752
Sandwell Metropolitan Borough Council,https://www.sandwell.gov.uk/performance-spending/government-procurement-cards,05-Feb-2024,Total Borough Economy,ALDI 6 772,Total Adult Social Care,19.78,"GROCERY STORES, SUPERMARKETS",2023-24Q3_PC0753
Sandwell Metropolitan Borough Council,https://www.sandwell.gov.uk/performance-spending/government-procurement-cards,05-Feb-2024,Total Borough Economy,ASDA STORES,Total Adult Social Care,5.3,"GROCERY STORES, SUPERMARKETS",2023-24Q3_PC0754
Sandwell Metropolitan Borough Council,https://www.sandwell.gov.uk/performance-spending/government-procurement-cards,05-Feb-2024,Total Borough Economy,ROTACLOUD,Total Adult Social Care,464.4,COMPUTER SOFTWARE STORES,2023-24Q3_PC0755
Sandwell Metropolitan Borough Council,https://www.sandwell.gov.uk/performance-spending/government-procurement-cards,05-Feb-2024,Total Borough Economy,HOO HOOTSUITE INC,Total Adult Social Care,1281.6,BUSINESS SERVICES-NOT ELSEWHERE CLASSIFIED,2023-24Q3_PC0756
Sandwell Metropolitan Borough Council,https://www.sandwell.gov.uk/performance-spending/government-procurement-cards,05-Feb-2024,Total Borough Economy,AMAZON  204-5785977-89,Total Adult Social Care,33.98,MISCELLANEOUS GENERAL MERCHANDISE,2023-24Q3_PC0757
Sandwell Metropolitan Borough Council,https://www.sandwell.gov.uk/performance-spending/government-procurement-cards,05-Feb-2024,Individual School Budgets With Inclusion,STS Medics Ltd,Individual School Budgets With Inclusion,270,"HEALTH PRACTITIONERS, MEDICAL SRVCS-NOT ELSEWHERE",2023-24Q3_PC0758
Sandwell Metropolitan Borough Council,https://www.sandwell.gov.uk/performance-spending/government-procurement-cards,05-Feb-2024,Individual School Budgets With Inclusion,STS Medics Ltd,Individual School Budgets With Inclusion,270,"HEALTH PRACTITIONERS, MEDICAL SRVCS-NOT ELSEWHERE",2023-24Q3_PC0759
Sandwell Metropolitan Borough Council,https://www.sandwell.gov.uk/performance-spending/government-procurement-cards,05-Feb-2024,Total Borough Economy,Amazon.co.uk X07YZ7FH5,Total Adult Social Care,114.91,DIRECT MARKETING-OTHER DIRECT MARKETERS/NOT ELSEW.,2023-24Q3_PC0760
Sandwell Metropolitan Borough Council,https://www.sandwell.gov.uk/performance-spending/government-procurement-cards,05-Feb-2024,Total ASCHWB,AMZNMktplace,Total Adult Social Care,49.93,MISCELLANEOUS AND SPECIALTY RETAIL STORES,2023-24Q3_PC0761
Sandwell Metropolitan Borough Council,https://www.sandwell.gov.uk/performance-spending/government-procurement-cards,05-Feb-2024,Total ASCHWB,AMAZON  204-9615473-11,Total Adult Social Care,27.98,MISCELLANEOUS GENERAL MERCHANDISE,2023-24Q3_PC0762
Sandwell Metropolitan Borough Council,https://www.sandwell.gov.uk/performance-spending/government-procurement-cards,05-Feb-2024,Childrens Services,ASDA GROCERIES ONLINE,Childrens Services,-1.92,"GROCERY STORES, SUPERMARKETS",2023-24Q3_PC0763
Sandwell Metropolitan Borough Council,https://www.sandwell.gov.uk/performance-spending/government-procurement-cards,05-Feb-2024,Childrens Services,ASDA GROCERIES ONLINE,Childrens Services,54.73,"GROCERY STORES, SUPERMARKETS",2023-24Q3_PC0764
Sandwell Metropolitan Borough Council,https://www.sandwell.gov.uk/performance-spending/government-procurement-cards,05-Feb-2024,Total ASCHWB,AMAZON  206-1997747-35,Total Adult Social Care,20.87,MISCELLANEOUS GENERAL MERCHANDISE,2023-24Q3_PC0765
Sandwell Metropolitan Borough Council,https://www.sandwell.gov.uk/performance-spending/government-procurement-cards,05-Feb-2024,Housing & Assets Total,WWW.STATIONHOTELANDBAN,Corporate Management,189,"LODGING-HOTELS,MOTELS,RESORTS-NOT CLASSIFIED",2023-24Q3_PC0766
Sandwell Metropolitan Borough Council,https://www.sandwell.gov.uk/performance-spending/government-procurement-cards,05-Feb-2024,Total Borough Economy,Vistaprint,Total Adult Social Care,169.98,BUSINESS SERVICES-NOT ELSEWHERE CLASSIFIED,2023-24Q3_PC0767
Sandwell Metropolitan Borough Council,https://www.sandwell.gov.uk/performance-spending/government-procurement-cards,05-Feb-2024,Total Borough Economy,Vistaprint,Total Adult Social Care,186.41,BUSINESS SERVICES-NOT ELSEWHERE CLASSIFIED,2023-24Q3_PC0768
Sandwell Metropolitan Borough Council,https://www.sandwell.gov.uk/performance-spending/government-procurement-cards,05-Feb-2024,Childrens Services,BEEBYS BUBBLES,Childrens Services,60,"CLEANING, GARMENT, AND LAUNDRY SERVICES",2023-24Q3_PC0769
Sandwell Metropolitan Borough Council,https://www.sandwell.gov.uk/performance-spending/government-procurement-cards,05-Feb-2024,Total Borough Economy,Wm Morrisons Store Pic,Total Adult Social Care,68.47,"GROCERY STORES, SUPERMARKETS",2023-24Q3_PC0770
Sandwell Metropolitan Borough Council,https://www.sandwell.gov.uk/performance-spending/government-procurement-cards,05-Feb-2024,Total Borough Economy,Wm Morrisons Store Pic,Total Adult Social Care,68.97,"GROCERY STORES, SUPERMARKETS",2023-24Q3_PC0771
Sandwell Metropolitan Borough Council,https://www.sandwell.gov.uk/performance-spending/government-procurement-cards,05-Feb-2024,Housing & Assets Total,AMZNMktplace,Corporate Management,26.39,MISCELLANEOUS AND SPECIALTY RETAIL STORES,2023-24Q3_PC0772
Sandwell Metropolitan Borough Council,https://www.sandwell.gov.uk/performance-spending/government-procurement-cards,05-Feb-2024,Childrens Services,AMZNMktplace,Childrens Services,22.98,MISCELLANEOUS AND SPECIALTY RETAIL STORES,2023-24Q3_PC0773
Sandwell Metropolitan Borough Council,https://www.sandwell.gov.uk/performance-spending/government-procurement-cards,05-Feb-2024,Individual School Budgets With Inclusion,ASDA STORES 4765,Individual School Budgets With Inclusion,36.11,"GROCERY STORES, SUPERMARKETS",2023-24Q3_PC0774
Sandwell Metropolitan Borough Council,https://www.sandwell.gov.uk/performance-spending/government-procurement-cards,05-Feb-2024,Childrens Services,AMAZON  205-5924923-12,Childrens Services,33.9,MISCELLANEOUS GENERAL MERCHANDISE,2023-24Q3_PC0775
Sandwell Metropolitan Borough Council,https://www.sandwell.gov.uk/performance-spending/government-procurement-cards,05-Feb-2024,Childrens Services,Amazon.co.uk 8M9QK8PD5,Childrens Services,33.47,DIRECT MARKETING-OTHER DIRECT MARKETERS/NOT ELSEW.,2023-24Q3_PC0776
Sandwell Metropolitan Borough Council,https://www.sandwell.gov.uk/performance-spending/government-procurement-cards,05-Feb-2024,Total ASCHWB,AMZNMktplace,Total Adult Social Care,49.99,MISCELLANEOUS AND SPECIALTY RETAIL STORES,2023-24Q3_PC0777
Sandwell Metropolitan Borough Council,https://www.sandwell.gov.uk/performance-spending/government-procurement-cards,05-Feb-2024,Childrens Services,AMAZON  204-5149670-38,Childrens Services,280.39,MISCELLANEOUS GENERAL MERCHANDISE,2023-24Q3_PC0778
Sandwell Metropolitan Borough Council,https://www.sandwell.gov.uk/performance-spending/government-procurement-cards,05-Feb-2024,FINANCE (Inc SIU),AMAZON  026-9142982-14,Assistant Chief Executive (Excl SIU),97.59,MISCELLANEOUS GENERAL MERCHANDISE,2023-24Q3_PC0779
Sandwell Metropolitan Borough Council,https://www.sandwell.gov.uk/performance-spending/government-procurement-cards,05-Feb-2024,Childrens Services,Amazon Prime 7K2G06785,Childrens Services,8.99,DIRECT MARKETING-CONTINUITY/SUBSCRIPTION MERCHANTS,2023-24Q3_PC0780
Sandwell Metropolitan Borough Council,https://www.sandwell.gov.uk/performance-spending/government-procurement-cards,05-Feb-2024,Total Housing Revenue Account,AMAZON  203-2513003-32,Total Housing Revenue Account,129,MISCELLANEOUS GENERAL MERCHANDISE,2023-24Q3_PC0781
Sandwell Metropolitan Borough Council,https://www.sandwell.gov.uk/performance-spending/government-procurement-cards,05-Feb-2024,Regeneration & Growth,TRAVELODGE,Regeneration And The Economy,645.92,TRAVELODGE,2023-24Q3_PC0782
Sandwell Metropolitan Borough Council,https://www.sandwell.gov.uk/performance-spending/government-procurement-cards,05-Feb-2024,Total Borough Economy,WWW.FFLM.AC.UK,Total Adult Social Care,270,"ORGANIZATIONS, CHARITABLE AND SOCIAL SERVICES",2023-24Q3_PC0783
Sandwell Metropolitan Borough Council,https://www.sandwell.gov.uk/performance-spending/government-procurement-cards,06-Feb-2024,Total ASCHWB,AMAZON  202-2328670-86,Total Adult Social Care,9.81,MISCELLANEOUS GENERAL MERCHANDISE,2023-24Q3_PC0784
Sandwell Metropolitan Borough Council,https://www.sandwell.gov.uk/performance-spending/government-procurement-cards,06-Feb-2024,Total ASCHWB,AMAZON  202-2328670-86,Total Adult Social Care,75.12,MISCELLANEOUS GENERAL MERCHANDISE,2023-24Q3_PC0785
Sandwell Metropolitan Borough Council,https://www.sandwell.gov.uk/performance-spending/government-procurement-cards,06-Feb-2024,Total Borough Economy,ASDA STORES,Dead SeRCOP,5.85,"GROCERY STORES, SUPERMARKETS",2023-24Q3_PC0786
Sandwell Metropolitan Borough Council,https://www.sandwell.gov.uk/performance-spending/government-procurement-cards,06-Feb-2024,Total ASCHWB,OT GROUP,Total Adult Social Care,110.11,STATIONERY/OFFICE SUPPLIES/PRINTING & WRITING PAP.,2023-24Q3_PC0787
Sandwell Metropolitan Borough Council,https://www.sandwell.gov.uk/performance-spending/government-procurement-cards,06-Feb-2024,Individual School Budgets With Inclusion,ASDA GROCERIES ONLINE,Individual School Budgets With Inclusion,19.59,"GROCERY STORES, SUPERMARKETS",2023-24Q3_PC0788
Sandwell Metropolitan Borough Council,https://www.sandwell.gov.uk/performance-spending/government-procurement-cards,06-Feb-2024,Regeneration & Growth,TRAINLINE,Regeneration And The Economy,8.65,PASSENGER RAILWAYS,2023-24Q3_PC0789
